Organisation Code,Organisation Label,Effective Date,Organisational Unit,Service Division Label,Category Internal Name,Purpose,Detailed Expenditure Code,Payment Date,Transaction Number,Irrecoverable VAT Amount,Amount,Capital Or Revenue,Beneficiary Name,Procurement Card
Http://opendatacommunities.org/id/metropolitan-district-council/leeds,Leeds City Council,30/04/2022,Adults and Health,Services For Older People Under 65 P/Dis,Agency Payments,Sheltered Accommodation,569,27/04/2022,2204-00001,0.00,5400.00,R,A & V TRANSITIONAL HOMES,No
Http://opendatacommunities.org/id/metropolitan-district-council/leeds,Leeds City Council,30/04/2022,Children and Families,Social Care,Agency Payments,Services Rendered By Other Organisations,511,01/04/2022,2204-00002,0.00,186.42,R,REDACTED PERSONAL DATA,No
Http://opendatacommunities.org/id/metropolitan-district-council/leeds,Leeds City Council,30/04/2022,Children and Families,Social Care,Agency Payments,Services Rendered By Other Organisations,511,06/04/2022,2204-00003,0.00,217.23,R,REDACTED PERSONAL DATA,No
Http://opendatacommunities.org/id/metropolitan-district-council/leeds,Leeds City Council,30/04/2022,Strategic Landlord,HRA Housing Leeds,Capital,OTHER COSTS,7,07/04/2022,2204-00004,0.00,100.00,C,REDACTED PERSONAL DATA,No
Http://opendatacommunities.org/id/metropolitan-district-council/leeds,Leeds City Council,30/04/2022,City Development,Libraries Arts & Heritage,Supplies and Services,Operational Furniture And Equipment,203,14/04/2022,2204-00005,0.00,65.36,R,A C Entertainment Technologies Ltd,No
Http://opendatacommunities.org/id/metropolitan-district-council/leeds,Leeds City Council,30/04/2022,City Development,Highways,Capital,OTHER COSTS,7,22/04/2022,2204-00006,0.00,1500.00,C,A C GILPIN,No
Http://opendatacommunities.org/id/metropolitan-district-council/leeds,Leeds City Council,30/04/2022,Communities Housing and Environment,Benefits Wlefare and Poverty,Supplies and Services,Grant Related Expenditure,298,11/04/2022,2204-00007,0.00,500.00,R,REDACTED PERSONAL DATA,No
Http://opendatacommunities.org/id/metropolitan-district-council/leeds,Leeds City Council,30/04/2022,Strategic Landlord,HRA Housing Leeds,Capital,CONSTRUCTION,3,14/04/2022,2204-00008,0.00,150000.00,C,A Connolly Limited,No
Http://opendatacommunities.org/id/metropolitan-district-council/leeds,Leeds City Council,30/04/2022,Strategic Landlord,HRA Housing Leeds,Capital,CONSTRUCTION,3,14/04/2022,2204-00009,0.00,150000.00,C,A Connolly Limited,No
Http://opendatacommunities.org/id/metropolitan-district-council/leeds,Leeds City Council,30/04/2022,Strategic Landlord,HRA Housing Leeds,Capital,CONSTRUCTION,3,22/04/2022,2204-00010,0.00,150000.00,C,A Connolly Limited,No
Http://opendatacommunities.org/id/metropolitan-district-council/leeds,Leeds City Council,30/04/2022,Strategic Landlord,HRA Housing Leeds,Capital,CONSTRUCTION,3,22/04/2022,2204-00011,0.00,150000.00,C,A Connolly Limited,No
Http://opendatacommunities.org/id/metropolitan-district-council/leeds,Leeds City Council,30/04/2022,Resources,Leeds Building Services,Supplies and Services,Other Hired And Contracted Services,265,14/04/2022,2204-00012,0.00,9806.00,R,A Coole Electrical Ltd,No
Http://opendatacommunities.org/id/metropolitan-district-council/leeds,Leeds City Council,30/04/2022,Resources,Leeds Building Services,Supplies and Services,Other Hired And Contracted Services,265,22/04/2022,2204-00013,0.00,11066.00,R,A Coole Electrical Ltd,No
Http://opendatacommunities.org/id/metropolitan-district-council/leeds,Leeds City Council,30/04/2022,Resources,Leeds Building Services,Supplies and Services,Other Hired And Contracted Services,265,28/04/2022,2204-00014,0.00,7891.00,R,A Coole Electrical Ltd,No
Http://opendatacommunities.org/id/metropolitan-district-council/leeds,Leeds City Council,30/04/2022,Children and Families,Learning,Internal Recharges,Internal Charges From Childrens Services,492,07/04/2022,2204-00015,0.00,350.00,R,A CRAVEN-GRIFFITHS,No
Http://opendatacommunities.org/id/metropolitan-district-council/leeds,Leeds City Council,30/04/2022,Communities Housing and Environment,Customer Access,Supplies and Services,Bought In Professional Services,277,06/04/2022,2204-00016,0.00,18.00,R,A D Dumitru,No
Http://opendatacommunities.org/id/metropolitan-district-council/leeds,Leeds City Council,30/04/2022,Communities Housing and Environment,Customer Access,Supplies and Services,Bought In Professional Services,277,06/04/2022,2204-00017,0.00,12.00,R,A D Dumitru,No
Http://opendatacommunities.org/id/metropolitan-district-council/leeds,Leeds City Council,30/04/2022,Communities Housing and Environment,Customer Access,Supplies and Services,Bought In Professional Services,277,06/04/2022,2204-00018,0.00,18.00,R,A D Dumitru,No
Http://opendatacommunities.org/id/metropolitan-district-council/leeds,Leeds City Council,30/04/2022,Communities Housing and Environment,Customer Access,Supplies and Services,Bought In Professional Services,277,06/04/2022,2204-00019,0.00,18.00,R,A D Dumitru,No
Http://opendatacommunities.org/id/metropolitan-district-council/leeds,Leeds City Council,30/04/2022,Communities Housing and Environment,Customer Access,Supplies and Services,Bought In Professional Services,277,06/04/2022,2204-00020,0.00,18.00,R,A D Dumitru,No
Http://opendatacommunities.org/id/metropolitan-district-council/leeds,Leeds City Council,30/04/2022,Communities Housing and Environment,Customer Access,Supplies and Services,Bought In Professional Services,277,06/04/2022,2204-00021,0.00,27.00,R,A D Dumitru,No
Http://opendatacommunities.org/id/metropolitan-district-council/leeds,Leeds City Council,30/04/2022,Communities Housing and Environment,Customer Access,Supplies and Services,Bought In Professional Services,277,13/04/2022,2204-00022,0.00,18.00,R,A D Dumitru,No
Http://opendatacommunities.org/id/metropolitan-district-council/leeds,Leeds City Council,30/04/2022,Communities Housing and Environment,Customer Access,Supplies and Services,Bought In Professional Services,277,13/04/2022,2204-00023,0.00,27.00,R,A D Dumitru,No
Http://opendatacommunities.org/id/metropolitan-district-council/leeds,Leeds City Council,30/04/2022,Communities Housing and Environment,Customer Access,Supplies and Services,Bought In Professional Services,277,13/04/2022,2204-00024,0.00,18.00,R,A D Dumitru,No
Http://opendatacommunities.org/id/metropolitan-district-council/leeds,Leeds City Council,30/04/2022,Communities Housing and Environment,Customer Access,Supplies and Services,Bought In Professional Services,277,13/04/2022,2204-00025,0.00,18.00,R,A D Dumitru,No
Http://opendatacommunities.org/id/metropolitan-district-council/leeds,Leeds City Council,30/04/2022,Communities Housing and Environment,Customer Access,Supplies and Services,Bought In Professional Services,277,22/04/2022,2204-00026,0.00,18.00,R,A D Dumitru,No
Http://opendatacommunities.org/id/metropolitan-district-council/leeds,Leeds City Council,30/04/2022,Communities Housing and Environment,Customer Access,Supplies and Services,Bought In Professional Services,277,22/04/2022,2204-00027,0.00,18.00,R,A D Dumitru,No
Http://opendatacommunities.org/id/metropolitan-district-council/leeds,Leeds City Council,30/04/2022,Communities Housing and Environment,Customer Access,Supplies and Services,Bought In Professional Services,277,22/04/2022,2204-00028,0.00,36.00,R,A D Dumitru,No
Http://opendatacommunities.org/id/metropolitan-district-council/leeds,Leeds City Council,30/04/2022,Communities Housing and Environment,Customer Access,Supplies and Services,Bought In Professional Services,277,22/04/2022,2204-00029,0.00,9.00,R,A D Dumitru,No
Http://opendatacommunities.org/id/metropolitan-district-council/leeds,Leeds City Council,30/04/2022,Strategic Landlord,Housing Management,Supplies and Services,Compensation Claims,200,21/04/2022,2204-00030,0.00,93.35,R,REDACTED PERSONAL DATA,No
Http://opendatacommunities.org/id/metropolitan-district-council/leeds,Leeds City Council,30/04/2022,Strategic Landlord,HRA Housing Leeds,Capital,OTHER COSTS,7,28/04/2022,2204-00031,0.00,100.00,C,REDACTED PERSONAL DATA,No
Http://opendatacommunities.org/id/metropolitan-district-council/leeds,Leeds City Council,30/04/2022,Children and Families,Social Care,Agency Payments,Services Rendered By Voluntary Sector,505,01/04/2022,2204-00032,0.00,5070.62,R,REDACTED PERSONAL DATA,No
Http://opendatacommunities.org/id/metropolitan-district-council/leeds,Leeds City Council,30/04/2022,Children and Families,Social Care,Agency Payments,Services Rendered By Voluntary Sector,505,06/04/2022,2204-00033,0.00,1955.07,R,REDACTED PERSONAL DATA,No
Http://opendatacommunities.org/id/metropolitan-district-council/leeds,Leeds City Council,30/04/2022,City Development,Libraries Arts & Heritage,Supplies and Services,Bought In Professional Services,277,20/04/2022,2204-00034,0.00,600.00,R,A F Miller,No
Http://opendatacommunities.org/id/metropolitan-district-council/leeds,Leeds City Council,30/04/2022,City Development,Libraries Arts & Heritage,Supplies and Services,Printing,215,05/04/2022,2204-00035,0.00,570.00,R,A G Design Studio,No
Http://opendatacommunities.org/id/metropolitan-district-council/leeds,Leeds City Council,30/04/2022,Strategic Landlord,Housing Management,Supplies and Services,Compensation Claims,200,11/04/2022,2204-00036,0.00,75.00,R,REDACTED PERSONAL DATA,No
Http://opendatacommunities.org/id/metropolitan-district-council/leeds,Leeds City Council,30/04/2022,Children and Families,Social Care,Agency Payments,Services Rendered By Other Organisations,511,06/04/2022,2204-00037,0.00,217.23,R,REDACTED PERSONAL DATA,No
Http://opendatacommunities.org/id/metropolitan-district-council/leeds,Leeds City Council,30/04/2022,Strategic Landlord,HRA Housing Leeds,Capital,OTHER COSTS,7,13/04/2022,2204-00038,0.00,80.00,C,REDACTED PERSONAL DATA,No
Http://opendatacommunities.org/id/metropolitan-district-council/leeds,Leeds City Council,30/04/2022,Children and Families,Social Care,Agency Payments,Services Rendered By Other Organisations,511,01/04/2022,2204-00039,0.00,857.53,R,REDACTED PERSONAL DATA,No
Http://opendatacommunities.org/id/metropolitan-district-council/leeds,Leeds City Council,30/04/2022,Strategic Landlord,HRA Housing Leeds,Capital,OTHER COSTS,7,07/04/2022,2204-00040,0.00,80.00,C,REDACTED PERSONAL DATA,No
Http://opendatacommunities.org/id/metropolitan-district-council/leeds,Leeds City Council,30/04/2022,Adults and Health,Other Generic Services,Agency Payments,Fees To Carers,563,01/04/2022,2204-00041,0.00,122.85,R,REDACTED PERSONAL DATA,No
Http://opendatacommunities.org/id/metropolitan-district-council/leeds,Leeds City Council,30/04/2022,Adults and Health,Other Generic Services,Agency Payments,Fees To Carers,563,14/04/2022,2204-00042,0.00,452.64,R,REDACTED PERSONAL DATA,No
Http://opendatacommunities.org/id/metropolitan-district-council/leeds,Leeds City Council,30/04/2022,Adults and Health,Other Generic Services,Agency Payments,Fees To Carers,563,14/04/2022,2204-00043,0.00,50.40,R,REDACTED PERSONAL DATA,No
Http://opendatacommunities.org/id/metropolitan-district-council/leeds,Leeds City Council,30/04/2022,Adults and Health,Other Generic Services,Agency Payments,Fees To Carers,563,14/04/2022,2204-00044,0.00,125.31,R,REDACTED PERSONAL DATA,No
Http://opendatacommunities.org/id/metropolitan-district-council/leeds,Leeds City Council,30/04/2022,Adults and Health,Other Generic Services,Agency Payments,Fees To Carers,563,19/04/2022,2204-00045,0.00,113.16,R,REDACTED PERSONAL DATA,No
Http://opendatacommunities.org/id/metropolitan-district-council/leeds,Leeds City Council,30/04/2022,Adults and Health,Other Generic Services,Agency Payments,Fees To Carers,563,19/04/2022,2204-00046,0.00,12.60,R,REDACTED PERSONAL DATA,No
Http://opendatacommunities.org/id/metropolitan-district-council/leeds,Leeds City Council,30/04/2022,Adults and Health,Other Generic Services,Agency Payments,Fees To Carers,563,29/04/2022,2204-00047,0.00,125.31,R,REDACTED PERSONAL DATA,No
Http://opendatacommunities.org/id/metropolitan-district-council/leeds,Leeds City Council,30/04/2022,Resources,Leeds Building Services,Supplies and Services,Operational Materials,205,07/04/2022,2204-00048,0.00,1182.00,R,A J H  Pump Supply & Repair Ltd,No
Http://opendatacommunities.org/id/metropolitan-district-council/leeds,Leeds City Council,30/04/2022,Resources,Leeds Building Services,Supplies and Services,Operational Materials,205,21/04/2022,2204-00049,0.00,345.00,R,A J H  Pump Supply & Repair Ltd,No
Http://opendatacommunities.org/id/metropolitan-district-council/leeds,Leeds City Council,30/04/2022,Resources,Leeds Building Services,Supplies and Services,Operational Materials,205,28/04/2022,2204-00050,0.00,170.00,R,A J H  Pump Supply & Repair Ltd,No
Http://opendatacommunities.org/id/metropolitan-district-council/leeds,Leeds City Council,30/04/2022,Resources,Leeds Building Services,Supplies and Services,Operational Materials,205,29/04/2022,2204-00051,0.00,195.00,R,A J H  Pump Supply & Repair Ltd,No
Http://opendatacommunities.org/id/metropolitan-district-council/leeds,Leeds City Council,30/04/2022,City Development,Libraries Arts & Heritage,Supplies and Services,Resaleable Materials,204,05/04/2022,2204-00052,0.00,41.29,R,A J PROMOTIONS,No
Http://opendatacommunities.org/id/metropolitan-district-council/leeds,Leeds City Council,30/04/2022,Communities Housing and Environment,Parks and Countryside,Supplies and Services,Resaleable Materials,204,07/04/2022,2204-00053,0.00,630.00,R,A J PROMOTIONS,No
Http://opendatacommunities.org/id/metropolitan-district-council/leeds,Leeds City Council,30/04/2022,Children and Families,Social Care,Agency Payments,Services Rendered By Other Organisations,511,01/04/2022,2204-00054,0.00,1491.36,R,REDACTED PERSONAL DATA,No
Http://opendatacommunities.org/id/metropolitan-district-council/leeds,Leeds City Council,30/04/2022,Children and Families,Social Care,Employees,Agency Staff,8,01/04/2022,2204-00055,0.00,770.00,R,A Little Something Extra Ltd,No
Http://opendatacommunities.org/id/metropolitan-district-council/leeds,Leeds City Council,30/04/2022,Children and Families,Social Care,Employees,Agency Staff,8,14/04/2022,2204-00056,0.00,735.00,R,A Little Something Extra Ltd,No
Http://opendatacommunities.org/id/metropolitan-district-council/leeds,Leeds City Council,30/04/2022,Strategic Landlord,HRA Housing Leeds,Capital,OTHER COSTS,7,29/04/2022,2204-00057,0.00,80.00,C,REDACTED PERSONAL DATA,No
Http://opendatacommunities.org/id/metropolitan-district-council/leeds,Leeds City Council,30/04/2022,Communities Housing and Environment,Customer Access,Supplies and Services,Bought In Professional Services,277,06/04/2022,2204-00058,0.00,18.00,R,A MOHAMMED,No
Http://opendatacommunities.org/id/metropolitan-district-council/leeds,Leeds City Council,30/04/2022,Communities Housing and Environment,Customer Access,Supplies and Services,Bought In Professional Services,277,06/04/2022,2204-00059,0.00,36.00,R,A MOHAMMED,No
Http://opendatacommunities.org/id/metropolitan-district-council/leeds,Leeds City Council,30/04/2022,Communities Housing and Environment,Customer Access,Supplies and Services,Bought In Professional Services,277,06/04/2022,2204-00060,0.00,22.50,R,A MOHAMMED,No
Http://opendatacommunities.org/id/metropolitan-district-council/leeds,Leeds City Council,30/04/2022,Communities Housing and Environment,Customer Access,Supplies and Services,Bought In Professional Services,277,06/04/2022,2204-00061,0.00,18.00,R,A MOHAMMED,No
Http://opendatacommunities.org/id/metropolitan-district-council/leeds,Leeds City Council,30/04/2022,Communities Housing and Environment,Customer Access,Supplies and Services,Bought In Professional Services,277,06/04/2022,2204-00062,0.00,18.00,R,A MOHAMMED,No
Http://opendatacommunities.org/id/metropolitan-district-council/leeds,Leeds City Council,30/04/2022,Communities Housing and Environment,Customer Access,Supplies and Services,Bought In Professional Services,277,06/04/2022,2204-00063,0.00,72.00,R,A MOHAMMED,No
Http://opendatacommunities.org/id/metropolitan-district-council/leeds,Leeds City Council,30/04/2022,Communities Housing and Environment,Customer Access,Supplies and Services,Bought In Professional Services,277,06/04/2022,2204-00064,0.00,18.00,R,A MOHAMMED,No
Http://opendatacommunities.org/id/metropolitan-district-council/leeds,Leeds City Council,30/04/2022,Communities Housing and Environment,Customer Access,Supplies and Services,Bought In Professional Services,277,13/04/2022,2204-00065,0.00,36.00,R,A MOHAMMED,No
Http://opendatacommunities.org/id/metropolitan-district-council/leeds,Leeds City Council,30/04/2022,Communities Housing and Environment,Customer Access,Supplies and Services,Bought In Professional Services,277,13/04/2022,2204-00066,0.00,18.00,R,A MOHAMMED,No
Http://opendatacommunities.org/id/metropolitan-district-council/leeds,Leeds City Council,30/04/2022,Communities Housing and Environment,Customer Access,Supplies and Services,Bought In Professional Services,277,13/04/2022,2204-00067,0.00,36.00,R,A MOHAMMED,No
Http://opendatacommunities.org/id/metropolitan-district-council/leeds,Leeds City Council,30/04/2022,Communities Housing and Environment,Customer Access,Supplies and Services,Bought In Professional Services,277,13/04/2022,2204-00068,0.00,18.00,R,A MOHAMMED,No
Http://opendatacommunities.org/id/metropolitan-district-council/leeds,Leeds City Council,30/04/2022,Communities Housing and Environment,Customer Access,Supplies and Services,Bought In Professional Services,277,13/04/2022,2204-00069,0.00,42.00,R,A MOHAMMED,No
Http://opendatacommunities.org/id/metropolitan-district-council/leeds,Leeds City Council,30/04/2022,Communities Housing and Environment,Customer Access,Supplies and Services,Bought In Professional Services,277,13/04/2022,2204-00070,0.00,18.00,R,A MOHAMMED,No
Http://opendatacommunities.org/id/metropolitan-district-council/leeds,Leeds City Council,30/04/2022,Communities Housing and Environment,Customer Access,Supplies and Services,Bought In Professional Services,277,13/04/2022,2204-00071,0.00,18.00,R,A MOHAMMED,No
Http://opendatacommunities.org/id/metropolitan-district-council/leeds,Leeds City Council,30/04/2022,Communities Housing and Environment,Customer Access,Supplies and Services,Bought In Professional Services,277,13/04/2022,2204-00072,0.00,27.00,R,A MOHAMMED,No
Http://opendatacommunities.org/id/metropolitan-district-council/leeds,Leeds City Council,30/04/2022,Communities Housing and Environment,Customer Access,Supplies and Services,Bought In Professional Services,277,13/04/2022,2204-00073,0.00,27.00,R,A MOHAMMED,No
Http://opendatacommunities.org/id/metropolitan-district-council/leeds,Leeds City Council,30/04/2022,Communities Housing and Environment,Customer Access,Supplies and Services,Bought In Professional Services,277,13/04/2022,2204-00074,0.00,9.00,R,A MOHAMMED,No
Http://opendatacommunities.org/id/metropolitan-district-council/leeds,Leeds City Council,30/04/2022,Communities Housing and Environment,Customer Access,Supplies and Services,Bought In Professional Services,277,13/04/2022,2204-00075,0.00,9.00,R,A MOHAMMED,No
Http://opendatacommunities.org/id/metropolitan-district-council/leeds,Leeds City Council,30/04/2022,Communities Housing and Environment,Customer Access,Supplies and Services,Bought In Professional Services,277,13/04/2022,2204-00076,0.00,27.00,R,A MOHAMMED,No
Http://opendatacommunities.org/id/metropolitan-district-council/leeds,Leeds City Council,30/04/2022,Communities Housing and Environment,Customer Access,Supplies and Services,Bought In Professional Services,277,13/04/2022,2204-00077,0.00,18.00,R,A MOHAMMED,No
Http://opendatacommunities.org/id/metropolitan-district-council/leeds,Leeds City Council,30/04/2022,Communities Housing and Environment,Customer Access,Supplies and Services,Bought In Professional Services,277,22/04/2022,2204-00078,0.00,9.00,R,A MOHAMMED,No
Http://opendatacommunities.org/id/metropolitan-district-council/leeds,Leeds City Council,30/04/2022,Communities Housing and Environment,Customer Access,Supplies and Services,Bought In Professional Services,277,22/04/2022,2204-00079,0.00,36.00,R,A MOHAMMED,No
Http://opendatacommunities.org/id/metropolitan-district-council/leeds,Leeds City Council,30/04/2022,Communities Housing and Environment,Customer Access,Supplies and Services,Bought In Professional Services,277,22/04/2022,2204-00080,0.00,18.00,R,A MOHAMMED,No
Http://opendatacommunities.org/id/metropolitan-district-council/leeds,Leeds City Council,30/04/2022,Communities Housing and Environment,Customer Access,Supplies and Services,Bought In Professional Services,277,22/04/2022,2204-00081,0.00,81.00,R,A MOHAMMED,No
Http://opendatacommunities.org/id/metropolitan-district-council/leeds,Leeds City Council,30/04/2022,Communities Housing and Environment,Customer Access,Supplies and Services,Bought In Professional Services,277,22/04/2022,2204-00082,0.00,18.00,R,A MOHAMMED,No
Http://opendatacommunities.org/id/metropolitan-district-council/leeds,Leeds City Council,30/04/2022,Communities Housing and Environment,Customer Access,Supplies and Services,Bought In Professional Services,277,22/04/2022,2204-00083,0.00,18.00,R,A MOHAMMED,No
Http://opendatacommunities.org/id/metropolitan-district-council/leeds,Leeds City Council,30/04/2022,Communities Housing and Environment,Customer Access,Supplies and Services,Bought In Professional Services,277,22/04/2022,2204-00084,0.00,18.00,R,A MOHAMMED,No
Http://opendatacommunities.org/id/metropolitan-district-council/leeds,Leeds City Council,30/04/2022,Communities Housing and Environment,Customer Access,Supplies and Services,Bought In Professional Services,277,22/04/2022,2204-00085,0.00,18.00,R,A MOHAMMED,No
Http://opendatacommunities.org/id/metropolitan-district-council/leeds,Leeds City Council,30/04/2022,Communities Housing and Environment,Customer Access,Supplies and Services,Bought In Professional Services,277,22/04/2022,2204-00086,0.00,18.00,R,A MOHAMMED,No
Http://opendatacommunities.org/id/metropolitan-district-council/leeds,Leeds City Council,30/04/2022,Communities Housing and Environment,Customer Access,Supplies and Services,Bought In Professional Services,277,27/04/2022,2204-00087,0.00,51.00,R,A MOHAMMED,No
Http://opendatacommunities.org/id/metropolitan-district-council/leeds,Leeds City Council,30/04/2022,Communities Housing and Environment,Customer Access,Supplies and Services,Bought In Professional Services,277,27/04/2022,2204-00088,0.00,18.00,R,A MOHAMMED,No
Http://opendatacommunities.org/id/metropolitan-district-council/leeds,Leeds City Council,30/04/2022,Communities Housing and Environment,Customer Access,Supplies and Services,Bought In Professional Services,277,27/04/2022,2204-00089,0.00,18.00,R,A MOHAMMED,No
Http://opendatacommunities.org/id/metropolitan-district-council/leeds,Leeds City Council,30/04/2022,Communities Housing and Environment,Customer Access,Supplies and Services,Bought In Professional Services,277,27/04/2022,2204-00090,0.00,13.50,R,A MOHAMMED,No
Http://opendatacommunities.org/id/metropolitan-district-council/leeds,Leeds City Council,30/04/2022,Communities Housing and Environment,Customer Access,Supplies and Services,Bought In Professional Services,277,27/04/2022,2204-00091,0.00,18.00,R,A MOHAMMED,No
Http://opendatacommunities.org/id/metropolitan-district-council/leeds,Leeds City Council,30/04/2022,Communities Housing and Environment,Customer Access,Supplies and Services,Bought In Professional Services,277,27/04/2022,2204-00092,0.00,18.00,R,A MOHAMMED,No
Http://opendatacommunities.org/id/metropolitan-district-council/leeds,Leeds City Council,30/04/2022,Children and Families,Social Care,Agency Payments,Services Rendered By Other Organisations,511,01/04/2022,2204-00093,0.00,2796.30,R,REDACTED PERSONAL DATA,No
Http://opendatacommunities.org/id/metropolitan-district-council/leeds,Leeds City Council,30/04/2022,Children and Families,Social Care,Agency Payments,Services Rendered By Other Organisations,511,06/04/2022,2204-00094,0.00,651.69,R,REDACTED PERSONAL DATA,No
Http://opendatacommunities.org/id/metropolitan-district-council/leeds,Leeds City Council,30/04/2022,Communities Housing and Environment,Customer Access,Supplies and Services,Bought In Professional Services,277,06/04/2022,2204-00095,0.00,31.50,R,A NAMAKI,No
Http://opendatacommunities.org/id/metropolitan-district-council/leeds,Leeds City Council,30/04/2022,Communities Housing and Environment,Customer Access,Supplies and Services,Bought In Professional Services,277,06/04/2022,2204-00096,0.00,90.00,R,A NAMAKI,No
Http://opendatacommunities.org/id/metropolitan-district-council/leeds,Leeds City Council,30/04/2022,Communities Housing and Environment,Customer Access,Supplies and Services,Bought In Professional Services,277,06/04/2022,2204-00097,0.00,27.00,R,A NAMAKI,No
Http://opendatacommunities.org/id/metropolitan-district-council/leeds,Leeds City Council,30/04/2022,Communities Housing and Environment,Customer Access,Supplies and Services,Bought In Professional Services,277,06/04/2022,2204-00098,0.00,18.00,R,A NAMAKI,No
Http://opendatacommunities.org/id/metropolitan-district-council/leeds,Leeds City Council,30/04/2022,Communities Housing and Environment,Customer Access,Supplies and Services,Bought In Professional Services,277,13/04/2022,2204-00099,0.00,18.00,R,A NAMAKI,No
Http://opendatacommunities.org/id/metropolitan-district-council/leeds,Leeds City Council,30/04/2022,Communities Housing and Environment,Customer Access,Supplies and Services,Bought In Professional Services,277,13/04/2022,2204-00100,0.00,18.00,R,A NAMAKI,No
Http://opendatacommunities.org/id/metropolitan-district-council/leeds,Leeds City Council,30/04/2022,Communities Housing and Environment,Customer Access,Supplies and Services,Bought In Professional Services,277,13/04/2022,2204-00101,0.00,18.00,R,A NAMAKI,No
Http://opendatacommunities.org/id/metropolitan-district-council/leeds,Leeds City Council,30/04/2022,Communities Housing and Environment,Customer Access,Supplies and Services,Bought In Professional Services,277,13/04/2022,2204-00102,0.00,36.00,R,A NAMAKI,No
Http://opendatacommunities.org/id/metropolitan-district-council/leeds,Leeds City Council,30/04/2022,Communities Housing and Environment,Customer Access,Supplies and Services,Bought In Professional Services,277,13/04/2022,2204-00103,0.00,27.00,R,A NAMAKI,No
Http://opendatacommunities.org/id/metropolitan-district-council/leeds,Leeds City Council,30/04/2022,Communities Housing and Environment,Customer Access,Supplies and Services,Bought In Professional Services,277,13/04/2022,2204-00104,0.00,90.00,R,A NAMAKI,No
Http://opendatacommunities.org/id/metropolitan-district-council/leeds,Leeds City Council,30/04/2022,Communities Housing and Environment,Customer Access,Supplies and Services,Bought In Professional Services,277,22/04/2022,2204-00105,0.00,90.00,R,A NAMAKI,No
Http://opendatacommunities.org/id/metropolitan-district-council/leeds,Leeds City Council,30/04/2022,Communities Housing and Environment,Customer Access,Supplies and Services,Bought In Professional Services,277,22/04/2022,2204-00106,0.00,18.00,R,A NAMAKI,No
Http://opendatacommunities.org/id/metropolitan-district-council/leeds,Leeds City Council,30/04/2022,Communities Housing and Environment,Customer Access,Supplies and Services,Bought In Professional Services,277,22/04/2022,2204-00107,0.00,36.00,R,A NAMAKI,No
Http://opendatacommunities.org/id/metropolitan-district-council/leeds,Leeds City Council,30/04/2022,Communities Housing and Environment,Customer Access,Supplies and Services,Bought In Professional Services,277,22/04/2022,2204-00108,0.00,72.00,R,A NAMAKI,No
Http://opendatacommunities.org/id/metropolitan-district-council/leeds,Leeds City Council,30/04/2022,Communities Housing and Environment,Customer Access,Supplies and Services,Bought In Professional Services,277,22/04/2022,2204-00109,0.00,18.00,R,A NAMAKI,No
Http://opendatacommunities.org/id/metropolitan-district-council/leeds,Leeds City Council,30/04/2022,Communities Housing and Environment,Customer Access,Supplies and Services,Bought In Professional Services,277,22/04/2022,2204-00110,0.00,18.00,R,A NAMAKI,No
Http://opendatacommunities.org/id/metropolitan-district-council/leeds,Leeds City Council,30/04/2022,Communities Housing and Environment,Customer Access,Supplies and Services,Bought In Professional Services,277,27/04/2022,2204-00111,0.00,18.00,R,A NAMAKI,No
Http://opendatacommunities.org/id/metropolitan-district-council/leeds,Leeds City Council,30/04/2022,Communities Housing and Environment,Customer Access,Supplies and Services,Bought In Professional Services,277,27/04/2022,2204-00112,0.00,18.00,R,A NAMAKI,No
Http://opendatacommunities.org/id/metropolitan-district-council/leeds,Leeds City Council,30/04/2022,Communities Housing and Environment,Customer Access,Supplies and Services,Bought In Professional Services,277,27/04/2022,2204-00113,0.00,18.00,R,A NAMAKI,No
Http://opendatacommunities.org/id/metropolitan-district-council/leeds,Leeds City Council,30/04/2022,Communities Housing and Environment,Customer Access,Supplies and Services,Bought In Professional Services,277,27/04/2022,2204-00114,0.00,18.00,R,A NAMAKI,No
Http://opendatacommunities.org/id/metropolitan-district-council/leeds,Leeds City Council,30/04/2022,Communities Housing and Environment,Customer Access,Supplies and Services,Bought In Professional Services,277,27/04/2022,2204-00115,0.00,54.00,R,A NAMAKI,No
Http://opendatacommunities.org/id/metropolitan-district-council/leeds,Leeds City Council,30/04/2022,Communities Housing and Environment,Benefits Wlefare and Poverty,Supplies and Services,Grant Related Expenditure,290,12/04/2022,2204-00116,0.00,500.00,R,REDACTED PERSONAL DATA,No
Http://opendatacommunities.org/id/metropolitan-district-council/leeds,Leeds City Council,30/04/2022,Children and Families,Social Care,Agency Payments,Services Rendered By Other Organisations,511,01/04/2022,2204-00117,0.00,372.84,R,REDACTED PERSONAL DATA,No
Http://opendatacommunities.org/id/metropolitan-district-council/leeds,Leeds City Council,30/04/2022,City Development,Libraries Arts & Heritage,Supplies and Services,Non-Recurring Grants,227,06/04/2022,2204-00118,0.00,2000.00,R,A Quiet Word Ltd,No
Http://opendatacommunities.org/id/metropolitan-district-council/leeds,Leeds City Council,30/04/2022,Strategic Landlord,HRA Housing Leeds,Capital,OTHER COSTS,7,28/04/2022,2204-00119,0.00,80.00,C,REDACTED PERSONAL DATA,No
Http://opendatacommunities.org/id/metropolitan-district-council/leeds,Leeds City Council,30/04/2022,Strategic Landlord,HRA Housing Leeds,Capital,OTHER COSTS,7,29/04/2022,2204-00120,0.00,100.00,C,REDACTED PERSONAL DATA,No
Http://opendatacommunities.org/id/metropolitan-district-council/leeds,Leeds City Council,30/04/2022,Children and Families,Social Care,Agency Payments,Services Rendered By Other Organisations,511,01/04/2022,2204-00121,0.00,372.84,R,REDACTED PERSONAL DATA,No
Http://opendatacommunities.org/id/metropolitan-district-council/leeds,Leeds City Council,30/04/2022,Children and Families,Social Care,Agency Payments,Placement Support,550,01/04/2022,2204-00122,0.00,148.50,R,A Strevett-Smith,No
Http://opendatacommunities.org/id/metropolitan-district-council/leeds,Leeds City Council,30/04/2022,Children and Families,Social Care,Agency Payments,Placement Support,550,01/04/2022,2204-00123,0.00,148.50,R,A Strevett-Smith,No
Http://opendatacommunities.org/id/metropolitan-district-council/leeds,Leeds City Council,30/04/2022,Communities Housing and Environment,Waste Management,Employees,Training & Development,70,29/04/2022,2204-00124,0.00,144.80,R,A T Nerac Ltd,No
Http://opendatacommunities.org/id/metropolitan-district-council/leeds,Leeds City Council,30/04/2022,Children and Families,Social Care,Agency Payments,Independent Fostering Agencies,509,08/04/2022,2204-00125,0.00,1080.00,R,A Taxis,No
Http://opendatacommunities.org/id/metropolitan-district-council/leeds,Leeds City Council,30/04/2022,Strategic Landlord,HRA Housing Leeds,Capital,OTHER COSTS,7,25/04/2022,2204-00126,0.00,100.00,C,REDACTED PERSONAL DATA,No
Http://opendatacommunities.org/id/metropolitan-district-council/leeds,Leeds City Council,30/04/2022,Children and Families,Social Care,Agency Payments,Services Rendered By Other Organisations,511,01/04/2022,2204-00127,0.00,372.84,R,REDACTED PERSONAL DATA,No
Http://opendatacommunities.org/id/metropolitan-district-council/leeds,Leeds City Council,30/04/2022,Children and Families,Social Care,Agency Payments,Services Rendered By Other Organisations,511,01/04/2022,2204-00128,0.00,186.42,R,REDACTED PERSONAL DATA,No
Http://opendatacommunities.org/id/metropolitan-district-council/leeds,Leeds City Council,30/04/2022,Children and Families,Social Care,Agency Payments,General External Residential Placements,507,01/04/2022,2204-00129,0.00,30114.33,R,A Wilderness Way Ltd,No
Http://opendatacommunities.org/id/metropolitan-district-council/leeds,Leeds City Council,30/04/2022,Strategic Landlord,HRA Housing Leeds,Capital,OTHER COSTS,7,21/04/2022,2204-00130,0.00,100.00,C,REDACTED PERSONAL DATA,No
Http://opendatacommunities.org/id/metropolitan-district-council/leeds,Leeds City Council,30/04/2022,Resources,Leeds Building Services,Supplies and Services,Operational Materials,205,01/04/2022,2204-00131,0.00,1015.00,R,A1 STAIR LIFT SERVICES,No
Http://opendatacommunities.org/id/metropolitan-district-council/leeds,Leeds City Council,30/04/2022,Resources,Leeds Building Services,Supplies and Services,Operational Materials,205,01/04/2022,2204-00132,0.00,1600.00,R,A1 STAIR LIFT SERVICES,No
Http://opendatacommunities.org/id/metropolitan-district-council/leeds,Leeds City Council,30/04/2022,Resources,Leeds Building Services,Supplies and Services,Other Hired And Contracted Services,265,08/04/2022,2204-00133,0.00,2662.99,R,A1 STAIR LIFT SERVICES,No
Http://opendatacommunities.org/id/metropolitan-district-council/leeds,Leeds City Council,30/04/2022,Communities Housing and Environment,Parks and Countryside,Supplies and Services,Food & Drink,231,30/03/2022,2204-00134,0.00,76.00,R,Aagrah Foods,Yes
Http://opendatacommunities.org/id/metropolitan-district-council/leeds,Leeds City Council,30/04/2022,Communities Housing and Environment,Strategic Housing Partnership & Support,Supplies and Services,Other Hired And Contracted Services,265,08/04/2022,2204-00135,0.00,1025.00,R,Aaron Bates,No
Http://opendatacommunities.org/id/metropolitan-district-council/leeds,Leeds City Council,30/04/2022,Adults and Health,Services For Older People - 65 And Over,Agency Payments,Residential Care Dementia,571,27/04/2022,2204-00136,0.00,1254.26,R,Aaron Court Care Home,No
Http://opendatacommunities.org/id/metropolitan-district-council/leeds,Leeds City Council,30/04/2022,Communities Housing and Environment,Benefits Wlefare and Poverty,Supplies and Services,Grant Related Expenditure,298,01/04/2022,2204-00137,0.00,500.00,R,REDACTED PERSONAL DATA,No
Http://opendatacommunities.org/id/metropolitan-district-council/leeds,Leeds City Council as Accountable Body,30/04/2022,Social Services Pooled Budgets,Leeds Community Equip Store Pooled Budgt,Supplies and Services,Other Equipment,203,07/04/2022,2204-00138,0.00,1395.00,R,AAT (GB) LTD,No
Http://opendatacommunities.org/id/metropolitan-district-council/leeds,Leeds City Council,30/04/2022,Children and Families,Social Care,Agency Payments,Placement Support,550,20/04/2022,2204-00139,0.00,745.00,R,AAT (GB) LTD,No
Http://opendatacommunities.org/id/metropolitan-district-council/leeds,Leeds City Council as Accountable Body,30/04/2022,Social Services Pooled Budgets,Leeds Community Equip Store Pooled Budgt,Supplies and Services,Other Equipment,203,20/04/2022,2204-00140,0.00,64.00,R,AAT (GB) LTD,No
Http://opendatacommunities.org/id/metropolitan-district-council/leeds,Leeds City Council as Accountable Body,30/04/2022,Social Services Pooled Budgets,Jcs For People With Learning Disabilitie,Supplies and Services,Other Equipment,203,21/04/2022,2204-00141,0.00,1604.00,R,AAT (GB) LTD,No
Http://opendatacommunities.org/id/metropolitan-district-council/leeds,Leeds City Council as Accountable Body,30/04/2022,Social Services Pooled Budgets,Leeds Community Equip Store Pooled Budgt,Supplies and Services,Other Equipment,203,22/04/2022,2204-00142,0.00,5788.00,R,AAT (GB) LTD,No
Http://opendatacommunities.org/id/metropolitan-district-council/leeds,Leeds City Council as Accountable Body,30/04/2022,Social Services Pooled Budgets,Jcs For People With Learning Disabilitie,Supplies and Services,Other Equipment,203,29/04/2022,2204-00143,0.00,350.00,R,AAT (GB) LTD,No
Http://opendatacommunities.org/id/metropolitan-district-council/leeds,Leeds City Council as Accountable Body,30/04/2022,Social Services Pooled Budgets,Leeds Community Equip Store Pooled Budgt,Supplies and Services,Other Equipment,203,29/04/2022,2204-00144,0.00,1474.00,R,AAT (GB) LTD,No
Http://opendatacommunities.org/id/metropolitan-district-council/leeds,Leeds City Council as Accountable Body,30/04/2022,Social Services Pooled Budgets,Jcs For People With Learning Disabilitie,Agency Payments,Residential,580,27/04/2022,2204-00145,0.00,11720.20,R,Abbey Care And Education,No
Http://opendatacommunities.org/id/metropolitan-district-council/leeds,Leeds City Council,30/04/2022,Resources,Human Resources,Employees,Occupational Health,85,13/04/2022,2204-00146,0.00,40.00,R,Abbey Grange Medical Practice,No
Http://opendatacommunities.org/id/metropolitan-district-council/leeds,Leeds City Council,30/04/2022,Children and Families,Learning,Supplies and Services,Food & Drink,231,07/04/2022,2204-00147,0.00,204.00,R,Abbey Multi Academy Trust,No
Http://opendatacommunities.org/id/metropolitan-district-council/leeds,Leeds City Council,30/04/2022,Communities Housing and Environment,Benefits Wlefare and Poverty,Supplies and Services,Schools related grant expenditure,299,20/04/2022,2204-00148,0.00,165.00,R,Abbey Multi Academy Trust,No
Http://opendatacommunities.org/id/metropolitan-district-council/leeds,Leeds City Council,30/04/2022,Communities Housing and Environment,Benefits Wlefare and Poverty,Appropriations,DSG Payments to Academies,615,20/04/2022,2204-00149,0.00,20500.00,R,Abbey Multi Academy Trust,No
Http://opendatacommunities.org/id/metropolitan-district-council/leeds,Leeds City Council,30/04/2022,Communities Housing and Environment,Benefits Wlefare and Poverty,Supplies and Services,Grant Related Expenditure,298,01/04/2022,2204-00150,0.00,500.00,R,REDACTED PERSONAL DATA,No
Http://opendatacommunities.org/id/metropolitan-district-council/leeds,Leeds City Council,30/04/2022,Communities Housing and Environment,Parks and Countryside,Supplies and Services,Other Hired And Contracted Services,265,22/04/2022,2204-00151,0.00,4700.00,R,Abbotts Memorials,No
Http://opendatacommunities.org/id/metropolitan-district-council/leeds,Leeds City Council,30/04/2022,Communities Housing and Environment,Parks and Countryside,Supplies and Services,Other Hired And Contracted Services,265,22/04/2022,2204-00152,0.00,3300.00,R,Abbotts Memorials,No
Http://opendatacommunities.org/id/metropolitan-district-council/leeds,Leeds City Council,30/04/2022,Communities Housing and Environment,Parks and Countryside,Supplies and Services,Other Hired And Contracted Services,265,22/04/2022,2204-00153,0.00,3850.00,R,Abbotts Memorials,No
Http://opendatacommunities.org/id/metropolitan-district-council/leeds,Leeds City Council,30/04/2022,Children and Families,Social Care,Agency Payments,General External Residential Placements,507,01/04/2022,2204-00154,0.00,15942.99,R,ABC Care and Educationd LTD,No
Http://opendatacommunities.org/id/metropolitan-district-council/leeds,Leeds City Council,30/04/2022,Communities Housing and Environment,Environmental Health,Supplies and Services,Other Hired And Contracted Services,265,21/04/2022,2204-00155,0.00,2145.00,R,Abc Food Law Limited,No
Http://opendatacommunities.org/id/metropolitan-district-council/leeds,Leeds City Council,30/04/2022,Children and Families,Social Care,Agency Payments,Services Rendered By Other Organisations,511,01/04/2022,2204-00156,0.00,9507.42,R,ABC NURSERY AT LUFC,No
Http://opendatacommunities.org/id/metropolitan-district-council/leeds,Leeds City Council,30/04/2022,Children and Families,Social Care,Agency Payments,Services Rendered By Other Organisations,511,06/04/2022,2204-00157,0.00,3475.68,R,ABC NURSERY AT LUFC,No
Http://opendatacommunities.org/id/metropolitan-district-council/leeds,Leeds City Council,30/04/2022,Children and Families,Social Care,Agency Payments,Services Rendered By Voluntary Sector,505,25/04/2022,2204-00158,0.00,2708.33,R,ABC NURSERY AT LUFC,No
Http://opendatacommunities.org/id/metropolitan-district-council/leeds,Leeds City Council,30/04/2022,Children and Families,Social Care,Agency Payments,Services Rendered By Other Organisations,511,01/04/2022,2204-00159,0.00,8202.48,R,Abc@D'S Childcare,No
Http://opendatacommunities.org/id/metropolitan-district-council/leeds,Leeds City Council,30/04/2022,Children and Families,Social Care,Agency Payments,Services Rendered By Other Organisations,511,06/04/2022,2204-00160,0.00,1303.38,R,Abc@D'S Childcare,No
Http://opendatacommunities.org/id/metropolitan-district-council/leeds,Leeds City Council,30/04/2022,Children and Families,Social Care,Agency Payments,Services Rendered By Voluntary Sector,505,25/04/2022,2204-00161,0.00,2708.33,R,Abc@D'S Childcare,No
Http://opendatacommunities.org/id/metropolitan-district-council/leeds,Leeds City Council,30/04/2022,Communities Housing and Environment,Benefits Wlefare and Poverty,Supplies and Services,Grant Related Expenditure,298,06/04/2022,2204-00162,0.00,500.00,R,REDACTED PERSONAL DATA,No
Http://opendatacommunities.org/id/metropolitan-district-council/leeds,Leeds City Council,30/04/2022,Communities Housing and Environment,Customer Access,Supplies and Services,Bought In Professional Services,277,13/04/2022,2204-00163,0.00,18.00,R,Abdiqafar Abdullahi,No
Http://opendatacommunities.org/id/metropolitan-district-council/leeds,Leeds City Council,30/04/2022,Communities Housing and Environment,Customer Access,Supplies and Services,Bought In Professional Services,277,22/04/2022,2204-00164,0.00,27.00,R,Abdiqafar Abdullahi,No
Http://opendatacommunities.org/id/metropolitan-district-council/leeds,Leeds City Council,30/04/2022,Communities Housing and Environment,Customer Access,Supplies and Services,Bought In Professional Services,277,22/04/2022,2204-00165,0.00,27.00,R,Abdiqafar Abdullahi,No
Http://opendatacommunities.org/id/metropolitan-district-council/leeds,Leeds City Council,30/04/2022,Communities Housing and Environment,Customer Access,Supplies and Services,Bought In Professional Services,277,27/04/2022,2204-00166,0.00,13.50,R,Abdiqafar Abdullahi,No
Http://opendatacommunities.org/id/metropolitan-district-council/leeds,Leeds City Council,30/04/2022,Communities Housing and Environment,Customer Access,Supplies and Services,Bought In Professional Services,277,27/04/2022,2204-00167,0.00,13.50,R,Abdiqafar Abdullahi,No
Http://opendatacommunities.org/id/metropolitan-district-council/leeds,Leeds City Council,30/04/2022,Communities Housing and Environment,Customer Access,Supplies and Services,Bought In Professional Services,277,27/04/2022,2204-00168,0.00,13.50,R,Abdiqafar Abdullahi,No
Http://opendatacommunities.org/id/metropolitan-district-council/leeds,Leeds City Council,30/04/2022,Communities Housing and Environment,Customer Access,Supplies and Services,Bought In Professional Services,277,27/04/2022,2204-00169,0.00,27.00,R,Abdiqafar Abdullahi,No
Http://opendatacommunities.org/id/metropolitan-district-council/leeds,Leeds City Council,30/04/2022,Communities Housing and Environment,Customer Access,Supplies and Services,Bought In Professional Services,277,06/04/2022,2204-00170,0.00,45.00,R,Abdul Kalam,No
Http://opendatacommunities.org/id/metropolitan-district-council/leeds,Leeds City Council,30/04/2022,Communities Housing and Environment,Customer Access,Supplies and Services,Bought In Professional Services,277,27/04/2022,2204-00171,0.00,45.00,R,Abdul Kalam,No
Http://opendatacommunities.org/id/metropolitan-district-council/leeds,Leeds City Council,30/04/2022,Communities Housing and Environment,Customer Access,Supplies and Services,Bought In Professional Services,277,06/04/2022,2204-00172,0.00,18.00,R,Abdulahad Denha,No
Http://opendatacommunities.org/id/metropolitan-district-council/leeds,Leeds City Council,30/04/2022,Communities Housing and Environment,Customer Access,Supplies and Services,Bought In Professional Services,277,13/04/2022,2204-00173,0.00,36.00,R,Abdulahad Denha,No
Http://opendatacommunities.org/id/metropolitan-district-council/leeds,Leeds City Council,30/04/2022,Communities Housing and Environment,Customer Access,Supplies and Services,Bought In Professional Services,277,22/04/2022,2204-00174,0.00,18.00,R,Abdulahad Denha,No
Http://opendatacommunities.org/id/metropolitan-district-council/leeds,Leeds City Council,30/04/2022,Communities Housing and Environment,Customer Access,Supplies and Services,Bought In Professional Services,277,22/04/2022,2204-00175,0.00,18.00,R,Abdulahad Denha,No
Http://opendatacommunities.org/id/metropolitan-district-council/leeds,Leeds City Council,30/04/2022,Communities Housing and Environment,Customer Access,Supplies and Services,Bought In Professional Services,277,27/04/2022,2204-00176,0.00,18.00,R,Abdulahad Denha,No
Http://opendatacommunities.org/id/metropolitan-district-council/leeds,Leeds City Council,30/04/2022,Communities Housing and Environment,Customer Access,Supplies and Services,Bought In Professional Services,277,27/04/2022,2204-00177,0.00,9.00,R,Abdulahad Denha,No
Http://opendatacommunities.org/id/metropolitan-district-council/leeds,Leeds City Council,30/04/2022,Communities Housing and Environment,Customer Access,Supplies and Services,Bought In Professional Services,277,27/04/2022,2204-00178,0.00,9.00,R,Abdulahad Denha,No
Http://opendatacommunities.org/id/metropolitan-district-council/leeds,Leeds City Council,30/04/2022,Communities Housing and Environment,Customer Access,Supplies and Services,Bought In Professional Services,277,27/04/2022,2204-00179,0.00,18.00,R,Abdulahad Denha,No
Http://opendatacommunities.org/id/metropolitan-district-council/leeds,Leeds City Council,30/04/2022,City Development,Libraries Arts & Heritage,Supplies and Services,Other Hired And Contracted Services,265,19/04/2022,2204-00180,0.00,800.00,R,Abdullah Adekola,No
Http://opendatacommunities.org/id/metropolitan-district-council/leeds,Leeds City Council,30/04/2022,Communities Housing and Environment,Customer Access,Supplies and Services,Bought In Professional Services,277,22/04/2022,2204-00181,0.00,13.50,R,Abdulrahim Dastyar,No
Http://opendatacommunities.org/id/metropolitan-district-council/leeds,Leeds City Council,30/04/2022,Communities Housing and Environment,Customer Access,Supplies and Services,Bought In Professional Services,277,27/04/2022,2204-00182,0.00,9.00,R,Abdulrahim Dastyar,No
Http://opendatacommunities.org/id/metropolitan-district-council/leeds,Leeds City Council,30/04/2022,Communities Housing and Environment,Customer Access,Supplies and Services,Bought In Professional Services,277,27/04/2022,2204-00183,0.00,9.00,R,Abdulrahim Dastyar,No
Http://opendatacommunities.org/id/metropolitan-district-council/leeds,Leeds City Council,30/04/2022,Strategic Accounts,Strategic,Supplies and Services,Non-Recurring Grants,227,01/04/2022,2204-00184,0.00,342.00,R,ABERFORD AND DISTRICT PARISH COUNCIL,No
Http://opendatacommunities.org/id/metropolitan-district-council/leeds,Leeds City Council,30/04/2022,Strategic Accounts,Strategic,Supplies and Services,Office Consumables,210,01/04/2022,2204-00185,0.00,22000.00,R,ABERFORD AND DISTRICT PARISH COUNCIL,No
Http://opendatacommunities.org/id/metropolitan-district-council/leeds,Leeds City Council,30/04/2022,Children and Families,Social Care,Agency Payments,Placement Support,550,07/04/2022,2204-00186,0.00,150.00,R,Aberford Childcare Services,No
Http://opendatacommunities.org/id/metropolitan-district-council/leeds,Leeds City Council,30/04/2022,Children and Families,Social Care,Agency Payments,Placement Support,550,08/04/2022,2204-00187,0.00,500.00,R,Aberford Childcare Services,No
Http://opendatacommunities.org/id/metropolitan-district-council/leeds,Leeds City Council,30/04/2022,Children and Families,Social Care,Agency Payments,Placement Support,550,08/04/2022,2204-00188,0.00,600.00,R,Aberford Childcare Services,No
Http://opendatacommunities.org/id/metropolitan-district-council/leeds,Leeds City Council,30/04/2022,Children and Families,Social Care,Agency Payments,Placement Support,550,29/04/2022,2204-00189,0.00,750.00,R,Aberford Childcare Services,No
Http://opendatacommunities.org/id/metropolitan-district-council/leeds,Leeds City Council,30/04/2022,Adults and Health,Services For Older People - 65 And Over,Agency Payments,Residential,580,01/04/2022,2204-00190,0.00,16380.00,R,Aberford Hall,No
Http://opendatacommunities.org/id/metropolitan-district-council/leeds,Leeds City Council,30/04/2022,Adults and Health,Services For Older People - 65 And Over,Agency Payments,Nursing Home,570,27/04/2022,2204-00191,0.00,45145.69,R,Aberford Hall,No
Http://opendatacommunities.org/id/metropolitan-district-council/leeds,Leeds City Council,30/04/2022,Resources,Leeds Building Services,Supplies and Services,Operational Materials,205,01/04/2022,2204-00192,0.00,376.17,R,ABI GARAGE DOORS LTD,No
Http://opendatacommunities.org/id/metropolitan-district-council/leeds,Leeds City Council,30/04/2022,Resources,Leeds Building Services,Supplies and Services,Operational Materials,205,01/04/2022,2204-00193,0.00,337.79,R,ABI GARAGE DOORS LTD,No
Http://opendatacommunities.org/id/metropolitan-district-council/leeds,Leeds City Council,30/04/2022,Resources,Leeds Building Services,Supplies and Services,Operational Materials,205,01/04/2022,2204-00194,0.00,363.22,R,ABI GARAGE DOORS LTD,No
Http://opendatacommunities.org/id/metropolitan-district-council/leeds,Leeds City Council,30/04/2022,Resources,Leeds Building Services,Supplies and Services,Operational Materials,205,01/04/2022,2204-00195,0.00,363.22,R,ABI GARAGE DOORS LTD,No
Http://opendatacommunities.org/id/metropolitan-district-council/leeds,Leeds City Council,30/04/2022,Resources,Leeds Building Services,Supplies and Services,Operational Materials,205,01/04/2022,2204-00196,0.00,404.65,R,ABI GARAGE DOORS LTD,No
Http://opendatacommunities.org/id/metropolitan-district-council/leeds,Leeds City Council,30/04/2022,Resources,Leeds Building Services,Supplies and Services,Operational Materials,205,08/04/2022,2204-00197,0.00,362.15,R,ABI GARAGE DOORS LTD,No
Http://opendatacommunities.org/id/metropolitan-district-council/leeds,Leeds City Council,30/04/2022,Resources,Leeds Building Services,Supplies and Services,Operational Materials,205,08/04/2022,2204-00198,0.00,362.15,R,ABI GARAGE DOORS LTD,No
Http://opendatacommunities.org/id/metropolitan-district-council/leeds,Leeds City Council,30/04/2022,Resources,Leeds Building Services,Supplies and Services,Operational Materials,205,08/04/2022,2204-00199,0.00,362.15,R,ABI GARAGE DOORS LTD,No
Http://opendatacommunities.org/id/metropolitan-district-council/leeds,Leeds City Council,30/04/2022,Resources,Leeds Building Services,Supplies and Services,Operational Materials,205,08/04/2022,2204-00200,0.00,362.15,R,ABI GARAGE DOORS LTD,No
Http://opendatacommunities.org/id/metropolitan-district-council/leeds,Leeds City Council,30/04/2022,Resources,Leeds Building Services,Supplies and Services,Operational Materials,205,14/04/2022,2204-00201,0.00,371.16,R,ABI GARAGE DOORS LTD,No
Http://opendatacommunities.org/id/metropolitan-district-council/leeds,Leeds City Council,30/04/2022,Resources,Leeds Building Services,Supplies and Services,Operational Materials,205,14/04/2022,2204-00202,0.00,362.15,R,ABI GARAGE DOORS LTD,No
Http://opendatacommunities.org/id/metropolitan-district-council/leeds,Leeds City Council,30/04/2022,Communities Housing and Environment,Customer Access,Supplies and Services,Bought In Professional Services,277,22/04/2022,2204-00203,0.00,13.50,R,Abida Begum,No
Http://opendatacommunities.org/id/metropolitan-district-council/leeds,Leeds City Council,30/04/2022,Children and Families,Social Care,Transport,Fuel (Non LCC Supplies),321,26/04/2022,2204-00204,0.00,65.00,R,REDACTED PERSONAL DATA,No
Http://opendatacommunities.org/id/metropolitan-district-council/leeds,Leeds City Council,30/04/2022,Strategic Landlord,Property and Contracts,Internal Recharges,Legal Disbursements,411,05/04/2022,2204-00205,0.00,375.00,R,Abigail Cheetham,No
Http://opendatacommunities.org/id/metropolitan-district-council/leeds,Leeds City Council,30/04/2022,Communities Housing and Environment,Car Parking Services,External Income,Penalties Fines & Car Parking Charges,934,13/04/2022,2204-00206,0.00,30.00,R,REDACTED PERSONAL DATA,No
Http://opendatacommunities.org/id/metropolitan-district-council/leeds,Leeds City Council,30/04/2022,Children and Families,Social Care,Agency Payments,Contact,548,27/04/2022,2204-00207,0.00,17.56,R,REDACTED PERSONAL DATA,No
Http://opendatacommunities.org/id/metropolitan-district-council/leeds,Leeds City Council,30/04/2022,City Development,Recreation,External Income,Sporting & Other Recreational Fees,928,26/04/2022,2204-00208,0.00,36.00,R,REDACTED PERSONAL DATA,No
Http://opendatacommunities.org/id/metropolitan-district-council/leeds,Leeds City Council,30/04/2022,Children and Families,Social Care,Appropriations,Leaving Care Allowances,634,12/04/2022,2204-00209,0.00,79.99,R,REDACTED PERSONAL DATA,No
Http://opendatacommunities.org/id/metropolitan-district-council/leeds,Leeds City Council,30/04/2022,Children and Families,Social Care,Agency Payments, Direct Work,549,13/04/2022,2204-00210,0.00,1.50,R,REDACTED PERSONAL DATA,No
Http://opendatacommunities.org/id/metropolitan-district-council/leeds,Leeds City Council,30/04/2022,Children and Families,Social Care,Appropriations,Leaving Care Allowances,634,13/04/2022,2204-00211,0.00,2.00,R,REDACTED PERSONAL DATA,No
Http://opendatacommunities.org/id/metropolitan-district-council/leeds,Leeds City Council,30/04/2022,Children and Families,Social Care,Appropriations,Leaving Care Allowances,634,13/04/2022,2204-00212,0.00,69.99,R,REDACTED PERSONAL DATA,No
Http://opendatacommunities.org/id/metropolitan-district-council/leeds,Leeds City Council,30/04/2022,Children and Families,Social Care,Appropriations,Leaving Care Allowances,634,13/04/2022,2204-00213,0.00,20.00,R,REDACTED PERSONAL DATA,No
Http://opendatacommunities.org/id/metropolitan-district-council/leeds,Leeds City Council,30/04/2022,Communities Housing and Environment,Strategic Housing Partnership & Support,Capital,CONSTRUCTION,3,14/04/2022,2204-00214,0.00,11296.00,C,Ability Wetrooms Limited,No
Http://opendatacommunities.org/id/metropolitan-district-council/leeds,Leeds City Council,30/04/2022,Children and Families,Social Care,Agency Payments,General External Residential Placements,507,06/04/2022,2204-00215,0.00,18262.72,R,Absolute Children's Services Ltd,No
Http://opendatacommunities.org/id/metropolitan-district-council/leeds,Leeds City Council,30/04/2022,Children and Families,Social Care,Agency Payments,General External Residential Placements,507,27/04/2022,2204-00216,0.00,17692.01,R,Absolute Children's Services Ltd,No
Http://opendatacommunities.org/id/metropolitan-district-council/leeds,Leeds City Council,30/04/2022,Adults and Health,Services For Older People - 65 And Over,Supplies and Services,Computer Software & Equipment,214,03/03/2022,2204-00217,0.00,85.50,R,Absolute Lanyards,Yes
Http://opendatacommunities.org/id/metropolitan-district-council/leeds,Leeds City Council,30/04/2022,Communities Housing and Environment,Parks and Countryside,Supplies and Services,Other Hired And Contracted Services,265,28/03/2022,2204-00218,0.00,40.00,R,Abwak.Org Purchase,Yes
Http://opendatacommunities.org/id/metropolitan-district-council/leeds,Leeds City Council,30/04/2022,Adults and Health,Service Strategy,Supplies and Services,Other Hired And Contracted Services,265,29/04/2022,2204-00219,0.00,3250.00,R,Acainn Ltd,No
Http://opendatacommunities.org/id/metropolitan-district-council/leeds,Leeds City Council,30/04/2022,Communities Housing and Environment,Strategic Housing Partnership & Support,Supplies and Services,Other Hired And Contracted Services,265,07/04/2022,2204-00220,0.00,552.44,R,Accent Foundation Ltd,No
Http://opendatacommunities.org/id/metropolitan-district-council/leeds,Leeds City Council,30/04/2022,Adults and Health,Services For Older People - 65 And Over,Premises,Maintenance Of Buildings,101,15/03/2022,2204-00221,0.00,80.50,R,Access Locksmiths,Yes
Http://opendatacommunities.org/id/metropolitan-district-council/leeds,Leeds City Council,30/04/2022,Resources,Leeds Building Services,Supplies and Services,Operational Materials,205,08/04/2022,2204-00222,0.00,34.38,R,ACCESS LOCKSMITHS (LEEDS) LIMITED,No
Http://opendatacommunities.org/id/metropolitan-district-council/leeds,Leeds City Council,30/04/2022,Resources,Leeds Building Services,Supplies and Services,Operational Materials,205,08/04/2022,2204-00223,0.00,19.34,R,ACCESS LOCKSMITHS (LEEDS) LIMITED,No
Http://opendatacommunities.org/id/metropolitan-district-council/leeds,Leeds City Council,30/04/2022,Resources,Leeds Building Services,Supplies and Services,Operational Materials,205,08/04/2022,2204-00224,0.00,449.94,R,ACCESS LOCKSMITHS (LEEDS) LIMITED,No
Http://opendatacommunities.org/id/metropolitan-district-council/leeds,Leeds City Council,30/04/2022,Resources,Leeds Building Services,Supplies and Services,Operational Materials,205,08/04/2022,2204-00225,0.00,17.00,R,ACCESS LOCKSMITHS (LEEDS) LIMITED,No
Http://opendatacommunities.org/id/metropolitan-district-council/leeds,Leeds City Council,30/04/2022,Resources,Leeds Building Services,Supplies and Services,Operational Materials,205,08/04/2022,2204-00226,0.00,37.40,R,ACCESS LOCKSMITHS (LEEDS) LIMITED,No
Http://opendatacommunities.org/id/metropolitan-district-council/leeds,Leeds City Council,30/04/2022,Strategic Landlord,HRA Housing Leeds,Capital,OTHER COSTS,7,08/04/2022,2204-00227,0.00,26.28,C,ACCESS LOCKSMITHS (LEEDS) LIMITED,No
Http://opendatacommunities.org/id/metropolitan-district-council/leeds,Leeds City Council,30/04/2022,Strategic Landlord,Housing Management,Supplies and Services,Resaleable Materials,204,08/04/2022,2204-00228,0.00,124.00,R,ACCESS LOCKSMITHS (LEEDS) LIMITED,No
Http://opendatacommunities.org/id/metropolitan-district-council/leeds,Leeds City Council,30/04/2022,Strategic Landlord,Housing Management,Supplies and Services,Resaleable Materials,204,08/04/2022,2204-00229,0.00,3.85,R,ACCESS LOCKSMITHS (LEEDS) LIMITED,No
Http://opendatacommunities.org/id/metropolitan-district-council/leeds,Leeds City Council,30/04/2022,Strategic Landlord,Housing Management,Supplies and Services,Grant Related Expenditure,298,08/04/2022,2204-00230,0.00,288.36,R,ACCESS LOCKSMITHS (LEEDS) LIMITED,No
Http://opendatacommunities.org/id/metropolitan-district-council/leeds,Leeds City Council,30/04/2022,Strategic Landlord,Property and Contracts,Premises,General Maintenance,104,22/04/2022,2204-00231,0.00,162.57,R,ACCESS LOCKSMITHS (LEEDS) LIMITED,No
Http://opendatacommunities.org/id/metropolitan-district-council/leeds,Leeds City Council,30/04/2022,Strategic Landlord,Property and Contracts,Premises,General Maintenance,104,22/04/2022,2204-00232,0.00,326.60,R,ACCESS LOCKSMITHS (LEEDS) LIMITED,No
Http://opendatacommunities.org/id/metropolitan-district-council/leeds,Leeds City Council,30/04/2022,Strategic Landlord,Property and Contracts,Premises,General Maintenance,104,22/04/2022,2204-00233,0.00,45.83,R,ACCESS LOCKSMITHS (LEEDS) LIMITED,No
Http://opendatacommunities.org/id/metropolitan-district-council/leeds,Leeds City Council,30/04/2022,Strategic Landlord,Property and Contracts,Premises,General Maintenance,104,22/04/2022,2204-00234,0.00,176.04,R,ACCESS LOCKSMITHS (LEEDS) LIMITED,No
Http://opendatacommunities.org/id/metropolitan-district-council/leeds,Leeds City Council,30/04/2022,Strategic Landlord,Property and Contracts,Premises,General Maintenance,104,22/04/2022,2204-00235,0.00,742.80,R,ACCESS LOCKSMITHS (LEEDS) LIMITED,No
Http://opendatacommunities.org/id/metropolitan-district-council/leeds,Leeds City Council,30/04/2022,Strategic Landlord,Housing Management,Supplies and Services,Resaleable Materials,204,22/04/2022,2204-00236,0.00,19.25,R,ACCESS LOCKSMITHS (LEEDS) LIMITED,No
Http://opendatacommunities.org/id/metropolitan-district-council/leeds,Leeds City Council,30/04/2022,Strategic Landlord,Housing Management,Supplies and Services,Resaleable Materials,204,22/04/2022,2204-00237,0.00,37.20,R,ACCESS LOCKSMITHS (LEEDS) LIMITED,No
Http://opendatacommunities.org/id/metropolitan-district-council/leeds,Leeds City Council,30/04/2022,Strategic Landlord,HRA Housing Leeds,Capital,CONSTRUCTION,3,22/04/2022,2204-00238,0.00,189.33,C,ACCESS LOCKSMITHS (LEEDS) LIMITED,No
Http://opendatacommunities.org/id/metropolitan-district-council/leeds,Leeds City Council,30/04/2022,Resources,Leeds Building Services,Supplies and Services,Operational Materials,205,22/04/2022,2204-00239,0.00,7.50,R,ACCESS LOCKSMITHS (LEEDS) LIMITED,No
Http://opendatacommunities.org/id/metropolitan-district-council/leeds,Leeds City Council,30/04/2022,Resources,Leeds Building Services,Supplies and Services,Operational Materials,205,22/04/2022,2204-00240,0.00,25.15,R,ACCESS LOCKSMITHS (LEEDS) LIMITED,No
Http://opendatacommunities.org/id/metropolitan-district-council/leeds,Leeds City Council,30/04/2022,Adults and Health,Social Services Support Services,Supplies and Services,Computer Software & Equipment,214,14/04/2022,2204-00241,0.00,1455.00,R,Access Uk Ltd,No
Http://opendatacommunities.org/id/metropolitan-district-council/leeds,Leeds City Council,30/04/2022,Adults and Health,Social Services Support Services,Supplies and Services,Computer Software & Equipment,214,20/04/2022,2204-00242,0.00,10185.00,R,Access Uk Ltd,No
Http://opendatacommunities.org/id/metropolitan-district-council/leeds,Leeds City Council as Accountable Body,30/04/2022,Social Services Pooled Budgets,Leeds Community Equip Store Pooled Budgt,Supplies and Services,Other Equipment,203,29/04/2022,2204-00243,0.00,43.00,R,Accora,No
Http://opendatacommunities.org/id/metropolitan-district-council/leeds,Leeds City Council,30/04/2022,City Development,Libraries Arts & Heritage,Supplies and Services,Operational Materials,205,21/03/2022,2204-00244,0.00,30.45,R,Accu.Co.Uk,Yes
Http://opendatacommunities.org/id/metropolitan-district-council/leeds,Leeds City Council,30/04/2022,City Development,Recreation,Supplies and Services,Other Hired And Contracted Services,265,07/04/2022,2204-00245,0.00,3275.00,R,ACE CONTAINER SERVICES LIMITED,No
Http://opendatacommunities.org/id/metropolitan-district-council/leeds,Leeds City Council,30/04/2022,City Development,Recreation,Supplies and Services,Operational Furniture And Equipment,203,11/04/2022,2204-00246,0.00,3275.00,R,ACE CONTAINER SERVICES LIMITED,No
Http://opendatacommunities.org/id/metropolitan-district-council/leeds,Leeds City Council,30/04/2022,City Development,Recreation,Transport,External Hire -Occasional,304,29/04/2022,2204-00247,0.00,124.50,R,ACE CONTAINER SERVICES LIMITED,No
Http://opendatacommunities.org/id/metropolitan-district-council/leeds,Leeds City Council,30/04/2022,Children and Families,Learning,Agency Payments,SEN Placements,566,29/04/2022,2204-00248,0.00,19300.67,R,ACKWORTH SCHOOL,No
Http://opendatacommunities.org/id/metropolitan-district-council/leeds,Leeds City Council,30/04/2022,Communities Housing and Environment,Parks and Countryside,Supplies and Services,Operational Furniture And Equipment,203,03/03/2022,2204-00249,0.00,356.08,R,Acme Facilities Group,Yes
Http://opendatacommunities.org/id/metropolitan-district-council/leeds,Leeds City Council,30/04/2022,Children and Families,Social Care,Agency Payments,General External Residential Placements,507,01/04/2022,2204-00250,0.00,17249.29,R,Acorn Care & Education Ltd (Sales),No
Http://opendatacommunities.org/id/metropolitan-district-council/leeds,Leeds City Council,30/04/2022,Children and Families,Social Care,Agency Payments,General External Residential Placements,507,01/04/2022,2204-00251,0.00,15580.00,R,Acorn Care & Education Ltd (Sales),No
Http://opendatacommunities.org/id/metropolitan-district-council/leeds,Leeds City Council,30/04/2022,Children and Families,Social Care,Agency Payments,General External Residential Placements,507,01/04/2022,2204-00252,0.00,2281.37,R,Acorn Care & Education Ltd (Sales),No
Http://opendatacommunities.org/id/metropolitan-district-council/leeds,Leeds City Council,30/04/2022,Children and Families,Learning,Agency Payments,SEN Placements,566,06/04/2022,2204-00253,0.00,13410.20,R,Acorn Care & Education Ltd (Sales),No
Http://opendatacommunities.org/id/metropolitan-district-council/leeds,Leeds City Council,30/04/2022,Children and Families,Learning,Agency Payments,SEN Placements,566,06/04/2022,2204-00254,0.00,13410.20,R,Acorn Care & Education Ltd (Sales),No
Http://opendatacommunities.org/id/metropolitan-district-council/leeds,Leeds City Council,30/04/2022,Children and Families,Learning,Agency Payments,SEN Placements,566,06/04/2022,2204-00255,0.00,13410.20,R,Acorn Care & Education Ltd (Sales),No
Http://opendatacommunities.org/id/metropolitan-district-council/leeds,Leeds City Council,30/04/2022,Children and Families,Learning,Agency Payments,SEN Placements,566,06/04/2022,2204-00256,0.00,13410.20,R,Acorn Care & Education Ltd (Sales),No
Http://opendatacommunities.org/id/metropolitan-district-council/leeds,Leeds City Council,30/04/2022,Children and Families,Learning,Agency Payments,SEN Placements,566,06/04/2022,2204-00257,0.00,13410.20,R,Acorn Care & Education Ltd (Sales),No
Http://opendatacommunities.org/id/metropolitan-district-council/leeds,Leeds City Council,30/04/2022,Children and Families,Learning,Agency Payments,SEN Placements,566,06/04/2022,2204-00258,0.00,13410.20,R,Acorn Care & Education Ltd (Sales),No
Http://opendatacommunities.org/id/metropolitan-district-council/leeds,Leeds City Council,30/04/2022,Children and Families,Learning,Agency Payments,SEN Placements,566,06/04/2022,2204-00259,0.00,13410.20,R,Acorn Care & Education Ltd (Sales),No
Http://opendatacommunities.org/id/metropolitan-district-council/leeds,Leeds City Council,30/04/2022,Children and Families,Learning,Agency Payments,SEN Placements,566,06/04/2022,2204-00260,0.00,13410.20,R,Acorn Care & Education Ltd (Sales),No
Http://opendatacommunities.org/id/metropolitan-district-council/leeds,Leeds City Council,30/04/2022,Children and Families,Learning,Agency Payments,SEN Placements,566,06/04/2022,2204-00261,0.00,13410.20,R,Acorn Care & Education Ltd (Sales),No
Http://opendatacommunities.org/id/metropolitan-district-council/leeds,Leeds City Council,30/04/2022,Children and Families,Learning,Agency Payments,SEN Placements,566,06/04/2022,2204-00262,0.00,13410.20,R,Acorn Care & Education Ltd (Sales),No
Http://opendatacommunities.org/id/metropolitan-district-council/leeds,Leeds City Council,30/04/2022,Children and Families,Learning,Agency Payments,SEN Placements,566,06/04/2022,2204-00263,0.00,13410.20,R,Acorn Care & Education Ltd (Sales),No
Http://opendatacommunities.org/id/metropolitan-district-council/leeds,Leeds City Council,30/04/2022,Children and Families,Learning,Agency Payments,SEN Placements,566,06/04/2022,2204-00264,0.00,13410.20,R,Acorn Care & Education Ltd (Sales),No
Http://opendatacommunities.org/id/metropolitan-district-council/leeds,Leeds City Council,30/04/2022,Children and Families,Learning,Agency Payments,SEN Placements,566,06/04/2022,2204-00265,0.00,13410.20,R,Acorn Care & Education Ltd (Sales),No
Http://opendatacommunities.org/id/metropolitan-district-council/leeds,Leeds City Council,30/04/2022,Children and Families,Learning,Agency Payments,SEN Placements,566,06/04/2022,2204-00266,0.00,13410.20,R,Acorn Care & Education Ltd (Sales),No
Http://opendatacommunities.org/id/metropolitan-district-council/leeds,Leeds City Council,30/04/2022,Children and Families,Learning,Agency Payments,SEN Placements,566,06/04/2022,2204-00267,0.00,15188.70,R,Acorn Care & Education Ltd (Sales),No
Http://opendatacommunities.org/id/metropolitan-district-council/leeds,Leeds City Council,30/04/2022,Children and Families,Learning,Agency Payments,SEN Placements,566,07/04/2022,2204-00268,0.00,13410.20,R,Acorn Care & Education Ltd (Sales),No
Http://opendatacommunities.org/id/metropolitan-district-council/leeds,Leeds City Council,30/04/2022,Children and Families,Learning,Agency Payments,SEN Placements,566,07/04/2022,2204-00269,0.00,13410.20,R,Acorn Care & Education Ltd (Sales),No
Http://opendatacommunities.org/id/metropolitan-district-council/leeds,Leeds City Council,30/04/2022,Children and Families,Learning,Agency Payments,SEN Placements,566,07/04/2022,2204-00270,0.00,13410.20,R,Acorn Care & Education Ltd (Sales),No
Http://opendatacommunities.org/id/metropolitan-district-council/leeds,Leeds City Council,30/04/2022,Children and Families,Learning,Agency Payments,SEN Placements,566,07/04/2022,2204-00271,0.00,13410.20,R,Acorn Care & Education Ltd (Sales),No
Http://opendatacommunities.org/id/metropolitan-district-council/leeds,Leeds City Council,30/04/2022,Children and Families,Learning,Agency Payments,SEN Placements,566,07/04/2022,2204-00272,0.00,13410.20,R,Acorn Care & Education Ltd (Sales),No
Http://opendatacommunities.org/id/metropolitan-district-council/leeds,Leeds City Council,30/04/2022,Children and Families,Learning,Agency Payments,SEN Placements,566,07/04/2022,2204-00273,0.00,13410.20,R,Acorn Care & Education Ltd (Sales),No
Http://opendatacommunities.org/id/metropolitan-district-council/leeds,Leeds City Council,30/04/2022,Children and Families,Social Care,Agency Payments,General External Residential Placements,507,08/04/2022,2204-00274,0.00,17249.29,R,Acorn Care & Education Ltd (Sales),No
Http://opendatacommunities.org/id/metropolitan-district-council/leeds,Leeds City Council,30/04/2022,Children and Families,Social Care,Agency Payments,General External Residential Placements,507,08/04/2022,2204-00275,0.00,17249.29,R,Acorn Care & Education Ltd (Sales),No
Http://opendatacommunities.org/id/metropolitan-district-council/leeds,Leeds City Council,30/04/2022,Children and Families,Social Care,Agency Payments,General External Residential Placements,507,08/04/2022,2204-00276,0.00,17680.58,R,Acorn Care & Education Ltd (Sales),No
Http://opendatacommunities.org/id/metropolitan-district-council/leeds,Leeds City Council,30/04/2022,Children and Families,Social Care,Agency Payments,General External Residential Placements,507,08/04/2022,2204-00277,0.00,20904.20,R,Acorn Care & Education Ltd (Sales),No
Http://opendatacommunities.org/id/metropolitan-district-council/leeds,Leeds City Council,30/04/2022,Children and Families,Social Care,Agency Payments,General External Residential Placements,507,08/04/2022,2204-00278,0.00,24744.48,R,Acorn Care & Education Ltd (Sales),No
Http://opendatacommunities.org/id/metropolitan-district-council/leeds,Leeds City Council,30/04/2022,Children and Families,Learning,Agency Payments,SEN Placements,566,22/04/2022,2204-00279,0.00,13410.20,R,Acorn Care & Education Ltd (Sales),No
Http://opendatacommunities.org/id/metropolitan-district-council/leeds,Leeds City Council,30/04/2022,Children and Families,Learning,Agency Payments,SEN Placements,566,22/04/2022,2204-00280,0.00,13410.20,R,Acorn Care & Education Ltd (Sales),No
Http://opendatacommunities.org/id/metropolitan-district-council/leeds,Leeds City Council,30/04/2022,Children and Families,Learning,Agency Payments,SEN Placements,566,22/04/2022,2204-00281,0.00,13410.20,R,Acorn Care & Education Ltd (Sales),No
Http://opendatacommunities.org/id/metropolitan-district-council/leeds,Leeds City Council,30/04/2022,Children and Families,Learning,Agency Payments,SEN Placements,566,22/04/2022,2204-00282,0.00,13410.20,R,Acorn Care & Education Ltd (Sales),No
Http://opendatacommunities.org/id/metropolitan-district-council/leeds,Leeds City Council,30/04/2022,Communities Housing and Environment,Strategic Housing Partnership & Support,Supplies and Services,Other Hired And Contracted Services,265,29/04/2022,2204-00283,0.00,2500.00,R,Acorn Housing,No
Http://opendatacommunities.org/id/metropolitan-district-council/leeds,Leeds City Council,30/04/2022,Adults and Health,Other Adult Services,Agency Payments,Residential - Drugs & Alcohol,583,29/04/2022,2204-00284,0.00,2435.71,R,Acorn Recovery Projects,No
Http://opendatacommunities.org/id/metropolitan-district-council/leeds,Leeds City Council,30/04/2022,Children and Families,Social Care,Agency Payments,Services Rendered By Other Organisations,511,01/04/2022,2204-00285,0.00,7571.52,R,ACORNS NURSERY,No
Http://opendatacommunities.org/id/metropolitan-district-council/leeds,Leeds City Council,30/04/2022,Children and Families,Social Care,Agency Payments,Services Rendered By Other Organisations,511,06/04/2022,2204-00286,0.00,79.44,R,ACORNS NURSERY,No
Http://opendatacommunities.org/id/metropolitan-district-council/leeds,Leeds City Council,30/04/2022,Children and Families,Social Care,Agency Payments,Services Rendered By Voluntary Sector,505,25/04/2022,2204-00287,0.00,2708.33,R,ACORNS NURSERY,No
Http://opendatacommunities.org/id/metropolitan-district-council/leeds,Leeds City Council,30/04/2022,Communities Housing and Environment,Environmental Health,Supplies and Services,Other Hired And Contracted Services,265,14/04/2022,2204-00288,0.00,238.00,R,Acoustic Calibration Services Limited,No
Http://opendatacommunities.org/id/metropolitan-district-council/leeds,Leeds City Council,30/04/2022,Adults and Health,Services For Older People - 65 And Over,Agency Payments,Nursing Home,570,27/04/2022,2204-00289,0.00,29269.48,R,Acre Green,No
Http://opendatacommunities.org/id/metropolitan-district-council/leeds,Leeds City Council,30/04/2022,Adults and Health,Services For Older People - 65 And Over,Agency Payments,Residential,580,27/04/2022,2204-00290,0.00,4403.84,R,Acre Green,No
Http://opendatacommunities.org/id/metropolitan-district-council/leeds,Leeds City Council,30/04/2022,Adults and Health,Services For Older People Under 65 P/Dis,Agency Payments,Nursing Home,570,27/04/2022,2204-00291,0.00,2396.31,R,Acre Green,No
Http://opendatacommunities.org/id/metropolitan-district-council/leeds,Leeds City Council,30/04/2022,Adults and Health,Services For Older People Under 65 P/Dis,Agency Payments,Residential,580,27/04/2022,2204-00292,0.00,2003.27,R,Acre Green,No
Http://opendatacommunities.org/id/metropolitan-district-council/leeds,Leeds City Council,30/04/2022,Children and Families,Social Care,Agency Payments,Services Rendered By Other Organisations,511,01/04/2022,2204-00293,0.00,10625.94,R,Acre Wood Day Nursery,No
Http://opendatacommunities.org/id/metropolitan-district-council/leeds,Leeds City Council,30/04/2022,Children and Families,Social Care,Agency Payments,Services Rendered By Other Organisations,511,06/04/2022,2204-00294,0.00,1955.07,R,Acre Wood Day Nursery,No
Http://opendatacommunities.org/id/metropolitan-district-council/leeds,Leeds City Council,30/04/2022,City Development,Libraries Arts & Heritage,Supplies and Services,Operational Materials,205,10/03/2022,2204-00295,0.00,16.00,R,Acropolis Authentic Greek,Yes
Http://opendatacommunities.org/id/metropolitan-district-council/leeds,Leeds City Council,30/04/2022,City Development,Libraries Arts & Heritage,Supplies and Services,Operational Materials,205,10/03/2022,2204-00296,0.00,11.00,R,Acropolis Authentic Greek,Yes
Http://opendatacommunities.org/id/metropolitan-district-council/leeds,Leeds City Council,30/04/2022,Children and Families,Learning,Supplies and Services,Bought In Professional Services,277,05/04/2022,2204-00297,0.00,3266.28,R,Act Fast NL Ltd,No
Http://opendatacommunities.org/id/metropolitan-district-council/leeds,Leeds City Council,30/04/2022,Children and Families,Social Care,Agency Payments,Independent Fostering Agencies,509,14/04/2022,2204-00298,0.00,4570.72,R,Action For Children Services Ltd,No
Http://opendatacommunities.org/id/metropolitan-district-council/leeds,Leeds City Council,30/04/2022,Children and Families,Social Care,Agency Payments,Independent Fostering Agencies,509,29/04/2022,2204-00299,0.00,5060.44,R,Action For Children Services Ltd,No
Http://opendatacommunities.org/id/metropolitan-district-council/leeds,Leeds City Council,30/04/2022,Adults and Health,Services For Older People - 65 And Over,Agency Payments,Payments To Voluntary Organisations,561,01/04/2022,2204-00300,0.00,45009.02,R,ACTION FOR GIPTON ELDERLY,No
Http://opendatacommunities.org/id/metropolitan-district-council/leeds,Leeds City Council,30/04/2022,Children and Families,Social Care,Agency Payments,Services Rendered By Other Organisations,511,01/04/2022,2204-00301,0.00,7705.36,R,ACTIVE KIDS YEADON LLP,No
Http://opendatacommunities.org/id/metropolitan-district-council/leeds,Leeds City Council,30/04/2022,Children and Families,Social Care,Agency Payments,Services Rendered By Other Organisations,511,06/04/2022,2204-00302,0.00,651.69,R,ACTIVE KIDS YEADON LLP,No
Http://opendatacommunities.org/id/metropolitan-district-council/leeds,Leeds City Council,30/04/2022,Children and Families,Social Care,Agency Payments,Services Rendered By Voluntary Sector,505,25/04/2022,2204-00303,0.00,5416.67,R,ACTIVE KIDS YEADON LLP,No
Http://opendatacommunities.org/id/metropolitan-district-council/leeds,Leeds City Council,30/04/2022,Children and Families,Social Care,Supplies and Services,Other Hired And Contracted Services,265,10/03/2022,2204-00304,0.00,4.00,R,Active Leeds,Yes
Http://opendatacommunities.org/id/metropolitan-district-council/leeds,Leeds City Council,30/04/2022,City Development,Recreation,Supplies and Services,Other Hired And Contracted Services,265,24/03/2022,2204-00305,0.00,5.00,R,Active Leeds,Yes
Http://opendatacommunities.org/id/metropolitan-district-council/leeds,Leeds City Council,30/04/2022,Adults and Health,Services For Adults Under 65 Mental/Dis,Agency Payments,Sheltered Accommodation,569,27/04/2022,2204-00306,0.00,19097.88,R,Active Pathways,No
Http://opendatacommunities.org/id/metropolitan-district-council/leeds,Leeds City Council as Accountable Body,30/04/2022,Social Services Pooled Budgets,Jcs For People With Learning Disabilitie,Agency Payments,Sheltered Accommodation,569,27/04/2022,2204-00307,0.00,12452.52,R,Active Pathways,No
Http://opendatacommunities.org/id/metropolitan-district-council/leeds,Leeds City Council,30/04/2022,City Development,Planning & Sustainable Development,Supplies and Services,Clothing & Uniforms,241,08/03/2022,2204-00308,0.00,317.92,R,Activewear Brands,Yes
Http://opendatacommunities.org/id/metropolitan-district-council/leeds,Leeds City Council,30/04/2022,Communities Housing and Environment,Waste Management,Supplies and Services,Recycling & Reuse Charges,234,07/04/2022,2204-00309,0.00,980.64,R,Acumen Waste Services Ltd,No
Http://opendatacommunities.org/id/metropolitan-district-council/leeds,Leeds City Council,30/04/2022,Communities Housing and Environment,Waste Management,Supplies and Services,Recycling & Reuse Charges,234,07/04/2022,2204-00310,0.00,997.92,R,Acumen Waste Services Ltd,No
Http://opendatacommunities.org/id/metropolitan-district-council/leeds,Leeds City Council,30/04/2022,Communities Housing and Environment,Waste Management,Supplies and Services,Recycling & Reuse Charges,234,07/04/2022,2204-00311,0.00,934.56,R,Acumen Waste Services Ltd,No
Http://opendatacommunities.org/id/metropolitan-district-council/leeds,Leeds City Council,30/04/2022,Communities Housing and Environment,Waste Management,Supplies and Services,Recycling & Reuse Charges,234,07/04/2022,2204-00312,0.00,981.36,R,Acumen Waste Services Ltd,No
Http://opendatacommunities.org/id/metropolitan-district-council/leeds,Leeds City Council,30/04/2022,Communities Housing and Environment,Waste Management,Supplies and Services,Recycling & Reuse Charges,234,07/04/2022,2204-00313,0.00,1001.52,R,Acumen Waste Services Ltd,No
Http://opendatacommunities.org/id/metropolitan-district-council/leeds,Leeds City Council,30/04/2022,Communities Housing and Environment,Waste Management,Supplies and Services,Recycling & Reuse Charges,234,07/04/2022,2204-00314,0.00,903.60,R,Acumen Waste Services Ltd,No
Http://opendatacommunities.org/id/metropolitan-district-council/leeds,Leeds City Council,30/04/2022,Communities Housing and Environment,Waste Management,Supplies and Services,Recycling & Reuse Charges,234,07/04/2022,2204-00315,0.00,988.56,R,Acumen Waste Services Ltd,No
Http://opendatacommunities.org/id/metropolitan-district-council/leeds,Leeds City Council,30/04/2022,Communities Housing and Environment,Waste Management,Supplies and Services,Recycling & Reuse Charges,234,07/04/2022,2204-00316,0.00,763.92,R,Acumen Waste Services Ltd,No
Http://opendatacommunities.org/id/metropolitan-district-council/leeds,Leeds City Council,30/04/2022,Communities Housing and Environment,Waste Management,Supplies and Services,Recycling & Reuse Charges,234,07/04/2022,2204-00317,0.00,966.96,R,Acumen Waste Services Ltd,No
Http://opendatacommunities.org/id/metropolitan-district-council/leeds,Leeds City Council,30/04/2022,Communities Housing and Environment,Waste Management,Supplies and Services,Recycling & Reuse Charges,234,08/04/2022,2204-00318,0.00,913.68,R,Acumen Waste Services Ltd,No
Http://opendatacommunities.org/id/metropolitan-district-council/leeds,Leeds City Council,30/04/2022,Communities Housing and Environment,Waste Management,Supplies and Services,Recycling & Reuse Charges,234,08/04/2022,2204-00319,0.00,957.60,R,Acumen Waste Services Ltd,No
Http://opendatacommunities.org/id/metropolitan-district-council/leeds,Leeds City Council,30/04/2022,Communities Housing and Environment,Waste Management,Supplies and Services,Recycling & Reuse Charges,234,08/04/2022,2204-00320,0.00,940.32,R,Acumen Waste Services Ltd,No
Http://opendatacommunities.org/id/metropolitan-district-council/leeds,Leeds City Council,30/04/2022,Communities Housing and Environment,Waste Management,Supplies and Services,Recycling & Reuse Charges,234,08/04/2022,2204-00321,0.00,976.32,R,Acumen Waste Services Ltd,No
Http://opendatacommunities.org/id/metropolitan-district-council/leeds,Leeds City Council,30/04/2022,Communities Housing and Environment,Waste Management,Supplies and Services,Recycling & Reuse Charges,234,13/04/2022,2204-00322,0.00,959.76,R,Acumen Waste Services Ltd,No
Http://opendatacommunities.org/id/metropolitan-district-council/leeds,Leeds City Council,30/04/2022,Communities Housing and Environment,Waste Management,Supplies and Services,Waste Disposal Charges,236,14/04/2022,2204-00323,0.00,661.65,R,Acumen Waste Services Ltd,No
Http://opendatacommunities.org/id/metropolitan-district-council/leeds,Leeds City Council,30/04/2022,Communities Housing and Environment,Waste Management,Supplies and Services,Recycling & Reuse Charges,234,14/04/2022,2204-00324,0.00,907.20,R,Acumen Waste Services Ltd,No
Http://opendatacommunities.org/id/metropolitan-district-council/leeds,Leeds City Council,30/04/2022,Communities Housing and Environment,Waste Management,Supplies and Services,Recycling & Reuse Charges,234,14/04/2022,2204-00325,0.00,885.60,R,Acumen Waste Services Ltd,No
Http://opendatacommunities.org/id/metropolitan-district-council/leeds,Leeds City Council,30/04/2022,Communities Housing and Environment,Waste Management,Supplies and Services,Recycling & Reuse Charges,234,14/04/2022,2204-00326,0.00,869.04,R,Acumen Waste Services Ltd,No
Http://opendatacommunities.org/id/metropolitan-district-council/leeds,Leeds City Council,30/04/2022,Communities Housing and Environment,Waste Management,Supplies and Services,Recycling & Reuse Charges,234,14/04/2022,2204-00327,0.00,969.12,R,Acumen Waste Services Ltd,No
Http://opendatacommunities.org/id/metropolitan-district-council/leeds,Leeds City Council,30/04/2022,Communities Housing and Environment,Waste Management,Supplies and Services,Recycling & Reuse Charges,234,14/04/2022,2204-00328,0.00,876.96,R,Acumen Waste Services Ltd,No
Http://opendatacommunities.org/id/metropolitan-district-council/leeds,Leeds City Council,30/04/2022,Communities Housing and Environment,Waste Management,Supplies and Services,Recycling & Reuse Charges,234,14/04/2022,2204-00329,0.00,995.04,R,Acumen Waste Services Ltd,No
Http://opendatacommunities.org/id/metropolitan-district-council/leeds,Leeds City Council,30/04/2022,Communities Housing and Environment,Waste Management,Supplies and Services,Recycling & Reuse Charges,234,14/04/2022,2204-00330,0.00,874.80,R,Acumen Waste Services Ltd,No
Http://opendatacommunities.org/id/metropolitan-district-council/leeds,Leeds City Council,30/04/2022,Communities Housing and Environment,Waste Management,Supplies and Services,Recycling & Reuse Charges,234,14/04/2022,2204-00331,0.00,898.56,R,Acumen Waste Services Ltd,No
Http://opendatacommunities.org/id/metropolitan-district-council/leeds,Leeds City Council,30/04/2022,Communities Housing and Environment,Waste Management,Supplies and Services,Recycling & Reuse Charges,234,21/04/2022,2204-00332,0.00,894.96,R,Acumen Waste Services Ltd,No
Http://opendatacommunities.org/id/metropolitan-district-council/leeds,Leeds City Council,30/04/2022,Communities Housing and Environment,Waste Management,Supplies and Services,Recycling & Reuse Charges,234,21/04/2022,2204-00333,0.00,946.80,R,Acumen Waste Services Ltd,No
Http://opendatacommunities.org/id/metropolitan-district-council/leeds,Leeds City Council,30/04/2022,Communities Housing and Environment,Waste Management,Supplies and Services,Recycling & Reuse Charges,234,22/04/2022,2204-00334,0.00,897.84,R,Acumen Waste Services Ltd,No
Http://opendatacommunities.org/id/metropolitan-district-council/leeds,Leeds City Council,30/04/2022,Communities Housing and Environment,Waste Management,Supplies and Services,Recycling & Reuse Charges,234,22/04/2022,2204-00335,0.00,901.44,R,Acumen Waste Services Ltd,No
Http://opendatacommunities.org/id/metropolitan-district-council/leeds,Leeds City Council,30/04/2022,Communities Housing and Environment,Waste Management,Supplies and Services,Recycling & Reuse Charges,234,22/04/2022,2204-00336,0.00,879.84,R,Acumen Waste Services Ltd,No
Http://opendatacommunities.org/id/metropolitan-district-council/leeds,Leeds City Council,30/04/2022,Communities Housing and Environment,Waste Management,Supplies and Services,Recycling & Reuse Charges,234,22/04/2022,2204-00337,0.00,908.64,R,Acumen Waste Services Ltd,No
Http://opendatacommunities.org/id/metropolitan-district-council/leeds,Leeds City Council,30/04/2022,Communities Housing and Environment,Waste Management,Supplies and Services,Recycling & Reuse Charges,234,22/04/2022,2204-00338,0.00,950.40,R,Acumen Waste Services Ltd,No
Http://opendatacommunities.org/id/metropolitan-district-council/leeds,Leeds City Council,30/04/2022,Communities Housing and Environment,Waste Management,Supplies and Services,Recycling & Reuse Charges,234,27/04/2022,2204-00339,0.00,892.08,R,Acumen Waste Services Ltd,No
Http://opendatacommunities.org/id/metropolitan-district-council/leeds,Leeds City Council,30/04/2022,Communities Housing and Environment,Waste Management,Supplies and Services,Recycling & Reuse Charges,234,27/04/2022,2204-00340,0.00,852.48,R,Acumen Waste Services Ltd,No
Http://opendatacommunities.org/id/metropolitan-district-council/leeds,Leeds City Council,30/04/2022,Communities Housing and Environment,Waste Management,Supplies and Services,Recycling & Reuse Charges,234,27/04/2022,2204-00341,0.00,942.48,R,Acumen Waste Services Ltd,No
Http://opendatacommunities.org/id/metropolitan-district-council/leeds,Leeds City Council,30/04/2022,Communities Housing and Environment,Waste Management,Supplies and Services,Recycling & Reuse Charges,234,29/04/2022,2204-00342,0.00,871.20,R,Acumen Waste Services Ltd,No
Http://opendatacommunities.org/id/metropolitan-district-council/leeds,Leeds City Council,30/04/2022,Communities Housing and Environment,Waste Management,Supplies and Services,Recycling & Reuse Charges,234,29/04/2022,2204-00343,0.00,941.04,R,Acumen Waste Services Ltd,No
Http://opendatacommunities.org/id/metropolitan-district-council/leeds,Leeds City Council,30/04/2022,Communities Housing and Environment,Waste Management,Supplies and Services,Recycling & Reuse Charges,234,29/04/2022,2204-00344,0.00,835.92,R,Acumen Waste Services Ltd,No
Http://opendatacommunities.org/id/metropolitan-district-council/leeds,Leeds City Council,30/04/2022,Communities Housing and Environment,Waste Management,Supplies and Services,Recycling & Reuse Charges,234,29/04/2022,2204-00345,0.00,815.04,R,Acumen Waste Services Ltd,No
Http://opendatacommunities.org/id/metropolitan-district-council/leeds,Leeds City Council,30/04/2022,Communities Housing and Environment,Waste Management,Supplies and Services,Waste Disposal Charges,236,29/04/2022,2204-00346,0.00,746.20,R,Acumen Waste Services Ltd,No
Http://opendatacommunities.org/id/metropolitan-district-council/leeds,Leeds City Council,30/04/2022,Communities Housing and Environment,Waste Management,Supplies and Services,Waste Disposal Charges,236,29/04/2022,2204-00347,0.00,745.00,R,Acumen Waste Services Ltd,No
Http://opendatacommunities.org/id/metropolitan-district-council/leeds,Leeds City Council,30/04/2022,Communities Housing and Environment,Waste Management,Supplies and Services,Waste Disposal Charges,236,29/04/2022,2204-00348,0.00,1893.15,R,Acumen Waste Services Ltd,No
Http://opendatacommunities.org/id/metropolitan-district-council/leeds,Leeds City Council,30/04/2022,Communities Housing and Environment,Parks and Countryside,Supplies and Services,Resaleable Materials,204,22/04/2022,2204-00349,0.00,476.60,R,ACUSHNET EUROPE LIMITED,No
Http://opendatacommunities.org/id/metropolitan-district-council/leeds,Leeds City Council,30/04/2022,Communities Housing and Environment,Parks and Countryside,Supplies and Services,Resaleable Materials,204,22/04/2022,2204-00350,0.00,361.00,R,ACUSHNET EUROPE LIMITED,No
Http://opendatacommunities.org/id/metropolitan-district-council/leeds,Leeds City Council,30/04/2022,Communities Housing and Environment,Parks and Countryside,Supplies and Services,Resaleable Materials,204,28/04/2022,2204-00351,0.00,98.50,R,ACUSHNET EUROPE LIMITED,No
Http://opendatacommunities.org/id/metropolitan-district-council/leeds,Leeds City Council,30/04/2022,Resources,Shared Services,Supplies and Services,Other Hired And Contracted Services,265,20/04/2022,2204-00352,0.00,1260.00,R,AD3 Envelope Printers Limited,No
Http://opendatacommunities.org/id/metropolitan-district-council/leeds,Leeds City Council,30/04/2022,Resources,Shared Services,Supplies and Services,Operational Materials,205,29/04/2022,2204-00353,0.00,1260.00,R,AD3 Envelope Printers Limited,No
Http://opendatacommunities.org/id/metropolitan-district-council/leeds,Leeds City Council,30/04/2022,Resources,Shared Services,Supplies and Services,Other Hired And Contracted Services,265,29/04/2022,2204-00354,0.00,111.92,R,AD3 Envelope Printers Limited,No
Http://opendatacommunities.org/id/metropolitan-district-council/leeds,Leeds City Council,30/04/2022,Resources,Shared Services,Supplies and Services,Other Hired And Contracted Services,265,29/04/2022,2204-00355,0.00,89.56,R,AD3 Envelope Printers Limited,No
Http://opendatacommunities.org/id/metropolitan-district-council/leeds,Leeds City Council,30/04/2022,Resources,Shared Services,Supplies and Services,Operational Materials,205,29/04/2022,2204-00356,0.00,211.30,R,AD3 Envelope Printers Limited,No
Http://opendatacommunities.org/id/metropolitan-district-council/leeds,Leeds City Council,30/04/2022,Communities Housing and Environment,Benefits Wlefare and Poverty,Supplies and Services,Grant Related Expenditure,298,08/04/2022,2204-00357,0.00,500.00,R,REDACTED PERSONAL DATA,No
Http://opendatacommunities.org/id/metropolitan-district-council/leeds,Leeds City Council,30/04/2022,Children and Families,Social Care,Appropriations,Leaving Care Allowances,634,04/04/2022,2204-00358,0.00,100.00,R,REDACTED PERSONAL DATA,No
Http://opendatacommunities.org/id/metropolitan-district-council/leeds,Leeds City Council,30/04/2022,Children and Families,Social Care,Appropriations,Leaving Care Allowances,634,08/04/2022,2204-00359,0.00,50.00,R,REDACTED PERSONAL DATA,No
Http://opendatacommunities.org/id/metropolitan-district-council/leeds,Leeds City Council,30/04/2022,Children and Families,Social Care,Appropriations,Leaving Care Allowances,634,14/04/2022,2204-00360,0.00,50.00,R,REDACTED PERSONAL DATA,No
Http://opendatacommunities.org/id/metropolitan-district-council/leeds,Leeds City Council,30/04/2022,Children and Families,Social Care,Appropriations,Leaving Care Allowances,634,22/04/2022,2204-00361,0.00,50.00,R,REDACTED PERSONAL DATA,No
Http://opendatacommunities.org/id/metropolitan-district-council/leeds,Leeds City Council,30/04/2022,Children and Families,Social Care,Appropriations,Leaving Care Allowances,634,29/04/2022,2204-00362,0.00,50.00,R,REDACTED PERSONAL DATA,No
Http://opendatacommunities.org/id/metropolitan-district-council/leeds,Leeds City Council,30/04/2022,Resources,Financial Management,Supplies and Services,Bought In Professional Services,277,01/04/2022,2204-00363,0.00,3131.06,R,Addleshaw Goddard LLP,No
Http://opendatacommunities.org/id/metropolitan-district-council/leeds,Leeds City Council,30/04/2022,Communities Housing and Environment,Parks and Countryside,Supplies and Services,Other Hired And Contracted Services,265,08/04/2022,2204-00364,0.00,9558.00,R,Addlestone & Partners,No
Http://opendatacommunities.org/id/metropolitan-district-council/leeds,Leeds City Council,30/04/2022,Resources,Human Resources,Employees,Occupational Health,85,13/04/2022,2204-00365,0.00,20.00,R,Addlestone & Partners,No
Http://opendatacommunities.org/id/metropolitan-district-council/leeds,Leeds City Council,30/04/2022,Children and Families,Social Care,Agency Payments,Services Rendered By Voluntary Sector,505,01/04/2022,2204-00366,0.00,5816.30,R,ADEL PRE SCHOOL,No
Http://opendatacommunities.org/id/metropolitan-district-council/leeds,Leeds City Council,30/04/2022,Children and Families,Social Care,Agency Payments,Services Rendered By Voluntary Sector,505,06/04/2022,2204-00367,0.00,200.52,R,ADEL PRE SCHOOL,No
Http://opendatacommunities.org/id/metropolitan-district-council/leeds,Leeds City Council,30/04/2022,Children and Families,Social Care,Agency Payments,Services Rendered By Voluntary Sector,505,25/04/2022,2204-00368,0.00,5416.67,R,ADEL PRE SCHOOL,No
Http://opendatacommunities.org/id/metropolitan-district-council/leeds,Leeds City Council,30/04/2022,City Development,Recreation,Supplies and Services,Bought In Professional Services,277,21/04/2022,2204-00369,0.00,168.30,R,Adele Battersby,No
Http://opendatacommunities.org/id/metropolitan-district-council/leeds,Leeds City Council,30/04/2022,City Development,Recreation,Supplies and Services,Bought In Professional Services,277,29/04/2022,2204-00370,0.00,160.00,R,Adele Battersby,No
Http://opendatacommunities.org/id/metropolitan-district-council/leeds,Leeds City Council,30/04/2022,City Development,Recreation,Supplies and Services,Bought In Professional Services,277,29/04/2022,2204-00371,0.00,480.00,R,Adele Battersby,No
Http://opendatacommunities.org/id/metropolitan-district-council/leeds,Leeds City Council,30/04/2022,City Development,Recreation,Supplies and Services,Bought In Professional Services,277,29/04/2022,2204-00372,0.00,20.00,R,Adele Battersby,No
Http://opendatacommunities.org/id/metropolitan-district-council/leeds,Leeds City Council,30/04/2022,Children and Families,Social Care,Agency Payments,Services Rendered By Other Organisations,511,01/04/2022,2204-00373,0.00,1118.52,R,REDACTED PERSONAL DATA,No
Http://opendatacommunities.org/id/metropolitan-district-council/leeds,Leeds City Council,30/04/2022,Children and Families,Social Care,Agency Payments,Services Rendered By Other Organisations,511,06/04/2022,2204-00374,0.00,217.23,R,REDACTED PERSONAL DATA,No
Http://opendatacommunities.org/id/metropolitan-district-council/leeds,Leeds City Council,30/04/2022,Children and Families,Social Care,Agency Payments,Section 17,551,01/04/2022,2204-00375,0.00,79.20,R,REDACTED PERSONAL DATA,No
Http://opendatacommunities.org/id/metropolitan-district-council/leeds,Leeds City Council,30/04/2022,Children and Families,Social Care,Agency Payments,Section 17,551,08/04/2022,2204-00376,0.00,79.20,R,REDACTED PERSONAL DATA,No
Http://opendatacommunities.org/id/metropolitan-district-council/leeds,Leeds City Council,30/04/2022,City Development,Support Services,Employees,Professional Subscriptions,89,01/04/2022,2204-00377,0.00,2185.00,R,ADEPT,No
Http://opendatacommunities.org/id/metropolitan-district-council/leeds,Leeds City Council,30/04/2022,Resources,Leeds Building Services,Supplies and Services,Operational Materials,205,01/04/2022,2204-00378,0.00,95.99,R,ADI-Gardiner Ltd,No
Http://opendatacommunities.org/id/metropolitan-district-council/leeds,Leeds City Council,30/04/2022,Resources,Leeds Building Services,Supplies and Services,Operational Materials,205,01/04/2022,2204-00379,0.00,99.76,R,ADI-Gardiner Ltd,No
Http://opendatacommunities.org/id/metropolitan-district-council/leeds,Leeds City Council,30/04/2022,Resources,Leeds Building Services,Supplies and Services,Operational Materials,205,01/04/2022,2204-00380,0.00,520.78,R,ADI-Gardiner Ltd,No
Http://opendatacommunities.org/id/metropolitan-district-council/leeds,Leeds City Council,30/04/2022,Resources,Leeds Building Services,Supplies and Services,Operational Materials,205,01/04/2022,2204-00381,0.00,2152.23,R,ADI-Gardiner Ltd,No
Http://opendatacommunities.org/id/metropolitan-district-council/leeds,Leeds City Council,30/04/2022,Resources,Leeds Building Services,Supplies and Services,Operational Materials,205,06/04/2022,2204-00382,0.00,6.26,R,ADI-Gardiner Ltd,No
Http://opendatacommunities.org/id/metropolitan-district-council/leeds,Leeds City Council,30/04/2022,Resources,Leeds Building Services,Supplies and Services,Operational Materials,205,06/04/2022,2204-00383,0.00,12.16,R,ADI-Gardiner Ltd,No
Http://opendatacommunities.org/id/metropolitan-district-council/leeds,Leeds City Council,30/04/2022,Resources,Leeds Building Services,Supplies and Services,Operational Materials,205,06/04/2022,2204-00384,0.00,12.16,R,ADI-Gardiner Ltd,No
Http://opendatacommunities.org/id/metropolitan-district-council/leeds,Leeds City Council,30/04/2022,Resources,Leeds Building Services,Supplies and Services,Operational Materials,205,06/04/2022,2204-00385,0.00,19.16,R,ADI-Gardiner Ltd,No
Http://opendatacommunities.org/id/metropolitan-district-council/leeds,Leeds City Council,30/04/2022,Resources,Leeds Building Services,Supplies and Services,Operational Materials,205,06/04/2022,2204-00386,0.00,12.99,R,ADI-Gardiner Ltd,No
Http://opendatacommunities.org/id/metropolitan-district-council/leeds,Leeds City Council,30/04/2022,Resources,Leeds Building Services,Supplies and Services,Operational Materials,205,06/04/2022,2204-00387,0.00,12.99,R,ADI-Gardiner Ltd,No
Http://opendatacommunities.org/id/metropolitan-district-council/leeds,Leeds City Council,30/04/2022,Resources,Leeds Building Services,Supplies and Services,Operational Materials,205,06/04/2022,2204-00388,0.00,12.99,R,ADI-Gardiner Ltd,No
Http://opendatacommunities.org/id/metropolitan-district-council/leeds,Leeds City Council,30/04/2022,Resources,Leeds Building Services,Supplies and Services,Operational Materials,205,06/04/2022,2204-00389,0.00,12.99,R,ADI-Gardiner Ltd,No
Http://opendatacommunities.org/id/metropolitan-district-council/leeds,Leeds City Council,30/04/2022,Resources,Leeds Building Services,Supplies and Services,Operational Materials,205,06/04/2022,2204-00390,0.00,12.99,R,ADI-Gardiner Ltd,No
Http://opendatacommunities.org/id/metropolitan-district-council/leeds,Leeds City Council,30/04/2022,Resources,Leeds Building Services,Supplies and Services,Operational Materials,205,06/04/2022,2204-00391,0.00,12.96,R,ADI-Gardiner Ltd,No
Http://opendatacommunities.org/id/metropolitan-district-council/leeds,Leeds City Council,30/04/2022,Resources,Leeds Building Services,Supplies and Services,Operational Materials,205,06/04/2022,2204-00392,0.00,13.02,R,ADI-Gardiner Ltd,No
Http://opendatacommunities.org/id/metropolitan-district-council/leeds,Leeds City Council,30/04/2022,Resources,Leeds Building Services,Supplies and Services,Operational Materials,205,06/04/2022,2204-00393,0.00,8.07,R,ADI-Gardiner Ltd,No
Http://opendatacommunities.org/id/metropolitan-district-council/leeds,Leeds City Council,30/04/2022,Resources,Leeds Building Services,Supplies and Services,Operational Materials,205,13/04/2022,2204-00394,0.00,151.40,R,ADI-Gardiner Ltd,No
Http://opendatacommunities.org/id/metropolitan-district-council/leeds,Leeds City Council,30/04/2022,Resources,Leeds Building Services,Supplies and Services,Operational Materials,205,13/04/2022,2204-00395,0.00,741.63,R,ADI-Gardiner Ltd,No
Http://opendatacommunities.org/id/metropolitan-district-council/leeds,Leeds City Council,30/04/2022,Resources,Leeds Building Services,Supplies and Services,Operational Materials,205,13/04/2022,2204-00396,0.00,648.29,R,ADI-Gardiner Ltd,No
Http://opendatacommunities.org/id/metropolitan-district-council/leeds,Leeds City Council,30/04/2022,Resources,Leeds Building Services,Supplies and Services,Operational Materials,205,13/04/2022,2204-00397,0.00,78.83,R,ADI-Gardiner Ltd,No
Http://opendatacommunities.org/id/metropolitan-district-council/leeds,Leeds City Council,30/04/2022,Resources,Leeds Building Services,Supplies and Services,Operational Materials,205,13/04/2022,2204-00398,0.00,13.40,R,ADI-Gardiner Ltd,No
Http://opendatacommunities.org/id/metropolitan-district-council/leeds,Leeds City Council,30/04/2022,Resources,Leeds Building Services,Supplies and Services,Operational Materials,205,13/04/2022,2204-00399,0.00,13.40,R,ADI-Gardiner Ltd,No
Http://opendatacommunities.org/id/metropolitan-district-council/leeds,Leeds City Council,30/04/2022,Resources,Leeds Building Services,Supplies and Services,Operational Materials,205,13/04/2022,2204-00400,0.00,13.39,R,ADI-Gardiner Ltd,No
Http://opendatacommunities.org/id/metropolitan-district-council/leeds,Leeds City Council,30/04/2022,Resources,Leeds Building Services,Supplies and Services,Operational Materials,205,21/04/2022,2204-00401,0.00,94.65,R,ADI-Gardiner Ltd,No
Http://opendatacommunities.org/id/metropolitan-district-council/leeds,Leeds City Council,30/04/2022,Resources,Leeds Building Services,Supplies and Services,Operational Materials,205,29/04/2022,2204-00402,0.00,1201.66,R,ADI-Gardiner Ltd,No
Http://opendatacommunities.org/id/metropolitan-district-council/leeds,Leeds City Council,30/04/2022,Resources,Leeds Building Services,Supplies and Services,Operational Materials,205,29/04/2022,2204-00403,0.00,121.74,R,ADI-Gardiner Ltd,No
Http://opendatacommunities.org/id/metropolitan-district-council/leeds,Leeds City Council,30/04/2022,Insurance,Insurance,Supplies and Services,Insurance Claims,248,28/04/2022,2204-00404,0.00,576.00,R,Admiral Law,No
Http://opendatacommunities.org/id/metropolitan-district-council/leeds,Leeds City Council,30/04/2022,Insurance,Insurance,Supplies and Services,Insurance Claims,248,28/04/2022,2204-00405,0.00,4507.23,R,Admiral Law,No
Http://opendatacommunities.org/id/metropolitan-district-council/leeds,Leeds City Council,30/04/2022,City Development,Libraries Arts & Heritage,Supplies and Services,Computer Software & Equipment,214,23/03/2022,2204-00406,0.00,9.98,R,Adobe Photogphy Plan,Yes
Http://opendatacommunities.org/id/metropolitan-district-council/leeds,Leeds City Council,30/04/2022,Children and Families,Social Care,Agency Payments,Independent Fostering Agencies,509,01/04/2022,2204-00407,0.00,3220.00,R,Adolescent And Childrens Trust,No
Http://opendatacommunities.org/id/metropolitan-district-council/leeds,Leeds City Council,30/04/2022,Children and Families,Social Care,Agency Payments,Independent Fostering Agencies,509,01/04/2022,2204-00408,0.00,3220.00,R,Adolescent And Childrens Trust,No
Http://opendatacommunities.org/id/metropolitan-district-council/leeds,Leeds City Council,30/04/2022,Children and Families,Social Care,Agency Payments,Independent Fostering Agencies,509,01/04/2022,2204-00409,0.00,3220.00,R,Adolescent And Childrens Trust,No
Http://opendatacommunities.org/id/metropolitan-district-council/leeds,Leeds City Council,30/04/2022,Children and Families,Social Care,Agency Payments,Independent Fostering Agencies,509,01/04/2022,2204-00410,0.00,3388.00,R,Adolescent And Childrens Trust,No
Http://opendatacommunities.org/id/metropolitan-district-council/leeds,Leeds City Council,30/04/2022,Children and Families,Social Care,Agency Payments,Independent Fostering Agencies,509,01/04/2022,2204-00411,0.00,3388.00,R,Adolescent And Childrens Trust,No
Http://opendatacommunities.org/id/metropolitan-district-council/leeds,Leeds City Council,30/04/2022,Children and Families,Social Care,Agency Payments,Independent Fostering Agencies,509,01/04/2022,2204-00412,0.00,3220.00,R,Adolescent And Childrens Trust,No
Http://opendatacommunities.org/id/metropolitan-district-council/leeds,Leeds City Council,30/04/2022,Children and Families,Social Care,Agency Payments,Independent Fostering Agencies,509,01/04/2022,2204-00413,0.00,3388.00,R,Adolescent And Childrens Trust,No
Http://opendatacommunities.org/id/metropolitan-district-council/leeds,Leeds City Council,30/04/2022,Children and Families,Social Care,Agency Payments,Independent Fostering Agencies,509,01/04/2022,2204-00414,0.00,3388.00,R,Adolescent And Childrens Trust,No
Http://opendatacommunities.org/id/metropolitan-district-council/leeds,Leeds City Council,30/04/2022,Children and Families,Social Care,Agency Payments,Independent Fostering Agencies,509,01/04/2022,2204-00415,0.00,3207.96,R,Adolescent And Childrens Trust,No
Http://opendatacommunities.org/id/metropolitan-district-council/leeds,Leeds City Council,30/04/2022,Children and Families,Social Care,Agency Payments,Independent Fostering Agencies,509,01/04/2022,2204-00416,0.00,3388.00,R,Adolescent And Childrens Trust,No
Http://opendatacommunities.org/id/metropolitan-district-council/leeds,Leeds City Council,30/04/2022,Children and Families,Social Care,Agency Payments,Independent Fostering Agencies,509,01/04/2022,2204-00417,0.00,3220.00,R,Adolescent And Childrens Trust,No
Http://opendatacommunities.org/id/metropolitan-district-council/leeds,Leeds City Council,30/04/2022,Adults and Health,Services For Adults Under 65 Mental/Dis,Agency Payments,Home Care,568,01/04/2022,2204-00418,0.00,287.25,R,Adopt Healthcare,No
Http://opendatacommunities.org/id/metropolitan-district-council/leeds,Leeds City Council,30/04/2022,Adults and Health,Services For Adults Under 65 Mental/Dis,Agency Payments,Home Care,568,01/04/2022,2204-00419,0.00,115.50,R,Adopt Healthcare,No
Http://opendatacommunities.org/id/metropolitan-district-council/leeds,Leeds City Council,30/04/2022,Adults and Health,Services For Adults Under 65 Mental/Dis,Agency Payments,Home Care,568,01/04/2022,2204-00420,0.00,189.00,R,Adopt Healthcare,No
Http://opendatacommunities.org/id/metropolitan-district-council/leeds,Leeds City Council,30/04/2022,Adults and Health,Services For Adults Under 65 Mental/Dis,Agency Payments,Home Care,568,05/04/2022,2204-00421,0.00,189.00,R,Adopt Healthcare,No
Http://opendatacommunities.org/id/metropolitan-district-council/leeds,Leeds City Council,30/04/2022,Adults and Health,Services For Adults Under 65 Mental/Dis,Agency Payments,Home Care,568,07/04/2022,2204-00422,0.00,287.25,R,Adopt Healthcare,No
Http://opendatacommunities.org/id/metropolitan-district-council/leeds,Leeds City Council,30/04/2022,Adults and Health,Services For Adults Under 65 Mental/Dis,Agency Payments,Home Care,568,07/04/2022,2204-00423,0.00,189.00,R,Adopt Healthcare,No
Http://opendatacommunities.org/id/metropolitan-district-council/leeds,Leeds City Council,30/04/2022,Adults and Health,Services For Adults Under 65 Mental/Dis,Agency Payments,Home Care,568,07/04/2022,2204-00424,0.00,33.00,R,Adopt Healthcare,No
Http://opendatacommunities.org/id/metropolitan-district-council/leeds,Leeds City Council,30/04/2022,Adults and Health,Services For Adults Under 65 Mental/Dis,Agency Payments,Home Care,568,12/04/2022,2204-00425,0.00,148.50,R,Adopt Healthcare,No
Http://opendatacommunities.org/id/metropolitan-district-council/leeds,Leeds City Council,30/04/2022,Adults and Health,Services For Adults Under 65 Mental/Dis,Agency Payments,Home Care,568,12/04/2022,2204-00426,0.00,348.75,R,Adopt Healthcare,No
Http://opendatacommunities.org/id/metropolitan-district-council/leeds,Leeds City Council,30/04/2022,Adults and Health,Services For Adults Under 65 Mental/Dis,Agency Payments,Home Care,568,12/04/2022,2204-00427,0.00,189.00,R,Adopt Healthcare,No
Http://opendatacommunities.org/id/metropolitan-district-council/leeds,Leeds City Council,30/04/2022,Adults and Health,Services For Adults Under 65 Mental/Dis,Agency Payments,Home Care,568,12/04/2022,2204-00428,0.00,-287.25,R,Adopt Healthcare,No
Http://opendatacommunities.org/id/metropolitan-district-council/leeds,Leeds City Council,30/04/2022,Adults and Health,Services For Adults Under 65 Mental/Dis,Agency Payments,Home Care,568,12/04/2022,2204-00429,0.00,-204.00,R,Adopt Healthcare,No
Http://opendatacommunities.org/id/metropolitan-district-council/leeds,Leeds City Council,30/04/2022,Adults and Health,Services For Adults Under 65 Mental/Dis,Agency Payments,Home Care,568,12/04/2022,2204-00430,0.00,-132.00,R,Adopt Healthcare,No
Http://opendatacommunities.org/id/metropolitan-district-council/leeds,Leeds City Council,30/04/2022,Adults and Health,Services For Adults Under 65 Mental/Dis,Agency Payments,Home Care,568,12/04/2022,2204-00431,0.00,-198.00,R,Adopt Healthcare,No
Http://opendatacommunities.org/id/metropolitan-district-council/leeds,Leeds City Council,30/04/2022,Adults and Health,Services For Adults Under 65 Mental/Dis,Agency Payments,Home Care,568,20/04/2022,2204-00432,0.00,189.00,R,Adopt Healthcare,No
Http://opendatacommunities.org/id/metropolitan-district-council/leeds,Leeds City Council,30/04/2022,Adults and Health,Services For Adults Under 65 Mental/Dis,Agency Payments,Home Care,568,20/04/2022,2204-00433,0.00,468.00,R,Adopt Healthcare,No
Http://opendatacommunities.org/id/metropolitan-district-council/leeds,Leeds City Council,30/04/2022,Adults and Health,Services For Adults Under 65 Mental/Dis,Agency Payments,Home Care,568,20/04/2022,2204-00434,0.00,99.00,R,Adopt Healthcare,No
Http://opendatacommunities.org/id/metropolitan-district-council/leeds,Leeds City Council,30/04/2022,Adults and Health,Services For Adults Under 65 Mental/Dis,Agency Payments,Home Care,568,27/04/2022,2204-00435,0.00,410.25,R,Adopt Healthcare,No
Http://opendatacommunities.org/id/metropolitan-district-council/leeds,Leeds City Council,30/04/2022,Adults and Health,Services For Adults Under 65 Mental/Dis,Agency Payments,Home Care,568,27/04/2022,2204-00436,0.00,189.00,R,Adopt Healthcare,No
Http://opendatacommunities.org/id/metropolitan-district-council/leeds,Leeds City Council,30/04/2022,Adults and Health,Services For Adults Under 65 Mental/Dis,Agency Payments,Home Care,568,27/04/2022,2204-00437,0.00,148.50,R,Adopt Healthcare,No
Http://opendatacommunities.org/id/metropolitan-district-council/leeds,Leeds City Council,30/04/2022,Children and Families,Social Care,Agency Payments,Placement Support,550,01/04/2022,2204-00438,0.00,21.15,R,REDACTED PERSONAL DATA,No
Http://opendatacommunities.org/id/metropolitan-district-council/leeds,Leeds City Council,30/04/2022,Children and Families,Social Care,Agency Payments,Placement Support,550,08/04/2022,2204-00439,0.00,21.15,R,REDACTED PERSONAL DATA,No
Http://opendatacommunities.org/id/metropolitan-district-council/leeds,Leeds City Council,30/04/2022,Children and Families,Social Care,Agency Payments,Placement Support,550,14/04/2022,2204-00440,0.00,21.15,R,REDACTED PERSONAL DATA,No
Http://opendatacommunities.org/id/metropolitan-district-council/leeds,Leeds City Council,30/04/2022,Children and Families,Social Care,Agency Payments,Placement Support,550,22/04/2022,2204-00441,0.00,21.15,R,REDACTED PERSONAL DATA,No
Http://opendatacommunities.org/id/metropolitan-district-council/leeds,Leeds City Council as Accountable Body,30/04/2022,Social Services Pooled Budgets,Jcs For People With Learning Disabilitie,Agency Payments,Residential,580,27/04/2022,2204-00442,0.00,2609.36,R,ADRIAN HOUSE,No
Http://opendatacommunities.org/id/metropolitan-district-council/leeds,Leeds City Council,30/04/2022,City Development,Recreation,Supplies and Services,External Audit Fees,261,14/04/2022,2204-00443,0.00,140.00,R,ADVANCE STOCKS LTD,No
Http://opendatacommunities.org/id/metropolitan-district-council/leeds,Leeds City Council,30/04/2022,Children and Families,Social Care,Internal Recharges,Legal Disbursements,411,01/04/2022,2204-00444,0.00,1244.30,R,ADVANCED CHILD CARE ASSESSMENTS LTD,No
Http://opendatacommunities.org/id/metropolitan-district-council/leeds,Leeds City Council,30/04/2022,Children and Families,Social Care,Internal Recharges,Legal Disbursements,411,01/04/2022,2204-00445,0.00,495.00,R,ADVANCED CHILD CARE ASSESSMENTS LTD,No
Http://opendatacommunities.org/id/metropolitan-district-council/leeds,Leeds City Council,30/04/2022,Children and Families,Social Care,Agency Payments,Placement Support,550,06/04/2022,2204-00446,0.00,525.00,R,ADVANCED CHILD CARE ASSESSMENTS LTD,No
Http://opendatacommunities.org/id/metropolitan-district-council/leeds,Leeds City Council,30/04/2022,Children and Families,Social Care,Internal Recharges,Legal Disbursements,411,08/04/2022,2204-00447,0.00,1209.30,R,ADVANCED CHILD CARE ASSESSMENTS LTD,No
Http://opendatacommunities.org/id/metropolitan-district-council/leeds,Leeds City Council,30/04/2022,Children and Families,Social Care,Internal Recharges,Legal Disbursements,411,14/04/2022,2204-00448,0.00,1034.30,R,ADVANCED CHILD CARE ASSESSMENTS LTD,No
Http://opendatacommunities.org/id/metropolitan-district-council/leeds,Leeds City Council,30/04/2022,Children and Families,Social Care,Internal Recharges,Legal Disbursements,411,22/04/2022,2204-00449,0.00,694.80,R,ADVANCED CHILD CARE ASSESSMENTS LTD,No
Http://opendatacommunities.org/id/metropolitan-district-council/leeds,Leeds City Council,30/04/2022,Children and Families,Social Care,Internal Recharges,Legal Disbursements,411,29/04/2022,2204-00450,0.00,419.43,R,ADVANCED CHILD CARE ASSESSMENTS LTD,No
Http://opendatacommunities.org/id/metropolitan-district-council/leeds,Leeds City Council as Accountable Body,30/04/2022,Social Services Pooled Budgets,Jcs For People With Learning Disabilitie,Agency Payments,Home Care,568,01/04/2022,2204-00451,0.00,4042.50,R,Advantage Healthcare Ltd,No
Http://opendatacommunities.org/id/metropolitan-district-council/leeds,Leeds City Council as Accountable Body,30/04/2022,Social Services Pooled Budgets,Jcs For People With Learning Disabilitie,Agency Payments,Home Care,568,08/04/2022,2204-00452,0.00,319.60,R,Advantage Healthcare Ltd,No
Http://opendatacommunities.org/id/metropolitan-district-council/leeds,Leeds City Council as Accountable Body,30/04/2022,Social Services Pooled Budgets,Jcs For People With Learning Disabilitie,Agency Payments,Home Care,568,14/04/2022,2204-00453,0.00,4742.50,R,Advantage Healthcare Ltd,No
Http://opendatacommunities.org/id/metropolitan-district-council/leeds,Leeds City Council,30/04/2022,Adults and Health,Services For Adults Under 65 Mental/Dis,Supplies and Services,'Well Being' Large Grants Projects,230,04/04/2022,2204-00454,0.00,72000.00,R,Advonet,No
Http://opendatacommunities.org/id/metropolitan-district-council/leeds,Leeds City Council,30/04/2022,Adults and Health,Services For Older People - 65 And Over,Agency Payments,Payments To Voluntary Organisations,561,21/04/2022,2204-00455,0.00,104750.00,R,Advonet,No
Http://opendatacommunities.org/id/metropolitan-district-council/leeds,Leeds City Council as Accountable Body,30/04/2022,Social Services Pooled Budgets,Jcs For People With Learning Disabilitie,Supplies and Services,Other Hired And Contracted Services,265,29/04/2022,2204-00456,0.00,127.50,R,Advonet,No
Http://opendatacommunities.org/id/metropolitan-district-council/leeds,Leeds City Council as Accountable Body,30/04/2022,Social Services Pooled Budgets,Jcs For People With Learning Disabilitie,Supplies and Services,Other Hired And Contracted Services,265,29/04/2022,2204-00457,0.00,102.60,R,Advonet,No
Http://opendatacommunities.org/id/metropolitan-district-council/leeds,Leeds City Council as Accountable Body,30/04/2022,Social Services Pooled Budgets,Jcs For People With Learning Disabilitie,Supplies and Services,Other Hired And Contracted Services,265,29/04/2022,2204-00458,0.00,167.40,R,Advonet,No
Http://opendatacommunities.org/id/metropolitan-district-council/leeds,Leeds City Council as Accountable Body,30/04/2022,Social Services Pooled Budgets,Jcs For People With Learning Disabilitie,Supplies and Services,Other Hired And Contracted Services,265,29/04/2022,2204-00459,0.00,233.85,R,Advonet,No
Http://opendatacommunities.org/id/metropolitan-district-council/leeds,Leeds City Council as Accountable Body,30/04/2022,Social Services Pooled Budgets,Jcs For People With Learning Disabilitie,Supplies and Services,Other Hired And Contracted Services,265,29/04/2022,2204-00460,0.00,90.00,R,Advonet,No
Http://opendatacommunities.org/id/metropolitan-district-council/leeds,Leeds City Council,30/04/2022,Adults and Health,Assessment And Care Management,Supplies and Services,Other Hired And Contracted Services,265,29/04/2022,2204-00461,0.00,18.00,R,Advonet,No
Http://opendatacommunities.org/id/metropolitan-district-council/leeds,Leeds City Council as Accountable Body,30/04/2022,Social Services Pooled Budgets,Jcs For People With Learning Disabilitie,Supplies and Services,Other Hired And Contracted Services,265,29/04/2022,2204-00462,0.00,70.20,R,Advonet,No
Http://opendatacommunities.org/id/metropolitan-district-council/leeds,Leeds City Council as Accountable Body,30/04/2022,Social Services Pooled Budgets,Jcs For People With Learning Disabilitie,Supplies and Services,Other Hired And Contracted Services,265,29/04/2022,2204-00463,0.00,5.10,R,Advonet,No
Http://opendatacommunities.org/id/metropolitan-district-council/leeds,Leeds City Council as Accountable Body,30/04/2022,Social Services Pooled Budgets,Jcs For People With Learning Disabilitie,Agency Payments,Home Care,568,29/04/2022,2204-00464,0.00,138.60,R,Advonet,No
Http://opendatacommunities.org/id/metropolitan-district-council/leeds,Leeds City Council,30/04/2022,Adults and Health,Services For Adults Under 65 Mental/Dis,Agency Payments,Home Care,568,29/04/2022,2204-00465,0.00,140.10,R,Advonet,No
Http://opendatacommunities.org/id/metropolitan-district-council/leeds,Leeds City Council,30/04/2022,Adults and Health,Services For Adults Under 65 Mental/Dis,Agency Payments,Fees - Level 4,520,01/04/2022,2204-00466,0.00,198.00,R,AE BIA Assessments Limited,No
Http://opendatacommunities.org/id/metropolitan-district-council/leeds,Leeds City Council,30/04/2022,Adults and Health,Services For Adults Under 65 Mental/Dis,Agency Payments,Fees - Level 4,520,22/04/2022,2204-00467,0.00,222.70,R,AE BIA Assessments Limited,No
Http://opendatacommunities.org/id/metropolitan-district-council/leeds,Leeds City Council,30/04/2022,Adults and Health,Services For Adults Under 65 Mental/Dis,Agency Payments,Fees - Level 4,520,22/04/2022,2204-00468,0.00,198.00,R,AE BIA Assessments Limited,No
Http://opendatacommunities.org/id/metropolitan-district-council/leeds,Leeds City Council,30/04/2022,City Development,Highways,Capital,OTHER COSTS,7,07/04/2022,2204-00469,0.00,63827.39,C,Aecom Limited,No
Http://opendatacommunities.org/id/metropolitan-district-council/leeds,Leeds City Council,30/04/2022,City Development,Highways,Capital,OTHER COSTS,7,11/04/2022,2204-00470,0.00,3258.88,C,Aecom Limited,No
Http://opendatacommunities.org/id/metropolitan-district-council/leeds,Leeds City Council,30/04/2022,City Development,Highways,Capital,OTHER COSTS,7,13/04/2022,2204-00471,0.00,55943.00,C,Aecom Limited,No
Http://opendatacommunities.org/id/metropolitan-district-council/leeds,Leeds City Council,30/04/2022,City Development,Highways,Capital,OTHER COSTS,7,29/04/2022,2204-00472,0.00,70735.33,C,Aecom Limited,No
Http://opendatacommunities.org/id/metropolitan-district-council/leeds,Leeds City Council,30/04/2022,City Development,Highways,Capital,OTHER COSTS,7,29/04/2022,2204-00473,0.00,133576.04,C,Aecom Limited,No
Http://opendatacommunities.org/id/metropolitan-district-council/leeds,Leeds City Council,30/04/2022,City Development,Highways,Capital,OTHER COSTS,7,29/04/2022,2204-00474,0.00,158898.37,C,Aecom Limited,No
Http://opendatacommunities.org/id/metropolitan-district-council/leeds,Leeds City Council,30/04/2022,Adults and Health,Services For Older People - 65 And Over,Agency Payments,Home Care,568,01/04/2022,2204-00475,0.00,3369.29,R,Aegis Care Solutions Ltd,No
Http://opendatacommunities.org/id/metropolitan-district-council/leeds,Leeds City Council,30/04/2022,Adults and Health,Services For Adults Under 65 Mental/Dis,Agency Payments,Home Care,568,12/04/2022,2204-00476,0.00,712.00,R,Aegis Care Solutions Ltd,No
Http://opendatacommunities.org/id/metropolitan-district-council/leeds,Leeds City Council,30/04/2022,Adults and Health,Services For Adults Under 65 Mental/Dis,Agency Payments,Home Care,568,12/04/2022,2204-00477,0.00,475.20,R,Aegis Care Solutions Ltd,No
Http://opendatacommunities.org/id/metropolitan-district-council/leeds,Leeds City Council,30/04/2022,Adults and Health,Services For Adults Under 65 Mental/Dis,Agency Payments,Home Care,568,12/04/2022,2204-00478,0.00,1122.00,R,Aegis Care Solutions Ltd,No
Http://opendatacommunities.org/id/metropolitan-district-council/leeds,Leeds City Council,30/04/2022,Adults and Health,Services For Adults Under 65 Mental/Dis,Agency Payments,Home Care,568,12/04/2022,2204-00479,0.00,4115.20,R,Aegis Care Solutions Ltd,No
Http://opendatacommunities.org/id/metropolitan-district-council/leeds,Leeds City Council,30/04/2022,Adults and Health,Services For Adults Under 65 Mental/Dis,Agency Payments,Home Care,568,12/04/2022,2204-00480,0.00,2483.61,R,Aegis Care Solutions Ltd,No
Http://opendatacommunities.org/id/metropolitan-district-council/leeds,Leeds City Council,30/04/2022,Adults and Health,Services For Adults Under 65 Mental/Dis,Agency Payments,Home Care,568,12/04/2022,2204-00481,0.00,1141.50,R,Aegis Care Solutions Ltd,No
Http://opendatacommunities.org/id/metropolitan-district-council/leeds,Leeds City Council,30/04/2022,Adults and Health,Services For Adults Under 65 Mental/Dis,Agency Payments,Home Care,568,12/04/2022,2204-00482,0.00,548.03,R,Aegis Care Solutions Ltd,No
Http://opendatacommunities.org/id/metropolitan-district-council/leeds,Leeds City Council,30/04/2022,Adults and Health,Services For Adults Under 65 Mental/Dis,Agency Payments,Home Care,568,12/04/2022,2204-00483,0.00,1182.00,R,Aegis Care Solutions Ltd,No
Http://opendatacommunities.org/id/metropolitan-district-council/leeds,Leeds City Council,30/04/2022,Adults and Health,Services For Adults Under 65 Mental/Dis,Agency Payments,Home Care,568,12/04/2022,2204-00484,0.00,225.50,R,Aegis Care Solutions Ltd,No
Http://opendatacommunities.org/id/metropolitan-district-council/leeds,Leeds City Council,30/04/2022,Adults and Health,Services For Adults Under 65 Mental/Dis,Agency Payments,Home Care,568,12/04/2022,2204-00485,0.00,1028.80,R,Aegis Care Solutions Ltd,No
Http://opendatacommunities.org/id/metropolitan-district-council/leeds,Leeds City Council,30/04/2022,Adults and Health,Services For Adults Under 65 Mental/Dis,Agency Payments,Home Care,568,12/04/2022,2204-00486,0.00,213.60,R,Aegis Care Solutions Ltd,No
Http://opendatacommunities.org/id/metropolitan-district-council/leeds,Leeds City Council,30/04/2022,Adults and Health,Services For Adults Under 65 Mental/Dis,Agency Payments,Home Care,568,13/04/2022,2204-00487,0.00,4542.40,R,Aegis Care Solutions Ltd,No
Http://opendatacommunities.org/id/metropolitan-district-council/leeds,Leeds City Council,30/04/2022,Adults and Health,Services For Adults Under 65 Mental/Dis,Agency Payments,Home Care,568,13/04/2022,2204-00488,0.00,1303.50,R,Aegis Care Solutions Ltd,No
Http://opendatacommunities.org/id/metropolitan-district-council/leeds,Leeds City Council,30/04/2022,Adults and Health,Services For Adults Under 65 Mental/Dis,Agency Payments,Home Care,568,13/04/2022,2204-00489,0.00,1303.50,R,Aegis Care Solutions Ltd,No
Http://opendatacommunities.org/id/metropolitan-district-council/leeds,Leeds City Council,30/04/2022,Adults and Health,Services For Adults Under 65 Mental/Dis,Agency Payments,Home Care,568,19/04/2022,2204-00490,0.00,475.20,R,Aegis Care Solutions Ltd,No
Http://opendatacommunities.org/id/metropolitan-district-council/leeds,Leeds City Council,30/04/2022,Adults and Health,Services For Adults Under 65 Mental/Dis,Agency Payments,Home Care,568,19/04/2022,2204-00491,0.00,1215.90,R,Aegis Care Solutions Ltd,No
Http://opendatacommunities.org/id/metropolitan-district-council/leeds,Leeds City Council,30/04/2022,Adults and Health,Services For Adults Under 65 Mental/Dis,Agency Payments,Home Care,568,19/04/2022,2204-00492,0.00,2034.45,R,Aegis Care Solutions Ltd,No
Http://opendatacommunities.org/id/metropolitan-district-council/leeds,Leeds City Council,30/04/2022,Adults and Health,Services For Adults Under 65 Mental/Dis,Agency Payments,Home Care,568,19/04/2022,2204-00493,0.00,1659.40,R,Aegis Care Solutions Ltd,No
Http://opendatacommunities.org/id/metropolitan-district-council/leeds,Leeds City Council,30/04/2022,Adults and Health,Services For Older People - 65 And Over,Agency Payments,Home Care,568,27/04/2022,2204-00494,0.00,30533.28,R,Aegis Care Solutions Ltd,No
Http://opendatacommunities.org/id/metropolitan-district-council/leeds,Leeds City Council,30/04/2022,Adults and Health,Services For Older People - 65 And Over,Agency Payments,HCAIT Other,577,27/04/2022,2204-00495,0.00,388.80,R,Aegis Care Solutions Ltd,No
Http://opendatacommunities.org/id/metropolitan-district-council/leeds,Leeds City Council,30/04/2022,Adults and Health,Services For Older People Under 65 P/Dis,Agency Payments,Home Care,568,27/04/2022,2204-00496,0.00,9224.50,R,Aegis Care Solutions Ltd,No
Http://opendatacommunities.org/id/metropolitan-district-council/leeds,Leeds City Council as Accountable Body,30/04/2022,Social Services Pooled Budgets,Jcs For People With Learning Disabilitie,Agency Payments,Home Care,568,27/04/2022,2204-00497,0.00,2260.80,R,Aegis Care Solutions Ltd,No
Http://opendatacommunities.org/id/metropolitan-district-council/leeds,Leeds City Council,30/04/2022,Adults and Health,Services For Older People - 65 And Over,Agency Payments,Residential,580,01/04/2022,2204-00498,0.00,45760.00,R,Affinity Trust,No
Http://opendatacommunities.org/id/metropolitan-district-council/leeds,Leeds City Council,30/04/2022,Adults and Health,Assessment And Care Management,Agency Payments,Home Care,568,13/04/2022,2204-00499,0.00,135.92,R,Affinity Trust,No
Http://opendatacommunities.org/id/metropolitan-district-council/leeds,Leeds City Council,30/04/2022,Adults and Health,Services For Adults Under 65 Mental/Dis,Agency Payments,Home Care,568,13/04/2022,2204-00500,0.00,543.68,R,Affinity Trust,No
Http://opendatacommunities.org/id/metropolitan-district-council/leeds,Leeds City Council,30/04/2022,Adults and Health,Services For Adults Under 65 Mental/Dis,Agency Payments,HCAIT Community Support,575,13/04/2022,2204-00501,0.00,339.80,R,Affinity Trust,No
Http://opendatacommunities.org/id/metropolitan-district-council/leeds,Leeds City Council,30/04/2022,Adults and Health,Services For Older People - 65 And Over,Agency Payments,HCAIT Community Support,575,13/04/2022,2204-00502,0.00,611.64,R,Affinity Trust,No
Http://opendatacommunities.org/id/metropolitan-district-council/leeds,Leeds City Council,30/04/2022,Adults and Health,Services For Older People Under 65 P/Dis,Agency Payments,Home Care,568,13/04/2022,2204-00503,0.00,815.52,R,Affinity Trust,No
Http://opendatacommunities.org/id/metropolitan-district-council/leeds,Leeds City Council,30/04/2022,Adults and Health,Services For Older People Under 65 P/Dis,Agency Payments,HCAIT Community Support,575,13/04/2022,2204-00504,0.00,747.56,R,Affinity Trust,No
Http://opendatacommunities.org/id/metropolitan-district-council/leeds,Leeds City Council as Accountable Body,30/04/2022,Social Services Pooled Budgets,Jcs For People With Learning Disabilitie,Agency Payments,Day Centre,564,14/04/2022,2204-00505,0.00,15494.88,R,Affinity Trust,No
Http://opendatacommunities.org/id/metropolitan-district-council/leeds,Leeds City Council,30/04/2022,Adults and Health,Assessment And Care Management,Agency Payments,Home Care,568,14/04/2022,2204-00506,0.00,679.60,R,Affinity Trust,No
Http://opendatacommunities.org/id/metropolitan-district-council/leeds,Leeds City Council,30/04/2022,Adults and Health,Services For Older People - 65 And Over,Agency Payments,Home Care,568,14/04/2022,2204-00507,0.00,543.68,R,Affinity Trust,No
Http://opendatacommunities.org/id/metropolitan-district-council/leeds,Leeds City Council as Accountable Body,30/04/2022,Social Services Pooled Budgets,Jcs For People With Learning Disabilitie,Agency Payments,Sheltered Accommodation,569,27/04/2022,2204-00508,0.00,181465.40,R,Affinity Trust North Divisional Office,No
Http://opendatacommunities.org/id/metropolitan-district-council/leeds,Leeds City Council,30/04/2022,Communities Housing and Environment,Parks and Countryside,Transport,Hire Of Movable Plant & Machinery,315,21/03/2022,2204-00509,0.00,3800.00,R,Afi Uplift,Yes
Http://opendatacommunities.org/id/metropolitan-district-council/leeds,Leeds City Council,30/04/2022,Resources,Commercial Services,Supplies and Services,Compensation Claims,200,20/04/2022,2204-00510,0.00,634.40,R,REDACTED PERSONAL DATA,No
Http://opendatacommunities.org/id/metropolitan-district-council/leeds,Leeds City Council,30/04/2022,Children and Families,Social Care,Supplies and Services,Clothing & Uniforms,241,02/03/2022,2204-00511,0.00,5.82,R,Age Uk,Yes
Http://opendatacommunities.org/id/metropolitan-district-council/leeds,Leeds City Council,30/04/2022,Adults and Health,Services For Older People - 65 And Over,Agency Payments,Payments To Voluntary Organisations,561,01/04/2022,2204-00512,0.00,10599.75,R,Age Uk Leeds,No
Http://opendatacommunities.org/id/metropolitan-district-council/leeds,Leeds City Council,30/04/2022,Adults and Health,Public Health,Agency Payments,Services Rendered By Voluntary Sector,505,21/04/2022,2204-00513,0.00,7500.00,R,Age Uk Leeds,No
Http://opendatacommunities.org/id/metropolitan-district-council/leeds,Leeds City Council,30/04/2022,Adults and Health,Public Health,Agency Payments,Services Rendered By Voluntary Sector,505,21/04/2022,2204-00514,0.00,7500.00,R,Age Uk Leeds,No
Http://opendatacommunities.org/id/metropolitan-district-council/leeds,Leeds City Council,30/04/2022,Adults and Health,Other Adult Services,Supplies and Services,Grants To Voluntary Organisations,293,22/04/2022,2204-00515,0.00,10000.00,R,Age Uk Leeds,No
Http://opendatacommunities.org/id/metropolitan-district-council/leeds,Leeds City Council,30/04/2022,Insurance,Insurance,Supplies and Services,Insurance Claims,248,07/04/2022,2204-00516,0.00,4064.35,R,Ageas Law,No
Http://opendatacommunities.org/id/metropolitan-district-council/leeds,Leeds City Council,30/04/2022,Insurance,Insurance,Supplies and Services,Insurance Claims,248,07/04/2022,2204-00517,0.00,576.00,R,Ageas Law,No
Http://opendatacommunities.org/id/metropolitan-district-council/leeds,Leeds City Council,30/04/2022,City Development,Highways,Capital,CONSTRUCTION,3,01/04/2022,2204-00518,0.00,63233.64,C,AGGREGATE INDUSTRIES UK LTD,No
Http://opendatacommunities.org/id/metropolitan-district-council/leeds,Leeds City Council,30/04/2022,City Development,Highways,Supplies and Services,Operational Materials,205,13/04/2022,2204-00519,0.00,1959.42,R,AGGREGATE INDUSTRIES UK LTD,No
Http://opendatacommunities.org/id/metropolitan-district-council/leeds,Leeds City Council,30/04/2022,City Development,Highways,Supplies and Services,Operational Materials,205,14/04/2022,2204-00520,0.00,2559.04,R,AGGREGATE INDUSTRIES UK LTD,No
Http://opendatacommunities.org/id/metropolitan-district-council/leeds,Leeds City Council,30/04/2022,City Development,Highways,Supplies and Services,Operational Materials,205,14/04/2022,2204-00521,0.00,8754.20,R,AGGREGATE INDUSTRIES UK LTD,No
Http://opendatacommunities.org/id/metropolitan-district-council/leeds,Leeds City Council,30/04/2022,City Development,Highways,Supplies and Services,Operational Materials,205,14/04/2022,2204-00522,0.00,736.50,R,AGGREGATE INDUSTRIES UK LTD,No
Http://opendatacommunities.org/id/metropolitan-district-council/leeds,Leeds City Council,30/04/2022,City Development,Highways,Supplies and Services,Operational Materials,205,14/04/2022,2204-00523,0.00,1000.00,R,AGGREGATE INDUSTRIES UK LTD,No
Http://opendatacommunities.org/id/metropolitan-district-council/leeds,Leeds City Council,30/04/2022,City Development,Highways,Supplies and Services,Operational Materials,205,14/04/2022,2204-00524,0.00,33.00,R,AGGREGATE INDUSTRIES UK LTD,No
Http://opendatacommunities.org/id/metropolitan-district-council/leeds,Leeds City Council,30/04/2022,City Development,Highways,Supplies and Services,Operational Materials,205,27/04/2022,2204-00525,0.00,8705.36,R,AGGREGATE INDUSTRIES UK LTD,No
Http://opendatacommunities.org/id/metropolitan-district-council/leeds,Leeds City Council,30/04/2022,City Development,Highways,Capital,CONSTRUCTION,3,29/04/2022,2204-00526,0.00,71861.35,C,AGGREGATE INDUSTRIES UK LTD,No
Http://opendatacommunities.org/id/metropolitan-district-council/leeds,Leeds City Council,30/04/2022,Communities Housing and Environment,Customer Access,Supplies and Services,Bought In Professional Services,277,06/04/2022,2204-00527,0.00,18.00,R,Ahmed Moustafa Moustafa Mousa,No
Http://opendatacommunities.org/id/metropolitan-district-council/leeds,Leeds City Council,30/04/2022,Communities Housing and Environment,Customer Access,Supplies and Services,Bought In Professional Services,277,06/04/2022,2204-00528,0.00,10.00,R,Ahmed T. Al-Hamdi,No
Http://opendatacommunities.org/id/metropolitan-district-council/leeds,Leeds City Council,30/04/2022,Children and Families,Social Care,Transport,Fuel (Non LCC Supplies),321,08/04/2022,2204-00529,0.00,65.00,R,REDACTED PERSONAL DATA,No
Http://opendatacommunities.org/id/metropolitan-district-council/leeds,Leeds City Council as Accountable Body,30/04/2022,Social Services Pooled Budgets,Leeds Community Equip Store Pooled Budgt,Supplies and Services,Other Equipment,203,01/04/2022,2204-00530,0.00,450.00,R,AIDAPT BATHROOMS LTD,No
Http://opendatacommunities.org/id/metropolitan-district-council/leeds,Leeds City Council as Accountable Body,30/04/2022,Social Services Pooled Budgets,Leeds Community Equip Store Pooled Budgt,Supplies and Services,Other Equipment,203,01/04/2022,2204-00531,0.00,909.00,R,AIDAPT BATHROOMS LTD,No
Http://opendatacommunities.org/id/metropolitan-district-council/leeds,Leeds City Council as Accountable Body,30/04/2022,Social Services Pooled Budgets,Leeds Community Equip Store Pooled Budgt,Supplies and Services,Other Equipment,203,01/04/2022,2204-00532,0.00,42.50,R,AIDAPT BATHROOMS LTD,No
Http://opendatacommunities.org/id/metropolitan-district-council/leeds,Leeds City Council as Accountable Body,30/04/2022,Social Services Pooled Budgets,Leeds Community Equip Store Pooled Budgt,Supplies and Services,Other Equipment,203,14/04/2022,2204-00533,0.00,154.00,R,AIDAPT BATHROOMS LTD,No
Http://opendatacommunities.org/id/metropolitan-district-council/leeds,Leeds City Council as Accountable Body,30/04/2022,Social Services Pooled Budgets,Leeds Community Equip Store Pooled Budgt,Supplies and Services,Other Equipment,203,21/04/2022,2204-00534,0.00,3852.00,R,AIDAPT BATHROOMS LTD,No
Http://opendatacommunities.org/id/metropolitan-district-council/leeds,Leeds City Council as Accountable Body,30/04/2022,Social Services Pooled Budgets,Leeds Community Equip Store Pooled Budgt,Supplies and Services,Other Equipment,203,22/04/2022,2204-00535,0.00,766.00,R,AIDAPT BATHROOMS LTD,No
Http://opendatacommunities.org/id/metropolitan-district-council/leeds,Leeds City Council as Accountable Body,30/04/2022,Social Services Pooled Budgets,Leeds Community Equip Store Pooled Budgt,Supplies and Services,Other Equipment,203,28/04/2022,2204-00536,0.00,1849.75,R,AIDAPT BATHROOMS LTD,No
Http://opendatacommunities.org/id/metropolitan-district-council/leeds,Leeds City Council,30/04/2022,Children and Families,Social Care,Transport,Fuel (Non LCC Supplies),321,29/04/2022,2204-00537,0.00,65.00,R,REDACTED PERSONAL DATA,No
Http://opendatacommunities.org/id/metropolitan-district-council/leeds,Leeds City Council,30/04/2022,Children and Families,Social Care,Supplies and Services,Conference Meetings,253,08/04/2022,2204-00538,0.00,225.00,R,AIM PROJECT,No
Http://opendatacommunities.org/id/metropolitan-district-council/leeds,Leeds City Council,30/04/2022,Resources,Commercial Services,Supplies and Services,Other Hired And Contracted Services,265,14/04/2022,2204-00539,0.00,150.40,R,REDACTED PERSONAL DATA,No
Http://opendatacommunities.org/id/metropolitan-district-council/leeds,Leeds City Council,30/04/2022,Children and Families,Social Care,Agency Payments,Section 17,551,11/04/2022,2204-00540,0.00,50.00,R,REDACTED PERSONAL DATA,No
Http://opendatacommunities.org/id/metropolitan-district-council/leeds,Leeds City Council,30/04/2022,Strategic Accounts,Miscellaneous,Appropriations,Land Drainage Levies,665,29/04/2022,2204-00541,0.00,4037.87,R,Ainsty (2008) Internal Drainage Board,No
Http://opendatacommunities.org/id/metropolitan-district-council/leeds,Leeds City Council,30/04/2022,Resources,Commercial Services,Supplies and Services,Operational Materials,205,18/03/2022,2204-00542,0.00,13.50,R,Air Force Pneumatics And,Yes
Http://opendatacommunities.org/id/metropolitan-district-council/leeds,Leeds City Council,30/04/2022,Resources,Commercial Services,Supplies and Services,Operational Materials,205,18/03/2022,2204-00543,0.00,137.00,R,Air Force Pneumatics And,Yes
Http://opendatacommunities.org/id/metropolitan-district-council/leeds,Leeds City Council,30/04/2022,Communities Housing and Environment,Environmental Health,Supplies and Services,Other Hired And Contracted Services,265,29/04/2022,2204-00544,0.00,11.25,R,AIR LIQUIDE UK,No
Http://opendatacommunities.org/id/metropolitan-district-council/leeds,Leeds City Council,30/04/2022,Communities Housing and Environment,Environmental Health,Supplies and Services,Other Hired And Contracted Services,265,29/04/2022,2204-00545,0.00,11.25,R,AIR LIQUIDE UK,No
Http://opendatacommunities.org/id/metropolitan-district-council/leeds,Leeds City Council,30/04/2022,Communities Housing and Environment,Environmental Health,Supplies and Services,Other Hired And Contracted Services,265,29/04/2022,2204-00546,0.00,17.38,R,AIR LIQUIDE UK,No
Http://opendatacommunities.org/id/metropolitan-district-council/leeds,Leeds City Council,30/04/2022,Communities Housing and Environment,Environmental Health,Supplies and Services,Other Hired And Contracted Services,265,29/04/2022,2204-00547,0.00,78.75,R,AIR LIQUIDE UK,No
Http://opendatacommunities.org/id/metropolitan-district-council/leeds,Leeds City Council,30/04/2022,Communities Housing and Environment,Parks and Countryside,Supplies and Services,Operational Furniture And Equipment,203,08/04/2022,2204-00548,0.00,992.60,R,Air Solutions (Leeds) Ltd,No
Http://opendatacommunities.org/id/metropolitan-district-council/leeds,Leeds City Council,30/04/2022,Children and Families,Social Care,Supplies and Services,Subsistence,256,05/03/2022,2204-00549,0.00,438.53,R,Airbnb * Hm2szmxpjt,Yes
Http://opendatacommunities.org/id/metropolitan-district-council/leeds,Leeds City Council,30/04/2022,Children and Families,Social Care,Supplies and Services,Subsistence,256,10/03/2022,2204-00550,0.00,308.72,R,Airbnb * Hm3arpm88j,Yes
Http://opendatacommunities.org/id/metropolitan-district-council/leeds,Leeds City Council,30/04/2022,Children and Families,Social Care,Supplies and Services,Subsistence,256,28/02/2022,2204-00551,0.00,325.00,R,Airbnb * Hmfybcta2d,Yes
Http://opendatacommunities.org/id/metropolitan-district-council/leeds,Leeds City Council,30/04/2022,Children and Families,Social Care,Supplies and Services,Subsistence,256,02/03/2022,2204-00552,0.00,110.00,R,Airbnb * Hmfybcta2d,Yes
Http://opendatacommunities.org/id/metropolitan-district-council/leeds,Leeds City Council,30/04/2022,Strategic Landlord,Property and Contracts,Employees,Training & Development,70,22/04/2022,2204-00553,0.00,1840.00,R,Airborne Environmental Consultants Ltd,No
Http://opendatacommunities.org/id/metropolitan-district-council/leeds,Leeds City Council,30/04/2022,Adults and Health,Public Health,Supplies and Services,Computer Software & Equipment,214,07/04/2022,2204-00554,0.00,525.00,R,Aire Logic Ltd,No
Http://opendatacommunities.org/id/metropolitan-district-council/leeds,Leeds City Council,30/04/2022,Communities Housing and Environment,Parks and Countryside,Supplies and Services,Other Hired And Contracted Services,265,07/04/2022,2204-00555,0.00,2283.00,R,Aire Valley Tree Services Ltd,No
Http://opendatacommunities.org/id/metropolitan-district-council/leeds,Leeds City Council,30/04/2022,Communities Housing and Environment,Parks and Countryside,Supplies and Services,Other Hired And Contracted Services,265,08/04/2022,2204-00556,0.00,600.00,R,Aire Valley Tree Services Ltd,No
Http://opendatacommunities.org/id/metropolitan-district-council/leeds,Leeds City Council,30/04/2022,Communities Housing and Environment,Parks and Countryside,Supplies and Services,Other Hired And Contracted Services,265,12/04/2022,2204-00557,0.00,200.00,R,Aire Valley Tree Services Ltd,No
Http://opendatacommunities.org/id/metropolitan-district-council/leeds,Leeds City Council,30/04/2022,Communities Housing and Environment,Parks and Countryside,Supplies and Services,Other Hired And Contracted Services,265,20/04/2022,2204-00558,0.00,1200.00,R,Aire Valley Tree Services Ltd,No
Http://opendatacommunities.org/id/metropolitan-district-council/leeds,Leeds City Council,30/04/2022,Communities Housing and Environment,Parks and Countryside,Premises,Grounds Maintenance Work,111,29/04/2022,2204-00559,0.00,3138.00,R,Aire Valley Tree Services Ltd,No
Http://opendatacommunities.org/id/metropolitan-district-council/leeds,Leeds City Council,30/04/2022,Communities Housing and Environment,Parks and Countryside,Premises,Grounds Maintenance Work,111,29/04/2022,2204-00560,0.00,2503.00,R,Aire Valley Tree Services Ltd,No
Http://opendatacommunities.org/id/metropolitan-district-council/leeds,Leeds City Council,30/04/2022,Communities Housing and Environment,Parks and Countryside,Premises,Grounds Maintenance Work,111,29/04/2022,2204-00561,0.00,4265.00,R,Aire Valley Tree Services Ltd,No
Http://opendatacommunities.org/id/metropolitan-district-council/leeds,Leeds City Council,30/04/2022,Communities Housing and Environment,Parks and Countryside,Supplies and Services,Other Hired And Contracted Services,265,29/04/2022,2204-00562,0.00,1800.00,R,Aire Valley Tree Services Ltd,No
Http://opendatacommunities.org/id/metropolitan-district-council/leeds,Leeds City Council,30/04/2022,Adults and Health,Services For Older People - 65 And Over,Agency Payments,Residential,580,01/04/2022,2204-00563,0.00,18980.00,R,Aire View Residential Home,No
Http://opendatacommunities.org/id/metropolitan-district-council/leeds,Leeds City Council,30/04/2022,Adults and Health,Services For Older People - 65 And Over,Agency Payments,Residential Care Dementia,571,27/04/2022,2204-00564,0.00,48543.21,R,Aire View Residential Home,No
Http://opendatacommunities.org/id/metropolitan-district-council/leeds,Leeds City Council,30/04/2022,Adults and Health,Services For Older People - 65 And Over,Agency Payments,Residential,580,27/04/2022,2204-00565,0.00,9734.80,R,Aire View Residential Home,No
Http://opendatacommunities.org/id/metropolitan-district-council/leeds,Leeds City Council,30/04/2022,City Development,Recreation,Supplies and Services,Other Hired And Contracted Services,265,21/03/2022,2204-00566,0.00,2.25,R,Aireborough Leisure Centr,Yes
Http://opendatacommunities.org/id/metropolitan-district-council/leeds,Leeds City Council,30/04/2022,Adults and Health,Services For Older People Under 65 P/Dis,Agency Payments,Residential,580,27/04/2022,2204-00567,0.00,191.36,R,Airedale Care Home,No
Http://opendatacommunities.org/id/metropolitan-district-council/leeds,Leeds City Council,30/04/2022,Resources,Leeds Building Services,Supplies and Services,Other Hired And Contracted Services,265,08/04/2022,2204-00568,0.00,2800.00,R,AIREDALE CATERING EQUIPMENT LTD,No
Http://opendatacommunities.org/id/metropolitan-district-council/leeds,Leeds City Council,30/04/2022,Resources,Commercial Services,Supplies and Services,Operational Furniture And Equipment,203,14/04/2022,2204-00569,0.00,1490.00,R,AIREDALE CATERING EQUIPMENT LTD,No
Http://opendatacommunities.org/id/metropolitan-district-council/leeds,Leeds City Council,30/04/2022,Resources,Leeds Building Services,Supplies and Services,Other Hired And Contracted Services,265,27/04/2022,2204-00570,0.00,5998.00,R,AIREDALE CATERING EQUIPMENT LTD,No
Http://opendatacommunities.org/id/metropolitan-district-council/leeds,Leeds City Council,30/04/2022,Adults and Health,Services For Older People - 65 And Over,Agency Payments,Nursing Home,570,01/04/2022,2204-00571,0.00,1361.77,R,Airedale Residential Home,No
Http://opendatacommunities.org/id/metropolitan-district-council/leeds,Leeds City Council,30/04/2022,Adults and Health,Services For Older People - 65 And Over,Agency Payments,Residential,580,01/04/2022,2204-00572,0.00,8580.00,R,Airedale Residential Home,No
Http://opendatacommunities.org/id/metropolitan-district-council/leeds,Leeds City Council,30/04/2022,Adults and Health,Other Adult Services,Agency Payments,HCAIT Other,577,08/04/2022,2204-00573,0.00,4743.20,R,Airedale Residential Home,No
Http://opendatacommunities.org/id/metropolitan-district-council/leeds,Leeds City Council,30/04/2022,Adults and Health,Services For Older People - 65 And Over,Agency Payments,Residential Care Dementia,571,27/04/2022,2204-00574,0.00,3617.16,R,Airedale Residential Home,No
Http://opendatacommunities.org/id/metropolitan-district-council/leeds,Leeds City Council,30/04/2022,Adults and Health,Services For Older People - 65 And Over,Agency Payments,Residential,580,27/04/2022,2204-00575,0.00,14988.90,R,Airedale Residential Home,No
Http://opendatacommunities.org/id/metropolitan-district-council/leeds,Leeds City Council,30/04/2022,City Development,Employment & Skills,Agency Payments,Contributions To Partnerships,544,28/04/2022,2204-00576,0.00,4914.57,R,Airnow Cybersecurity Limited,No
Http://opendatacommunities.org/id/metropolitan-district-council/leeds,Leeds City Council,30/04/2022,Children and Families,Social Care,Transport,Public Transport Expenses,310,06/03/2022,2204-00577,0.00,12.05,R,Airpay 41036957-Amber Car,Yes
Http://opendatacommunities.org/id/metropolitan-district-council/leeds,Leeds City Council,30/04/2022,City Development,Recreation,External Income,Swimming Bath Charges,923,27/04/2022,2204-00578,0.00,26.50,R,REDACTED PERSONAL DATA,No
Http://opendatacommunities.org/id/metropolitan-district-council/leeds,Leeds City Council,30/04/2022,Adults and Health,Services For Adults Under 65 Mental/Dis,Agency Payments,Fees - Level 4,520,27/04/2022,2204-00579,0.00,175.00,R,AIT Mitra Limited,No
Http://opendatacommunities.org/id/metropolitan-district-council/leeds,Leeds City Council,30/04/2022,Adults and Health,Services For Adults Under 65 Mental/Dis,Agency Payments,Fees - Level 4,520,27/04/2022,2204-00580,0.00,175.00,R,AIT Mitra Limited,No
Http://opendatacommunities.org/id/metropolitan-district-council/leeds,Leeds City Council,30/04/2022,Adults and Health,Services For Adults Under 65 Mental/Dis,Agency Payments,Fees - Level 4,520,27/04/2022,2204-00581,0.00,175.00,R,AIT Mitra Limited,No
Http://opendatacommunities.org/id/metropolitan-district-council/leeds,Leeds City Council as Accountable Body,30/04/2022,Social Services Pooled Budgets,Jcs For People With Learning Disabilitie,Agency Payments,Residential,580,27/04/2022,2204-00582,0.00,6758.64,R,AITCH care homes,No
Http://opendatacommunities.org/id/metropolitan-district-council/leeds,Leeds City Council,30/04/2022,Communities Housing and Environment,Parks and Countryside,Supplies and Services,Operational Materials,205,07/04/2022,2204-00583,0.00,995.00,R,Aitkens Sportsturf Ltd,No
Http://opendatacommunities.org/id/metropolitan-district-council/leeds,Leeds City Council,30/04/2022,Communities Housing and Environment,Parks and Countryside,Supplies and Services,Operational Furniture And Equipment,203,20/04/2022,2204-00584,0.00,221.75,R,Aitkens Sportsturf Ltd,No
Http://opendatacommunities.org/id/metropolitan-district-council/leeds,Leeds City Council,30/04/2022,Resources,Leeds Building Services,Supplies and Services,STORES - CENTRAL AND OTHER DEPOTS,005,01/04/2022,2204-00585,0.00,1104.89,R,AJM FIXINGS & POWER TOOLS LTD,No
Http://opendatacommunities.org/id/metropolitan-district-council/leeds,Leeds City Council,30/04/2022,Resources,Leeds Building Services,Supplies and Services,Operational Furniture And Equipment,203,01/04/2022,2204-00586,0.00,259.00,R,AJM FIXINGS & POWER TOOLS LTD,No
Http://opendatacommunities.org/id/metropolitan-district-council/leeds,Leeds City Council,30/04/2022,Resources,Leeds Building Services,Supplies and Services,Operational Furniture And Equipment,203,01/04/2022,2204-00587,0.00,1663.28,R,AJM FIXINGS & POWER TOOLS LTD,No
Http://opendatacommunities.org/id/metropolitan-district-council/leeds,Leeds City Council,30/04/2022,Resources,Leeds Building Services,Supplies and Services,Operational Furniture And Equipment,203,01/04/2022,2204-00588,0.00,11.69,R,AJM FIXINGS & POWER TOOLS LTD,No
Http://opendatacommunities.org/id/metropolitan-district-council/leeds,Leeds City Council,30/04/2022,Resources,Leeds Building Services,Supplies and Services,Operational Furniture And Equipment,203,01/04/2022,2204-00589,0.00,754.00,R,AJM FIXINGS & POWER TOOLS LTD,No
Http://opendatacommunities.org/id/metropolitan-district-council/leeds,Leeds City Council,30/04/2022,Resources,Leeds Building Services,Supplies and Services,Operational Furniture And Equipment,203,01/04/2022,2204-00590,0.00,528.58,R,AJM FIXINGS & POWER TOOLS LTD,No
Http://opendatacommunities.org/id/metropolitan-district-council/leeds,Leeds City Council,30/04/2022,Resources,Leeds Building Services,Supplies and Services,Operational Furniture And Equipment,203,07/04/2022,2204-00591,0.00,196.00,R,AJM FIXINGS & POWER TOOLS LTD,No
Http://opendatacommunities.org/id/metropolitan-district-council/leeds,Leeds City Council,30/04/2022,Resources,Leeds Building Services,Supplies and Services,Operational Furniture And Equipment,203,07/04/2022,2204-00592,0.00,116.00,R,AJM FIXINGS & POWER TOOLS LTD,No
Http://opendatacommunities.org/id/metropolitan-district-council/leeds,Leeds City Council,30/04/2022,Resources,Leeds Building Services,Supplies and Services,Operational Furniture And Equipment,203,07/04/2022,2204-00593,0.00,35.99,R,AJM FIXINGS & POWER TOOLS LTD,No
Http://opendatacommunities.org/id/metropolitan-district-council/leeds,Leeds City Council,30/04/2022,Resources,Leeds Building Services,Supplies and Services,Operational Furniture And Equipment,203,07/04/2022,2204-00594,0.00,11.27,R,AJM FIXINGS & POWER TOOLS LTD,No
Http://opendatacommunities.org/id/metropolitan-district-council/leeds,Leeds City Council,30/04/2022,Resources,Leeds Building Services,Supplies and Services,Operational Furniture And Equipment,203,07/04/2022,2204-00595,0.00,253.29,R,AJM FIXINGS & POWER TOOLS LTD,No
Http://opendatacommunities.org/id/metropolitan-district-council/leeds,Leeds City Council,30/04/2022,Resources,Leeds Building Services,Supplies and Services,Operational Furniture And Equipment,203,21/04/2022,2204-00596,0.00,99.75,R,AJM FIXINGS & POWER TOOLS LTD,No
Http://opendatacommunities.org/id/metropolitan-district-council/leeds,Leeds City Council,30/04/2022,Resources,Leeds Building Services,Supplies and Services,Operational Furniture And Equipment,203,21/04/2022,2204-00597,0.00,259.00,R,AJM FIXINGS & POWER TOOLS LTD,No
Http://opendatacommunities.org/id/metropolitan-district-council/leeds,Leeds City Council,30/04/2022,Children and Families,Social Care,Supplies and Services,General Amenity For Clients/Residents,285,07/04/2022,2204-00598,0.00,44.50,R,REDACTED PERSONAL DATA,No
Http://opendatacommunities.org/id/metropolitan-district-council/leeds,Leeds City Council,30/04/2022,Children and Families,Social Care,Transport,Public Transport Expenses,310,07/04/2022,2204-00599,0.00,18.80,R,REDACTED PERSONAL DATA,No
Http://opendatacommunities.org/id/metropolitan-district-council/leeds,Leeds City Council,30/04/2022,Adults and Health,Services For Older People - 65 And Over,Agency Payments,Payments To Voluntary Organisations,561,01/04/2022,2204-00600,0.00,2700.00,R,Al Khidmat Centre,No
Http://opendatacommunities.org/id/metropolitan-district-council/leeds,Leeds City Council,30/04/2022,Resources,Democratic Services,Supplies and Services,Operational Materials,205,21/03/2022,2204-00601,0.00,100.00,R,Alan Brown Flowers,Yes
Http://opendatacommunities.org/id/metropolitan-district-council/leeds,Leeds City Council,30/04/2022,Resources,Democratic Services,Appropriations,Civic Allowances,651,21/03/2022,2204-00602,0.00,40.00,R,Alan Brown Flowers,Yes
Http://opendatacommunities.org/id/metropolitan-district-council/leeds,Leeds City Council,30/04/2022,Resources,Democratic Services,Appropriations,Civic Allowances,651,25/03/2022,2204-00603,0.00,50.00,R,Alan Brown Flowers,Yes
Http://opendatacommunities.org/id/metropolitan-district-council/leeds,Leeds City Council,30/04/2022,Children and Families,Social Care,Agency Payments,Services Rendered By Other Organisations,511,01/04/2022,2204-00604,0.00,372.84,R,REDACTED PERSONAL DATA,No
Http://opendatacommunities.org/id/metropolitan-district-council/leeds,Leeds City Council,30/04/2022,Children and Families,Social Care,Transport,Fuel (Non LCC Supplies),321,29/04/2022,2204-00605,0.00,65.00,R,REDACTED PERSONAL DATA,No
Http://opendatacommunities.org/id/metropolitan-district-council/leeds,Leeds City Council as Accountable Body,30/04/2022,Social Services Pooled Budgets,Jcs For People With Learning Disabilitie,Agency Payments,Home Care,568,07/04/2022,2204-00606,0.00,12369.77,R,REDACTED PERSONAL DATA,No
Http://opendatacommunities.org/id/metropolitan-district-council/leeds,Leeds City Council,30/04/2022,City Development,Employment & Skills,Agency Payments,Contributions To Partnerships,544,04/04/2022,2204-00607,0.00,716.39,R,Al-Bashir Academy Limited,No
Http://opendatacommunities.org/id/metropolitan-district-council/leeds,Leeds City Council,30/04/2022,City Development,Employment & Skills,Agency Payments,Contributions To Partnerships,544,29/04/2022,2204-00608,0.00,746.52,R,Al-Bashir Academy Limited,No
Http://opendatacommunities.org/id/metropolitan-district-council/leeds,Leeds City Council,30/04/2022,Communities Housing and Environment,Communities,Supplies and Services,Computer Software & Equipment,214,14/04/2022,2204-00609,0.00,1228.33,R,Alcium Software Ltd,No
Http://opendatacommunities.org/id/metropolitan-district-council/leeds,Leeds City Council,30/04/2022,Children and Families,Social Care,Supplies and Services,Teaching Materials,202,22/03/2022,2204-00610,0.00,4.99,R,Aldi,Yes
Http://opendatacommunities.org/id/metropolitan-district-council/leeds,Leeds City Council,30/04/2022,Children and Families,Social Care,Supplies and Services,Food & Drink,231,08/03/2022,2204-00611,0.00,4.23,R,Aldi 104 773,Yes
Http://opendatacommunities.org/id/metropolitan-district-council/leeds,Leeds City Council,30/04/2022,Children and Families,Social Care,Agency Payments,Section 17,551,04/03/2022,2204-00612,0.00,8.50,R,Aldi 49 779,Yes
Http://opendatacommunities.org/id/metropolitan-district-council/leeds,Leeds City Council,30/04/2022,Communities Housing and Environment,Parks and Countryside,Supplies and Services,Food & Drink,231,05/03/2022,2204-00613,0.00,9.96,R,Aldi 63779,Yes
Http://opendatacommunities.org/id/metropolitan-district-council/leeds,Leeds City Council,30/04/2022,Communities Housing and Environment,Parks and Countryside,Supplies and Services,Food & Drink,231,08/03/2022,2204-00614,0.00,1.58,R,Aldi 63779,Yes
Http://opendatacommunities.org/id/metropolitan-district-council/leeds,Leeds City Council,30/04/2022,Children and Families,Social Care,Supplies and Services,Food & Drink,231,03/03/2022,2204-00615,0.00,71.68,R,Aldi 71 779,Yes
Http://opendatacommunities.org/id/metropolitan-district-council/leeds,Leeds City Council,30/04/2022,Communities Housing and Environment,Communities,Supplies and Services,Operational Materials,205,04/03/2022,2204-00616,0.00,245.55,R,Aldi 779117,Yes
Http://opendatacommunities.org/id/metropolitan-district-council/leeds,Leeds City Council,30/04/2022,Adults and Health,Services For Older People - 65 And Over,Supplies and Services,Operational Materials,205,03/03/2022,2204-00617,0.00,32.42,R,Aldi 779-126,Yes
Http://opendatacommunities.org/id/metropolitan-district-council/leeds,Leeds City Council,30/04/2022,Children and Families,Social Care,Supplies and Services,Food & Drink,231,01/03/2022,2204-00618,0.00,6.89,R,Aldi 85 779,Yes
Http://opendatacommunities.org/id/metropolitan-district-council/leeds,Leeds City Council,30/04/2022,Children and Families,Social Care,Supplies and Services,Food & Drink,231,05/03/2022,2204-00619,0.00,51.43,R,Aldi 85 779,Yes
Http://opendatacommunities.org/id/metropolitan-district-council/leeds,Leeds City Council,30/04/2022,Children and Families,Social Care,Supplies and Services,Operational Furniture And Equipment,203,09/03/2022,2204-00620,0.00,2.68,R,Aldi 85 779,Yes
Http://opendatacommunities.org/id/metropolitan-district-council/leeds,Leeds City Council,30/04/2022,Children and Families,Social Care,Supplies and Services,Food & Drink,231,09/03/2022,2204-00621,0.00,10.60,R,Aldi 85 779,Yes
Http://opendatacommunities.org/id/metropolitan-district-council/leeds,Leeds City Council,30/04/2022,Children and Families,Social Care,Agency Payments,Placement Support,550,11/03/2022,2204-00622,0.00,61.99,R,Aldi 85 779,Yes
Http://opendatacommunities.org/id/metropolitan-district-council/leeds,Leeds City Council,30/04/2022,Children and Families,Social Care,Supplies and Services,Food & Drink,231,11/03/2022,2204-00623,0.00,82.70,R,Aldi 85 779,Yes
Http://opendatacommunities.org/id/metropolitan-district-council/leeds,Leeds City Council,30/04/2022,Children and Families,Social Care,Supplies and Services,Food & Drink,231,12/03/2022,2204-00624,0.00,2.27,R,Aldi 85 779,Yes
Http://opendatacommunities.org/id/metropolitan-district-council/leeds,Leeds City Council,30/04/2022,Children and Families,Social Care,Appropriations,Leaving Care Allowances,634,14/03/2022,2204-00625,0.00,17.82,R,Aldi 85 779,Yes
Http://opendatacommunities.org/id/metropolitan-district-council/leeds,Leeds City Council,30/04/2022,Children and Families,Social Care,Appropriations,Leaving Care Allowances,634,14/03/2022,2204-00626,0.00,13.59,R,Aldi 85 779,Yes
Http://opendatacommunities.org/id/metropolitan-district-council/leeds,Leeds City Council,30/04/2022,Children and Families,Social Care,Supplies and Services,Food & Drink,231,15/03/2022,2204-00627,0.00,26.28,R,Aldi 85 779,Yes
Http://opendatacommunities.org/id/metropolitan-district-council/leeds,Leeds City Council,30/04/2022,Children and Families,Social Care,Supplies and Services,Food & Drink,231,07/03/2022,2204-00628,0.00,1.18,R,Aldi 89 779,Yes
Http://opendatacommunities.org/id/metropolitan-district-council/leeds,Leeds City Council,30/04/2022,Children and Families,Social Care,Supplies and Services,Operational Materials,205,11/03/2022,2204-00629,0.00,26.60,R,Aldi 89 779,Yes
Http://opendatacommunities.org/id/metropolitan-district-council/leeds,Leeds City Council,30/04/2022,Children and Families,Social Care,Supplies and Services,Operational Furniture And Equipment,203,24/03/2022,2204-00630,0.00,14.90,R,Aldi 89 779,Yes
Http://opendatacommunities.org/id/metropolitan-district-council/leeds,Leeds City Council,30/04/2022,Communities Housing and Environment,Parks and Countryside,Supplies and Services,Food & Drink,231,05/03/2022,2204-00631,0.00,3.54,R,Aldi 99 779,Yes
Http://opendatacommunities.org/id/metropolitan-district-council/leeds,Leeds City Council,30/04/2022,Children and Families,Social Care,Supplies and Services,Food & Drink,231,28/02/2022,2204-00632,0.00,124.70,R,Aldi Stores,Yes
Http://opendatacommunities.org/id/metropolitan-district-council/leeds,Leeds City Council,30/04/2022,Children and Families,Social Care,Supplies and Services,Food & Drink,231,08/03/2022,2204-00633,0.00,146.42,R,Aldi Stores,Yes
Http://opendatacommunities.org/id/metropolitan-district-council/leeds,Leeds City Council,30/04/2022,Adults and Health,Public Health,Supplies and Services,Operational Materials,205,09/03/2022,2204-00634,0.00,224.51,R,Aldi Stores,Yes
Http://opendatacommunities.org/id/metropolitan-district-council/leeds,Leeds City Council,30/04/2022,Children and Families,Social Care,Agency Payments,Section 17,551,01/04/2022,2204-00635,0.00,50.00,R,REDACTED PERSONAL DATA,No
Http://opendatacommunities.org/id/metropolitan-district-council/leeds,Leeds City Council,30/04/2022,Children and Families,Social Care,Agency Payments,Section 17,551,06/04/2022,2204-00636,0.00,75.00,R,REDACTED PERSONAL DATA,No
Http://opendatacommunities.org/id/metropolitan-district-council/leeds,Leeds City Council,30/04/2022,Children and Families,Social Care,Agency Payments,Section 17,551,08/04/2022,2204-00637,0.00,50.00,R,REDACTED PERSONAL DATA,No
Http://opendatacommunities.org/id/metropolitan-district-council/leeds,Leeds City Council,30/04/2022,Children and Families,Social Care,Agency Payments,Section 17,551,14/04/2022,2204-00638,0.00,50.00,R,REDACTED PERSONAL DATA,No
Http://opendatacommunities.org/id/metropolitan-district-council/leeds,Leeds City Council,30/04/2022,Children and Families,Social Care,Agency Payments,Section 17,551,22/04/2022,2204-00639,0.00,50.00,R,REDACTED PERSONAL DATA,No
Http://opendatacommunities.org/id/metropolitan-district-council/leeds,Leeds City Council,30/04/2022,Children and Families,Social Care,Agency Payments,Section 17,551,29/04/2022,2204-00640,0.00,50.00,R,REDACTED PERSONAL DATA,No
Http://opendatacommunities.org/id/metropolitan-district-council/leeds,Leeds City Council,30/04/2022,Communities Housing and Environment,Customer Access,Supplies and Services,Bought In Professional Services,277,22/04/2022,2204-00641,0.00,22.50,R,Alena Zueva,No
Http://opendatacommunities.org/id/metropolitan-district-council/leeds,Leeds City Council,30/04/2022,Children and Families,Social Care,Supplies and Services,General Amenity For Clients/Residents,285,11/04/2022,2204-00642,0.00,44.73,R,REDACTED PERSONAL DATA,No
Http://opendatacommunities.org/id/metropolitan-district-council/leeds,Leeds City Council,30/04/2022,Children and Families,Social Care,Agency Payments,Section 17,551,28/04/2022,2204-00643,0.00,13.98,R,REDACTED PERSONAL DATA,No
Http://opendatacommunities.org/id/metropolitan-district-council/leeds,Leeds City Council,30/04/2022,Children and Families,Social Care,Agency Payments,Section 17,551,28/04/2022,2204-00644,0.00,61.00,R,REDACTED PERSONAL DATA,No
Http://opendatacommunities.org/id/metropolitan-district-council/leeds,Leeds City Council,30/04/2022,Children and Families,Social Care,Internal Recharges,Legal Disbursements,411,27/04/2022,2204-00645,0.00,2302.00,R,Alex Taylor,No
Http://opendatacommunities.org/id/metropolitan-district-council/leeds,Leeds City Council,30/04/2022,Resources,Commercial Services,Supplies and Services,Other Hired And Contracted Services,265,08/04/2022,2204-00646,0.00,70.00,R,ALEX WAGG,No
Http://opendatacommunities.org/id/metropolitan-district-council/leeds,Leeds City Council,30/04/2022,Resources,Commercial Services,Supplies and Services,Other Hired And Contracted Services,265,08/04/2022,2204-00647,0.00,70.00,R,ALEX WAGG,No
Http://opendatacommunities.org/id/metropolitan-district-council/leeds,Leeds City Council,30/04/2022,Resources,Sustainable Energy & Air Quality,Supplies and Services,Other Hired And Contracted Services,265,08/04/2022,2204-00648,0.00,70.00,R,ALEX WAGG,No
Http://opendatacommunities.org/id/metropolitan-district-council/leeds,Leeds City Council,30/04/2022,Resources,Sustainable Energy & Air Quality,Supplies and Services,Other Hired And Contracted Services,265,08/04/2022,2204-00649,0.00,70.00,R,ALEX WAGG,No
Http://opendatacommunities.org/id/metropolitan-district-council/leeds,Leeds City Council,30/04/2022,Resources,Commercial Services,Supplies and Services,Other Hired And Contracted Services,265,13/04/2022,2204-00650,0.00,60.00,R,ALEX WAGG,No
Http://opendatacommunities.org/id/metropolitan-district-council/leeds,Leeds City Council,30/04/2022,Resources,Commercial Services,Supplies and Services,Other Hired And Contracted Services,265,13/04/2022,2204-00651,0.00,60.00,R,ALEX WAGG,No
Http://opendatacommunities.org/id/metropolitan-district-council/leeds,Leeds City Council,30/04/2022,Resources,Commercial Services,Supplies and Services,Other Hired And Contracted Services,265,13/04/2022,2204-00652,0.00,60.00,R,ALEX WAGG,No
Http://opendatacommunities.org/id/metropolitan-district-council/leeds,Leeds City Council,30/04/2022,Resources,Commercial Services,Supplies and Services,Other Hired And Contracted Services,265,13/04/2022,2204-00653,0.00,184.00,R,ALEX WAGG,No
Http://opendatacommunities.org/id/metropolitan-district-council/leeds,Leeds City Council,30/04/2022,Resources,Commercial Services,Supplies and Services,Other Hired And Contracted Services,265,13/04/2022,2204-00654,0.00,80.00,R,ALEX WAGG,No
Http://opendatacommunities.org/id/metropolitan-district-council/leeds,Leeds City Council,30/04/2022,Resources,Commercial Services,Supplies and Services,Other Hired And Contracted Services,265,13/04/2022,2204-00655,0.00,270.00,R,ALEX WAGG,No
Http://opendatacommunities.org/id/metropolitan-district-council/leeds,Leeds City Council,30/04/2022,Resources,Sustainable Energy & Air Quality,Supplies and Services,Other Hired And Contracted Services,265,13/04/2022,2204-00656,0.00,70.00,R,ALEX WAGG,No
Http://opendatacommunities.org/id/metropolitan-district-council/leeds,Leeds City Council,30/04/2022,Resources,Sustainable Energy & Air Quality,Supplies and Services,Other Hired And Contracted Services,265,13/04/2022,2204-00657,0.00,70.00,R,ALEX WAGG,No
Http://opendatacommunities.org/id/metropolitan-district-council/leeds,Leeds City Council,30/04/2022,Resources,Commercial Services,Supplies and Services,Other Hired And Contracted Services,265,14/04/2022,2204-00658,0.00,70.00,R,ALEX WAGG,No
Http://opendatacommunities.org/id/metropolitan-district-council/leeds,Leeds City Council,30/04/2022,Resources,Sustainable Energy & Air Quality,Supplies and Services,Other Hired And Contracted Services,265,22/04/2022,2204-00659,0.00,70.00,R,ALEX WAGG,No
Http://opendatacommunities.org/id/metropolitan-district-council/leeds,Leeds City Council,30/04/2022,Resources,Commercial Services,Supplies and Services,Other Hired And Contracted Services,265,22/04/2022,2204-00660,0.00,257.00,R,ALEX WAGG,No
Http://opendatacommunities.org/id/metropolitan-district-council/leeds,Leeds City Council,30/04/2022,Resources,Commercial Services,Supplies and Services,Other Hired And Contracted Services,265,22/04/2022,2204-00661,0.00,60.00,R,ALEX WAGG,No
Http://opendatacommunities.org/id/metropolitan-district-council/leeds,Leeds City Council,30/04/2022,Resources,Commercial Services,Supplies and Services,Other Hired And Contracted Services,265,28/04/2022,2204-00662,0.00,70.00,R,ALEX WAGG,No
Http://opendatacommunities.org/id/metropolitan-district-council/leeds,Leeds City Council,30/04/2022,Resources,Sustainable Energy & Air Quality,Supplies and Services,Other Hired And Contracted Services,265,28/04/2022,2204-00663,0.00,70.00,R,ALEX WAGG,No
Http://opendatacommunities.org/id/metropolitan-district-council/leeds,Leeds City Council,30/04/2022,Strategic Landlord,HRA Council Housing Growth Programme,Capital,LAND,1,22/04/2022,2204-00664,0.00,250.00,C,Alexander Grace Law,No
Http://opendatacommunities.org/id/metropolitan-district-council/leeds,Leeds City Council,30/04/2022,City Development,Recreation,External Income,Swimming Bath Charges,923,08/04/2022,2204-00665,0.00,53.00,R,REDACTED PERSONAL DATA,No
Http://opendatacommunities.org/id/metropolitan-district-council/leeds,Leeds City Council,30/04/2022,Adults and Health,Services For Older People - 65 And Over,Agency Payments,Residential Care Dementia,571,27/04/2022,2204-00666,0.00,15992.36,R,ALEXANDER RESIDENTIAL HOME,No
Http://opendatacommunities.org/id/metropolitan-district-council/leeds,Leeds City Council,30/04/2022,Adults and Health,Services For Older People - 65 And Over,Agency Payments,Residential,580,27/04/2022,2204-00667,0.00,21150.80,R,ALEXANDER RESIDENTIAL HOME,No
Http://opendatacommunities.org/id/metropolitan-district-council/leeds,Leeds City Council,30/04/2022,Children and Families,Social Care,Supplies and Services,Food & Drink,231,26/04/2022,2204-00668,0.00,56.16,R,REDACTED PERSONAL DATA,No
Http://opendatacommunities.org/id/metropolitan-district-council/leeds,Leeds City Council,30/04/2022,Children and Families,Social Care,Supplies and Services,Conference Meetings,253,26/04/2022,2204-00669,0.00,30.00,R,REDACTED PERSONAL DATA,No
Http://opendatacommunities.org/id/metropolitan-district-council/leeds,Leeds City Council,30/04/2022,Communities Housing and Environment,Customer Access,Supplies and Services,Bought In Professional Services,277,27/04/2022,2204-00670,0.00,58.50,R,Alexandra Costenco,No
Http://opendatacommunities.org/id/metropolitan-district-council/leeds,Leeds City Council,30/04/2022,Adults and Health,Services For Older People - 65 And Over,Agency Payments,Residential Care Dementia,571,27/04/2022,2204-00671,0.00,7118.75,R,ALEXANDRA COURT,No
Http://opendatacommunities.org/id/metropolitan-district-council/leeds,Leeds City Council,30/04/2022,Adults and Health,Services For Older People - 65 And Over,Agency Payments,Residential,580,27/04/2022,2204-00672,0.00,10388.92,R,ALEXANDRA COURT,No
Http://opendatacommunities.org/id/metropolitan-district-council/leeds,Leeds City Council,30/04/2022,Communities Housing and Environment,Benefits Wlefare and Poverty,Supplies and Services,Grant Related Expenditure,298,11/04/2022,2204-00673,0.00,500.00,R,REDACTED PERSONAL DATA,No
Http://opendatacommunities.org/id/metropolitan-district-council/leeds,Leeds City Council,30/04/2022,Communities Housing and Environment,Car Parking Services,External Income,Penalties Fines & Car Parking Charges,934,13/04/2022,2204-00674,0.00,90.00,R,REDACTED PERSONAL DATA,No
Http://opendatacommunities.org/id/metropolitan-district-council/leeds,Leeds City Council,30/04/2022,Adults and Health,Services For Older People - 65 And Over,Supplies and Services,Clothing & Uniforms,241,02/03/2022,2204-00675,0.00,28.66,R,Alexandra Website,Yes
Http://opendatacommunities.org/id/metropolitan-district-council/leeds,Leeds City Council,30/04/2022,Adults and Health,Services For Older People - 65 And Over,Supplies and Services,Clothing & Uniforms,241,10/03/2022,2204-00676,0.00,168.97,R,Alexandra Website,Yes
Http://opendatacommunities.org/id/metropolitan-district-council/leeds,Leeds City Council,30/04/2022,Adults and Health,Services For Older People - 65 And Over,Supplies and Services,Clothing & Uniforms,241,11/03/2022,2204-00677,0.00,76.99,R,Alexandra Website,Yes
Http://opendatacommunities.org/id/metropolitan-district-council/leeds,Leeds City Council,30/04/2022,Adults and Health,Services For Older People - 65 And Over,Supplies and Services,Clothing & Uniforms,241,22/03/2022,2204-00678,0.00,18.24,R,Alexandra Website,Yes
Http://opendatacommunities.org/id/metropolitan-district-council/leeds,Leeds City Council,30/04/2022,Communities Housing and Environment,Benefits Wlefare and Poverty,Supplies and Services,Grant Related Expenditure,298,04/04/2022,2204-00679,0.00,500.00,R,REDACTED PERSONAL DATA,No
Http://opendatacommunities.org/id/metropolitan-district-council/leeds,Leeds City Council,30/04/2022,Children and Families,Social Care,Agency Payments,Placement Support,550,01/04/2022,2204-00680,0.00,20.00,R,REDACTED PERSONAL DATA,No
Http://opendatacommunities.org/id/metropolitan-district-council/leeds,Leeds City Council,30/04/2022,Children and Families,Social Care,Agency Payments,Contact,548,08/04/2022,2204-00681,0.00,20.00,R,REDACTED PERSONAL DATA,No
Http://opendatacommunities.org/id/metropolitan-district-council/leeds,Leeds City Council,30/04/2022,Children and Families,Social Care,Agency Payments,Contact,548,14/04/2022,2204-00682,0.00,20.00,R,REDACTED PERSONAL DATA,No
Http://opendatacommunities.org/id/metropolitan-district-council/leeds,Leeds City Council,30/04/2022,Children and Families,Social Care,Agency Payments,Contact,548,22/04/2022,2204-00683,0.00,20.00,R,REDACTED PERSONAL DATA,No
Http://opendatacommunities.org/id/metropolitan-district-council/leeds,Leeds City Council,30/04/2022,Children and Families,Social Care,Agency Payments,Contact,548,29/04/2022,2204-00684,0.00,20.00,R,REDACTED PERSONAL DATA,No
Http://opendatacommunities.org/id/metropolitan-district-council/leeds,Leeds City Council,30/04/2022,Resources,Leeds Building Services,Supplies and Services,Other Hired And Contracted Services,265,01/04/2022,2204-00685,0.00,18349.66,R,Alfred Bagnall & Sons (Leeds) Ltd,No
Http://opendatacommunities.org/id/metropolitan-district-council/leeds,Leeds City Council,30/04/2022,Resources,Leeds Building Services,Supplies and Services,Other Hired And Contracted Services,265,07/04/2022,2204-00686,0.00,50.00,R,Alfred Bagnall & Sons (Leeds) Ltd,No
Http://opendatacommunities.org/id/metropolitan-district-council/leeds,Leeds City Council,30/04/2022,Resources,Leeds Building Services,Supplies and Services,Other Hired And Contracted Services,265,08/04/2022,2204-00687,0.00,7930.00,R,Alfred Bagnall & Sons (Leeds) Ltd,No
Http://opendatacommunities.org/id/metropolitan-district-council/leeds,Leeds City Council,30/04/2022,City Development,Libraries Arts & Heritage,Supplies and Services,Other Hired And Contracted Services,265,13/04/2022,2204-00688,0.00,3450.00,R,Alfred Bagnall & Sons (Leeds) Ltd,No
Http://opendatacommunities.org/id/metropolitan-district-council/leeds,Leeds City Council,30/04/2022,Communities Housing and Environment,Customer Access,Supplies and Services,Other Hired And Contracted Services,265,13/04/2022,2204-00689,0.00,21580.00,R,Alfred Bagnall & Sons (Leeds) Ltd,No
Http://opendatacommunities.org/id/metropolitan-district-council/leeds,Leeds City Council,30/04/2022,Resources,Leeds Building Services,Supplies and Services,Other Hired And Contracted Services,265,14/04/2022,2204-00690,0.00,1650.00,R,Alfred Bagnall & Sons (Leeds) Ltd,No
Http://opendatacommunities.org/id/metropolitan-district-council/leeds,Leeds City Council,30/04/2022,Resources,Leeds Building Services,Supplies and Services,Other Hired And Contracted Services,265,14/04/2022,2204-00691,0.00,10123.80,R,Alfred Bagnall & Sons (Leeds) Ltd,No
Http://opendatacommunities.org/id/metropolitan-district-council/leeds,Leeds City Council,30/04/2022,Resources,Leeds Building Services,Supplies and Services,Other Hired And Contracted Services,265,14/04/2022,2204-00692,0.00,500.00,R,Alfred Bagnall & Sons (Leeds) Ltd,No
Http://opendatacommunities.org/id/metropolitan-district-council/leeds,Leeds City Council,30/04/2022,Resources,Leeds Building Services,Supplies and Services,Other Hired And Contracted Services,265,14/04/2022,2204-00693,0.00,22309.24,R,Alfred Bagnall & Sons (Leeds) Ltd,No
Http://opendatacommunities.org/id/metropolitan-district-council/leeds,Leeds City Council,30/04/2022,Resources,Leeds Building Services,Supplies and Services,Other Hired And Contracted Services,265,14/04/2022,2204-00694,0.00,1420.00,R,Alfred Bagnall & Sons (Leeds) Ltd,No
Http://opendatacommunities.org/id/metropolitan-district-council/leeds,Leeds City Council,30/04/2022,Resources,Leeds Building Services,Supplies and Services,Other Hired And Contracted Services,265,14/04/2022,2204-00695,0.00,1770.00,R,Alfred Bagnall & Sons (Leeds) Ltd,No
Http://opendatacommunities.org/id/metropolitan-district-council/leeds,Leeds City Council,30/04/2022,Resources,Leeds Building Services,Supplies and Services,Other Hired And Contracted Services,265,20/04/2022,2204-00696,0.00,8170.00,R,Alfred Bagnall & Sons (Leeds) Ltd,No
Http://opendatacommunities.org/id/metropolitan-district-council/leeds,Leeds City Council,30/04/2022,City Development,Libraries Arts & Heritage,Supplies and Services,Other Hired And Contracted Services,265,20/04/2022,2204-00697,0.00,470.00,R,Alfred Bagnall & Sons (Leeds) Ltd,No
Http://opendatacommunities.org/id/metropolitan-district-council/leeds,Leeds City Council,30/04/2022,Resources,Leeds Building Services,Supplies and Services,Other Hired And Contracted Services,265,22/04/2022,2204-00698,0.00,890.00,R,Alfred Bagnall & Sons (Leeds) Ltd,No
Http://opendatacommunities.org/id/metropolitan-district-council/leeds,Leeds City Council,30/04/2022,Resources,Leeds Building Services,Supplies and Services,Other Hired And Contracted Services,265,27/04/2022,2204-00699,0.00,7232.34,R,Alfred Bagnall & Sons (Leeds) Ltd,No
Http://opendatacommunities.org/id/metropolitan-district-council/leeds,Leeds City Council,30/04/2022,Resources,Leeds Building Services,Supplies and Services,Other Hired And Contracted Services,265,29/04/2022,2204-00700,0.00,23209.56,R,Alfred Bagnall & Sons (Leeds) Ltd,No
Http://opendatacommunities.org/id/metropolitan-district-council/leeds,Leeds City Council,30/04/2022,Communities Housing and Environment,Waste Management,Supplies and Services,Other Hired And Contracted Services,265,27/04/2022,2204-00701,0.00,16570.00,R,Alfred H Knight Energy Services Ltd,No
Http://opendatacommunities.org/id/metropolitan-district-council/leeds,Leeds City Council,30/04/2022,City Development,Recreation,Supplies and Services,Operational Furniture And Equipment,203,02/03/2022,2204-00702,0.00,90.00,R,Alfreshco The Ap Gro,Yes
Http://opendatacommunities.org/id/metropolitan-district-council/leeds,Leeds City Council,30/04/2022,Communities Housing and Environment,Parks and Countryside,Transport,Hire Of Movable Plant & Machinery,315,14/04/2022,2204-00703,0.00,137.08,R,ALGECO UK LIMITED,No
Http://opendatacommunities.org/id/metropolitan-district-council/leeds,Leeds City Council,30/04/2022,Communities Housing and Environment,Car Parking Services,External Income,Penalties Fines & Car Parking Charges,934,13/04/2022,2204-00704,0.00,60.00,R,REDACTED PERSONAL DATA,No
Http://opendatacommunities.org/id/metropolitan-district-council/leeds,Leeds City Council,30/04/2022,Communities Housing and Environment,Customer Access,Supplies and Services,Bought In Professional Services,277,06/04/2022,2204-00705,0.00,13.50,R,Ali Pourakaberian,No
Http://opendatacommunities.org/id/metropolitan-district-council/leeds,Leeds City Council,30/04/2022,Communities Housing and Environment,Customer Access,Supplies and Services,Bought In Professional Services,277,06/04/2022,2204-00706,0.00,18.00,R,Ali Pourakaberian,No
Http://opendatacommunities.org/id/metropolitan-district-council/leeds,Leeds City Council,30/04/2022,Communities Housing and Environment,Customer Access,Supplies and Services,Bought In Professional Services,277,06/04/2022,2204-00707,0.00,13.50,R,Ali Pourakaberian,No
Http://opendatacommunities.org/id/metropolitan-district-council/leeds,Leeds City Council,30/04/2022,Communities Housing and Environment,Customer Access,Supplies and Services,Bought In Professional Services,277,13/04/2022,2204-00708,0.00,10.00,R,Ali Pourakaberian,No
Http://opendatacommunities.org/id/metropolitan-district-council/leeds,Leeds City Council,30/04/2022,Communities Housing and Environment,Customer Access,Supplies and Services,Bought In Professional Services,277,13/04/2022,2204-00709,0.00,18.00,R,Ali Pourakaberian,No
Http://opendatacommunities.org/id/metropolitan-district-council/leeds,Leeds City Council,30/04/2022,Communities Housing and Environment,Customer Access,Supplies and Services,Bought In Professional Services,277,13/04/2022,2204-00710,0.00,18.00,R,Ali Pourakaberian,No
Http://opendatacommunities.org/id/metropolitan-district-council/leeds,Leeds City Council,30/04/2022,Communities Housing and Environment,Customer Access,Supplies and Services,Bought In Professional Services,277,13/04/2022,2204-00711,0.00,27.00,R,Ali Pourakaberian,No
Http://opendatacommunities.org/id/metropolitan-district-council/leeds,Leeds City Council,30/04/2022,Communities Housing and Environment,Customer Access,Supplies and Services,Bought In Professional Services,277,22/04/2022,2204-00712,0.00,105.52,R,Ali Pourakaberian,No
Http://opendatacommunities.org/id/metropolitan-district-council/leeds,Leeds City Council,30/04/2022,Communities Housing and Environment,Customer Access,Supplies and Services,Bought In Professional Services,277,27/04/2022,2204-00713,0.00,18.00,R,Ali Pourakaberian,No
Http://opendatacommunities.org/id/metropolitan-district-council/leeds,Leeds City Council,30/04/2022,Communities Housing and Environment,Benefits Wlefare and Poverty,Supplies and Services,Grant Related Expenditure,298,05/04/2022,2204-00714,0.00,500.00,R,REDACTED PERSONAL DATA,No
Http://opendatacommunities.org/id/metropolitan-district-council/leeds,Leeds City Council,30/04/2022,City Development,Libraries Arts & Heritage,External Income,Admissions Booking Fees & Ticket Sales,933,08/04/2022,2204-00715,0.00,45.00,R,REDACTED PERSONAL DATA,No
Http://opendatacommunities.org/id/metropolitan-district-council/leeds,Leeds City Council,30/04/2022,Insurance,Insurance,Supplies and Services,Other Hired And Contracted Services,265,22/04/2022,2204-00716,0.00,960.00,R,Alice Dobbie,No
Http://opendatacommunities.org/id/metropolitan-district-council/leeds,Leeds City Council,30/04/2022,City Development,Recreation,Supplies and Services,Bought In Professional Services,277,12/04/2022,2204-00717,0.00,100.00,R,Alice M Richardson,No
Http://opendatacommunities.org/id/metropolitan-district-council/leeds,Leeds City Council,30/04/2022,City Development,Recreation,Supplies and Services,Bought In Professional Services,277,12/04/2022,2204-00718,0.00,80.00,R,Alice M Richardson,No
Http://opendatacommunities.org/id/metropolitan-district-council/leeds,Leeds City Council,30/04/2022,City Development,Recreation,Supplies and Services,Bought In Professional Services,277,27/04/2022,2204-00719,0.00,20.00,R,Alice M Richardson,No
Http://opendatacommunities.org/id/metropolitan-district-council/leeds,Leeds City Council,30/04/2022,City Development,Recreation,Supplies and Services,Bought In Professional Services,277,27/04/2022,2204-00720,0.00,100.00,R,Alice M Richardson,No
Http://opendatacommunities.org/id/metropolitan-district-council/leeds,Leeds City Council,30/04/2022,City Development,Recreation,External Income,Swimming Bath Charges,923,08/04/2022,2204-00721,0.00,18.00,R,REDACTED PERSONAL DATA,No
Http://opendatacommunities.org/id/metropolitan-district-council/leeds,Leeds City Council,30/04/2022,Children and Families,Social Care,Agency Payments,Section 17,551,29/04/2022,2204-00722,0.00,10.00,R,REDACTED PERSONAL DATA,No
Http://opendatacommunities.org/id/metropolitan-district-council/leeds,Leeds City Council,30/04/2022,Children and Families,Social Care,Agency Payments,Contact,548,01/04/2022,2204-00723,0.00,10.40,R,REDACTED PERSONAL DATA,No
Http://opendatacommunities.org/id/metropolitan-district-council/leeds,Leeds City Council,30/04/2022,Children and Families,Social Care,Agency Payments,Contact,548,08/04/2022,2204-00724,0.00,10.40,R,REDACTED PERSONAL DATA,No
Http://opendatacommunities.org/id/metropolitan-district-council/leeds,Leeds City Council,30/04/2022,Children and Families,Social Care,Agency Payments,Contact,548,14/04/2022,2204-00725,0.00,10.40,R,REDACTED PERSONAL DATA,No
Http://opendatacommunities.org/id/metropolitan-district-council/leeds,Leeds City Council,30/04/2022,Children and Families,Social Care,Agency Payments,Contact,548,22/04/2022,2204-00726,0.00,10.40,R,REDACTED PERSONAL DATA,No
Http://opendatacommunities.org/id/metropolitan-district-council/leeds,Leeds City Council,30/04/2022,Children and Families,Social Care,Agency Payments,Contact,548,29/04/2022,2204-00727,0.00,10.40,R,REDACTED PERSONAL DATA,No
Http://opendatacommunities.org/id/metropolitan-district-council/leeds,Leeds City Council,30/04/2022,Children and Families,Social Care,Transport,Fuel (Non LCC Supplies),321,29/04/2022,2204-00728,0.00,65.00,R,REDACTED PERSONAL DATA,No
Http://opendatacommunities.org/id/metropolitan-district-council/leeds,Leeds City Council,30/04/2022,Children and Families,Social Care,Appropriations,Council Tax Benefit,630,06/04/2022,2204-00729,0.00,40.00,R,REDACTED PERSONAL DATA,No
Http://opendatacommunities.org/id/metropolitan-district-council/leeds,Leeds City Council,30/04/2022,Children and Families,Social Care,Appropriations,Leaving Care Allowances,634,08/04/2022,2204-00730,0.00,40.00,R,REDACTED PERSONAL DATA,No
Http://opendatacommunities.org/id/metropolitan-district-council/leeds,Leeds City Council,30/04/2022,Children and Families,Social Care,Agency Payments,Allowances,546,11/04/2022,2204-00731,0.00,200.00,R,REDACTED PERSONAL DATA,No
Http://opendatacommunities.org/id/metropolitan-district-council/leeds,Leeds City Council,30/04/2022,Children and Families,Social Care,Agency Payments, Direct Work,549,11/04/2022,2204-00732,0.00,34.00,R,REDACTED PERSONAL DATA,No
Http://opendatacommunities.org/id/metropolitan-district-council/leeds,Leeds City Council,30/04/2022,Children and Families,Social Care,Appropriations,Leaving Care Allowances,634,14/04/2022,2204-00733,0.00,40.00,R,REDACTED PERSONAL DATA,No
Http://opendatacommunities.org/id/metropolitan-district-council/leeds,Leeds City Council,30/04/2022,Children and Families,Social Care,Appropriations,Leaving Care Allowances,634,22/04/2022,2204-00734,0.00,40.00,R,REDACTED PERSONAL DATA,No
Http://opendatacommunities.org/id/metropolitan-district-council/leeds,Leeds City Council,30/04/2022,Children and Families,Social Care,Appropriations,Leaving Care Allowances,634,29/04/2022,2204-00735,0.00,40.00,R,REDACTED PERSONAL DATA,No
Http://opendatacommunities.org/id/metropolitan-district-council/leeds,Leeds City Council,30/04/2022,Children and Families,Social Care,Agency Payments,Services Rendered By Other Organisations,511,01/04/2022,2204-00736,0.00,372.84,R,REDACTED PERSONAL DATA,No
Http://opendatacommunities.org/id/metropolitan-district-council/leeds,Leeds City Council,30/04/2022,Communities Housing and Environment,Customer Access,Supplies and Services,Books & Audio-Visual Materials,206,02/03/2022,2204-00737,0.00,2365.20,R,Alison Handling Services,Yes
Http://opendatacommunities.org/id/metropolitan-district-council/leeds,Leeds City Council,30/04/2022,Communities Housing and Environment,Customer Access,Supplies and Services,Books & Audio-Visual Materials,206,14/03/2022,2204-00738,0.00,6788.00,R,Alison Handling Services,Yes
Http://opendatacommunities.org/id/metropolitan-district-council/leeds,Leeds City Council,30/04/2022,Children and Families,Social Care,Agency Payments,Section 17,551,26/04/2022,2204-00739,0.00,114.42,R,REDACTED PERSONAL DATA,No
Http://opendatacommunities.org/id/metropolitan-district-council/leeds,Leeds City Council,30/04/2022,Children and Families,Social Care,Agency Payments,Services Rendered By Other Organisations,511,01/04/2022,2204-00740,0.00,13297.96,R,All Stars Childcare,No
Http://opendatacommunities.org/id/metropolitan-district-council/leeds,Leeds City Council,30/04/2022,Children and Families,Social Care,Agency Payments,Services Rendered By Other Organisations,511,06/04/2022,2204-00741,0.00,1303.38,R,All Stars Childcare,No
Http://opendatacommunities.org/id/metropolitan-district-council/leeds,Leeds City Council,30/04/2022,City Development,Libraries Arts & Heritage,External Income,Admissions Booking Fees & Ticket Sales,933,29/04/2022,2204-00742,0.00,64.00,R,REDACTED PERSONAL DATA,No
Http://opendatacommunities.org/id/metropolitan-district-council/leeds,Leeds City Council as Accountable Body,30/04/2022,Social Services Pooled Budgets,Jcs For People With Learning Disabilitie,Agency Payments,Sheltered Accommodation,569,27/04/2022,2204-00743,0.00,20486.00,R,Allerton Avenue,No
Http://opendatacommunities.org/id/metropolitan-district-council/leeds,Leeds City Council,30/04/2022,Strategic Accounts,Strategic,Supplies and Services,Non-Recurring Grants,227,01/04/2022,2204-00744,0.00,2054.00,R,ALLERTON BYWATER PARISH COUNCIL,No
Http://opendatacommunities.org/id/metropolitan-district-council/leeds,Leeds City Council,30/04/2022,Strategic Accounts,Strategic,Supplies and Services,Office Consumables,210,01/04/2022,2204-00745,0.00,46000.00,R,ALLERTON BYWATER PARISH COUNCIL,No
Http://opendatacommunities.org/id/metropolitan-district-council/leeds,Leeds City Council,30/04/2022,Adults and Health,Services For Adults Under 65 Mental/Dis,Agency Payments,Nursing Care Dementia,574,27/04/2022,2204-00746,0.00,9634.93,R,ALLERTON PARK N H,No
Http://opendatacommunities.org/id/metropolitan-district-council/leeds,Leeds City Council,30/04/2022,Adults and Health,Services For Older People - 65 And Over,Agency Payments,Nursing Care Dementia,574,27/04/2022,2204-00747,0.00,8622.53,R,ALLERTON PARK N H,No
Http://opendatacommunities.org/id/metropolitan-district-council/leeds,Leeds City Council,30/04/2022,Resources,Finance,Supplies and Services,Bank Charges,263,06/04/2022,2204-00748,0.00,273.74,R,ALLIANCE & LEICESTER COMMERCIAL BANK,No
Http://opendatacommunities.org/id/metropolitan-district-council/leeds,Leeds City Council,30/04/2022,Resources,Finance,Supplies and Services,Bank Charges,263,06/04/2022,2204-00749,0.00,100.00,R,ALLIANCE & LEICESTER COMMERCIAL BANK,No
Http://opendatacommunities.org/id/metropolitan-district-council/leeds,Leeds City Council,30/04/2022,Resources,Commercial Services,Supplies and Services,Operational Materials,205,01/04/2022,2204-00750,0.00,74.82,R,ALLIANCE DISPOSABLES LTD,No
Http://opendatacommunities.org/id/metropolitan-district-council/leeds,Leeds City Council,30/04/2022,Resources,Commercial Services,Supplies and Services,Operational Materials,205,01/04/2022,2204-00751,0.00,224.46,R,ALLIANCE DISPOSABLES LTD,No
Http://opendatacommunities.org/id/metropolitan-district-council/leeds,Leeds City Council,30/04/2022,Resources,Commercial Services,Supplies and Services,Operational Materials,205,01/04/2022,2204-00752,0.00,242.00,R,ALLIANCE DISPOSABLES LTD,No
Http://opendatacommunities.org/id/metropolitan-district-council/leeds,Leeds City Council,30/04/2022,Resources,Commercial Services,Supplies and Services,Operational Materials,205,06/04/2022,2204-00753,0.00,198.10,R,ALLIANCE DISPOSABLES LTD,No
Http://opendatacommunities.org/id/metropolitan-district-council/leeds,Leeds City Council,30/04/2022,Resources,Commercial Services,Supplies and Services,Operational Materials,205,06/04/2022,2204-00754,0.00,345.58,R,ALLIANCE DISPOSABLES LTD,No
Http://opendatacommunities.org/id/metropolitan-district-council/leeds,Leeds City Council,30/04/2022,Resources,Commercial Services,Supplies and Services,Operational Materials,205,06/04/2022,2204-00755,0.00,44.89,R,ALLIANCE DISPOSABLES LTD,No
Http://opendatacommunities.org/id/metropolitan-district-council/leeds,Leeds City Council,30/04/2022,Resources,Commercial Services,Supplies and Services,Operational Materials,205,07/04/2022,2204-00756,0.00,148.50,R,ALLIANCE DISPOSABLES LTD,No
Http://opendatacommunities.org/id/metropolitan-district-council/leeds,Leeds City Council,30/04/2022,Resources,Commercial Services,Supplies and Services,Operational Materials,205,08/04/2022,2204-00757,0.00,379.46,R,ALLIANCE DISPOSABLES LTD,No
Http://opendatacommunities.org/id/metropolitan-district-council/leeds,Leeds City Council,30/04/2022,Resources,Commercial Services,Supplies and Services,Operational Materials,205,08/04/2022,2204-00758,0.00,34.50,R,ALLIANCE DISPOSABLES LTD,No
Http://opendatacommunities.org/id/metropolitan-district-council/leeds,Leeds City Council,30/04/2022,Resources,Commercial Services,Supplies and Services,Operational Materials,205,08/04/2022,2204-00759,0.00,66.34,R,ALLIANCE DISPOSABLES LTD,No
Http://opendatacommunities.org/id/metropolitan-district-council/leeds,Leeds City Council,30/04/2022,Resources,Commercial Services,Supplies and Services,Operational Materials,205,08/04/2022,2204-00760,0.00,192.56,R,ALLIANCE DISPOSABLES LTD,No
Http://opendatacommunities.org/id/metropolitan-district-council/leeds,Leeds City Council,30/04/2022,Resources,Commercial Services,Supplies and Services,Operational Materials,205,11/04/2022,2204-00761,0.00,108.45,R,ALLIANCE DISPOSABLES LTD,No
Http://opendatacommunities.org/id/metropolitan-district-council/leeds,Leeds City Council,30/04/2022,Resources,Commercial Services,Supplies and Services,Operational Materials,205,13/04/2022,2204-00762,0.00,89.78,R,ALLIANCE DISPOSABLES LTD,No
Http://opendatacommunities.org/id/metropolitan-district-council/leeds,Leeds City Council,30/04/2022,Resources,Commercial Services,Supplies and Services,Operational Materials,205,13/04/2022,2204-00763,0.00,21.29,R,ALLIANCE DISPOSABLES LTD,No
Http://opendatacommunities.org/id/metropolitan-district-council/leeds,Leeds City Council,30/04/2022,Resources,Commercial Services,Supplies and Services,Operational Materials,205,13/04/2022,2204-00764,0.00,529.74,R,ALLIANCE DISPOSABLES LTD,No
Http://opendatacommunities.org/id/metropolitan-district-council/leeds,Leeds City Council,30/04/2022,Resources,Commercial Services,Supplies and Services,Operational Materials,205,14/04/2022,2204-00765,0.00,89.78,R,ALLIANCE DISPOSABLES LTD,No
Http://opendatacommunities.org/id/metropolitan-district-council/leeds,Leeds City Council,30/04/2022,Resources,Commercial Services,Supplies and Services,Operational Materials,205,14/04/2022,2204-00766,0.00,81.07,R,ALLIANCE DISPOSABLES LTD,No
Http://opendatacommunities.org/id/metropolitan-district-council/leeds,Leeds City Council,30/04/2022,Resources,Commercial Services,Supplies and Services,Operational Materials,205,22/04/2022,2204-00767,0.00,3590.80,R,ALLIANCE DISPOSABLES LTD,No
Http://opendatacommunities.org/id/metropolitan-district-council/leeds,Leeds City Council,30/04/2022,Resources,Commercial Services,Supplies and Services,Operational Materials,205,22/04/2022,2204-00768,0.00,79.99,R,ALLIANCE DISPOSABLES LTD,No
Http://opendatacommunities.org/id/metropolitan-district-council/leeds,Leeds City Council,30/04/2022,Resources,Commercial Services,Supplies and Services,Operational Materials,205,22/04/2022,2204-00769,0.00,190.72,R,ALLIANCE DISPOSABLES LTD,No
Http://opendatacommunities.org/id/metropolitan-district-council/leeds,Leeds City Council,30/04/2022,Resources,Commercial Services,Supplies and Services,Operational Materials,205,22/04/2022,2204-00770,0.00,89.78,R,ALLIANCE DISPOSABLES LTD,No
Http://opendatacommunities.org/id/metropolitan-district-council/leeds,Leeds City Council,30/04/2022,Resources,Commercial Services,Supplies and Services,Operational Materials,205,27/04/2022,2204-00771,0.00,178.59,R,ALLIANCE DISPOSABLES LTD,No
Http://opendatacommunities.org/id/metropolitan-district-council/leeds,Leeds City Council,30/04/2022,Resources,Commercial Services,Supplies and Services,Operational Materials,205,27/04/2022,2204-00772,0.00,102.54,R,ALLIANCE DISPOSABLES LTD,No
Http://opendatacommunities.org/id/metropolitan-district-council/leeds,Leeds City Council,30/04/2022,Resources,Commercial Services,Supplies and Services,Operational Materials,205,27/04/2022,2204-00773,0.00,134.67,R,ALLIANCE DISPOSABLES LTD,No
Http://opendatacommunities.org/id/metropolitan-district-council/leeds,Leeds City Council,30/04/2022,Resources,Commercial Services,Supplies and Services,Operational Materials,205,29/04/2022,2204-00774,0.00,135.58,R,ALLIANCE DISPOSABLES LTD,No
Http://opendatacommunities.org/id/metropolitan-district-council/leeds,Leeds City Council,30/04/2022,Resources,Commercial Services,Supplies and Services,Operational Materials,205,29/04/2022,2204-00775,0.00,448.90,R,ALLIANCE DISPOSABLES LTD,No
Http://opendatacommunities.org/id/metropolitan-district-council/leeds,Leeds City Council,30/04/2022,City Development,Recreation,Employees,Training & Development,70,29/04/2022,2204-00776,0.00,14730.00,R,Alliance Leisure Service Ltd,No
Http://opendatacommunities.org/id/metropolitan-district-council/leeds,Leeds City Council,30/04/2022,City Development,Recreation,Agency Payments,Services Rendered By Other Organisations,511,29/04/2022,2204-00777,0.00,29470.00,R,Alliance Leisure Service Ltd,No
Http://opendatacommunities.org/id/metropolitan-district-council/leeds,Leeds City Council,30/04/2022,Resources,Commercial Services,Transport,Vehicle Spares,345,06/04/2022,2204-00778,0.00,185.00,R,Alliance Transport Technologies Ltd,No
Http://opendatacommunities.org/id/metropolitan-district-council/leeds,Leeds City Council,30/04/2022,Resources,Commercial Services,Transport,Vehicle Spares,345,06/04/2022,2204-00779,0.00,105.00,R,Alliance Transport Technologies Ltd,No
Http://opendatacommunities.org/id/metropolitan-district-council/leeds,Leeds City Council,30/04/2022,City Development,Highways,Supplies and Services,Other Hired And Contracted Services,265,07/04/2022,2204-00780,0.00,2190.35,R,ALLIED EXPLORATION & GEOTECHNICS LTD,No
Http://opendatacommunities.org/id/metropolitan-district-council/leeds,Leeds City Council,30/04/2022,City Development,Highways,Supplies and Services,Other Hired And Contracted Services,265,07/04/2022,2204-00781,0.00,1385.38,R,ALLIED EXPLORATION & GEOTECHNICS LTD,No
Http://opendatacommunities.org/id/metropolitan-district-council/leeds,Leeds City Council,30/04/2022,City Development,Highways,Supplies and Services,Other Hired And Contracted Services,265,13/04/2022,2204-00782,0.00,7989.65,R,ALLIED EXPLORATION & GEOTECHNICS LTD,No
Http://opendatacommunities.org/id/metropolitan-district-council/leeds,Leeds City Council,30/04/2022,City Development,Highways,Capital,CONSTRUCTION,3,29/04/2022,2204-00783,0.00,11402.28,C,ALLIED EXPLORATION & GEOTECHNICS LTD,No
Http://opendatacommunities.org/id/metropolitan-district-council/leeds,Leeds City Council as Accountable Body,30/04/2022,Social Services Pooled Budgets,Jcs For People With Learning Disabilitie,Agency Payments,Home Care,568,08/04/2022,2204-00784,0.00,1245.84,R,Allied Healthcare,No
Http://opendatacommunities.org/id/metropolitan-district-council/leeds,Leeds City Council as Accountable Body,30/04/2022,Social Services Pooled Budgets,Jcs For People With Learning Disabilitie,Agency Payments,Home Care,568,14/04/2022,2204-00785,0.00,1256.96,R,Allied Healthcare,No
Http://opendatacommunities.org/id/metropolitan-district-council/leeds,Leeds City Council as Accountable Body,30/04/2022,Social Services Pooled Budgets,Jcs For People With Learning Disabilitie,Agency Payments,Home Care,568,14/04/2022,2204-00786,0.00,8151.00,R,Allied Healthcare,No
Http://opendatacommunities.org/id/metropolitan-district-council/leeds,Leeds City Council,30/04/2022,Resources,Shared Services,Supplies and Services,Printing,215,28/04/2022,2204-00787,0.00,3151.99,R,Allied Publicity Services,No
